Workbook

Sheet Notes
A1: CorrelationTrendIndicator.xlsm; Traders Tip spreadsheet created for the May 2020 Issue
A2: Coded beginning 2020-March-06 by Ronald McAllister (rpmac_xltt@sprynet.com)
A4: This Workbook demonstrates an EXCEL version of the ideas presented
A5: by John Ehlers in an article titled "Correlation As A Trend Indicator"
A6: which originally appeared in the May 2020 issue of
A7: "Technical Analysis of Stocks and Commodities" magazine.
A9: * * * * * * * * * * * * * * * *
A11: Development Notes:
A12: The EXCEL Builtin Correlation function is efficient and quite adequate for developing this indicator.
A14: A nice feature of the correlation calculation is that it is symetrical. That is, the only difference when correlating a price series
A15: to an up sloping line versus a down sloping line is the sign of the correlation value.
A17: For the basic Spearman correlation, the only requirement is that the slope of our line must be non-zero. That is, the "m" in the line formula (y = mx + b) can not be zero.
A18: The actual slope angle does not not influence the correlation result.
A20: Mr. Ehlers achieves an up sloping line by way of negating the Count value as he uses it in the calculation.
A21: Older values are paired up with larger negative values. Net-out is that prices are being correlated to an up sloping line (of negative values).
A23: With that in mind, I am using my Rel Row column of numbers to define my (downsloping) straight line and then flipping the sign of the correlation result.
A24: This avoids adding a column of numbers just to define an up sloping line.
A26: New with this version of my T-Tips template: VBA to impliment a "Perpetual" U.S. Markets Closed Holiday Calendar.
A28: Why we need one: The Yahoo Finance recently has begun having occaisional filtration problems where bars for U.S. Market Closed Holidays
A29: make their way onto the Historical Data web page and into the Historical Data download.
A31: While testing this May 2020 spreadsheet with different symbols, I found that I sometimes had bars with the text "null" in the price fields.
A32: My code always translates the "null" text price values to zeros.
A33: The resulting zeros cause real problems with indicator computations and the amount of blank space below price candles on the price chart.
A35: "null" price bars can be valid for very lightly traded penny sheet symbols which may not trade every day the markets are open.
A36: But is definitely not normal for symbols on the big boards.
A38: A closer look determined that these "bars" were for holiday dates when the US markets are normally closed.
A39: I found it interesting that some times the next download for the same symbol would not contain any of these "holiday" bars. Weird!
A41: My approach here was to write code to determine if the DATE on a null price values bar falls on one of the 9 market closed U.S. Holidays.
A42: If the bar date corresponds to one of these market closed holidays, I drop the bar before it reaches the InputPriceData tab.
A43: If the date is not a holiday, I let the bar through with the resulting zero values.
A45: No messy tables to update over the years as there are good solid rules that can be used in VBA or any other programming language to determine
A46: the dates for U.S. Market Closed Holidays for any given calendar year.
A48: This workbook contains and uses VBA macros and may take advantage of user defined VBA Class structures.
A49: Input Data:
A50: The data in this workbook is sorted date-descending (most recent date at the top). All cell formulas and
A51: VBA routines are built assuming this date sequence.
A53: ERROR 9 (already fixed in this spreadsheet)
A54: On or about Jan 29, 2020 Yahoo Finance changed the format of the split factor expression used their historical data downloads.
A55: The Split expression went from using "/" as in "New Share Number/Old Share Number",
A56: to using ":" as in "New Share Number:Old Share Number".
A57: This caused the then current version of my VBA code to fail with a "Runtime Error '9': subscript out of range".
A59: Fix for this ERROR 9
A60: For T-Tip spreadsheets from September 2018 up to present:
A61: Selecting the Debug option takes one into the VBA at the code line which causes the failure:
A62: CellArray(C_A_RowNdx, C_A_ColNdx + 1) = SplitFactors(1)
A63: Two lines above the failing VBA line is a line that reads:
A64: SplitFactors = Split(CsvColumns(CsvColNdx), "/")
A65: Change the / to a :
A66: The corrected line should now read
A67: SplitFactors = Split(CsvColumns(CsvColNdx), ":")
A69: If you are fixing several spreadsheets and do not want to use the failure to find the fix location,
A70: you can use VBA’s FIND dialog (Ctrl F) to look for the substring
A71: SplitFactors =
A72: Do include one space and the equal sign in your FIND string
A73: Select the "Current Project" option
A74: There should only be one instance.
A76: T-Tip spreadsheets prior to the September 2018 spreadsheet do not hard fail.
A78: They just get weird results in the split columns of the Input Price Data tab (soft fail).
A79: These older spreadsheets used different data retrieval and formatting logic.
A81: To fix these older spreadsheets:
A82: In the VBA editor, use find (CTRL-F).
A83: Select the "Current Project" option, and search for the following:
A84: OtherChar:="/"
A85: You are looking for a hit in a line reading:
A86: Other:=True, OtherChar:="/", _
A87: This line is part of a multiline block of code starting with a line that reads:
A88: SplitRange.Offset(0, 1).Resize(SpRows, 1).TextToColumns
A89: Change the / to a : so that the line reads
A90: Other:=True, OtherChar:=":", _
A93: 2019-04-04 Finally came up with a mechanism to align the left location and overall length of the cursor scroll bar so that the left most and right most
A94: scroll bar thumb positions visually align reasonably well with the left and right ends of the price chart horizontal axis.
A95: Makes it a little easier to visually align the Thumb and thus the cursor with points of interest on the charts.
A97: Older:
B98: My sincere apologies to our Macintosh based readers: Neither MSXML nor WinHttpRequest are supported in your environment. So as it stands this version of the spreadsheet will not work for you.
B99: See "Why this approach does not work for Macintosh" below.
B100: I am investigating cURL as a non-Querytable based approach for the Macintosh environment.
A102: The new Yahoo Finance history download interface has changed rather radically. The biggest hurdle being a pseudo-security requirement of adding a
B103: crumb character string to any URL requesting any type of history download. That crumb must match up (by way of some sort of hash algorithm) with
B104: the Yahoo Finance cookie that must also be sent with any request to the new Yahoo History down load interface.
B106: A crumb value is returned, buried in the HTML for any of what I call the "entry level" Yahoo Finance web pages (no crumb security requirement for entry level pages).
B107: A crumb may come with other Yahoo Finance pages. A crumb may even accompany some of the secured pages as well. I have not checked.
B109: Entry level pages are the top level pages of the various Yahoo Finance dialogs and include: Quote Lookup, Stock Summary Quote, and any of the pages
B110: with links in the horizontal row with the "Summary" link on the quote summary page such as Options, Historical Data, and the rest.
B112: To date I have found no way to get at this crumb value using any native EXCEL capabilities.
B114: So this crumb requirement effectively shuts out any solution that attempts to exclusively use built-in facilities of EXCEL, which is to say a purely Querytables solution.
B116: The approach built for this Traders Tip spreadsheet uses WINHTTP calls to Load the InputPriceData worksheet.
B118: First I call to get the HTML text for the Yahoo Summary Quote page using the requested symbol. From this HTML text I extract the full company name,
B119: the market it trades, the market status and time stamp, and finally the associated crumb string. There is a bunch of other useful bits buried in this HTML
B120: text that do not necessarily appear on the web page your browser presents. Perhaps some day I will go after and build a worksheet with these other bits.
B122: Next I add the freshly extracted crumb string to the URLs I use in three separate WINHTTP calls to retrieve Price history, Split history, and Dividend history respectively.
B124: From there VBA code proceeds as in the past to fill in the cell formulas and formatting that make the "prettied up" InputPriceData sheet.
A126: Why this approach works for Windows:
B127: WINHTTP maintains a temporary computer memory cache where cookies are maintained for as long as the WINHTTP object is instantiated.
B128: WINHTTP updates this cache any time a "set cookie" header accompanies a web response.
B129: Subsequent WINHTTP calls automatically search this cache for cookies and add any "appropriate" cookies to the headers
B130: of any web requests that get sent out.
B131: This cookie handling automation means that even if the response to our WINHTTP call for the Summary web page includes a new version of
B132: the Yahoo Finance cookie, the imbedded Crumb value will always match the cookie newly installed in the cache!
A135: Why this approach does not work for Macintosh:
B136: For what it is worth, the Macintosh version of the MS Office suite of products do in fact maintain a special, shared amongst themselves only, cookie cache.
B137: They automate cookie handling into and from this cache JUST for the Office products and any Querytable activity they might originate.
B139: This cache is not tied to, nor shared with, any browser that might be installed on the MAC. And I have not found anything with HTTP capabilities similar to
B140: MSXML that can work with that Office product cookie cache.
B142: When working in the MAC EXCEL environment, I have have not yet become conversant with a Mac based WINHTTP like capability.
B143: So l currently have no mechanism to replicate the non-Querytable data retrieval process I am using in Windows environments.
B144: A software product called CURL has been suggested as providing this capability in the MAC environment.
B145: A version of CURL is availble for the Windows So some day I may explore its capbilities and how to access those capabilities from VBA.
A147: Calculation and Chart Worksheet Usage Comments:
C148: In General, Items in Bolded BLUE are items you may freely change to play what-if games.
C149: Be sure to have a backup copy of the spreadsheet before you alter anything else.
A151: Features carried forward from the June 2016 version of my T-Tips Template
A152: Added a pair of buttons near cell F12 that will allow the user to step the charting window forward or backward one bar for each click.
A153: I find this to be a good way to test my understanding of the author's ideas as I step through the evolution of the price behavior and the indicators.
B155: First: In the "Help! I would like to plot data" area.
B156: Added button to resolve #NA problems by locating the bar in the input data with a slightly more recent date than what the user actually requested.
B157: I find this particularly useful when I have a general idea of where I want to be date wise. Now I can pick a set of dates "out of the air".
B158: If either (or both) of my date specifications fall between dates that are available in the price history,
B159: this button will resolve them to the dates of the nearest, slightly more recent input bars.
B160: I can then refine my data interval search as necessary from there.
B161: Really great when working with Weekly or Monthly studies!
C162: 2016Jun11 - added logic to the "I would like to chart.." button to detect #N/A values and terminate
C163: gracefully with a message instead of blowing up in the charting logic.
B165: Second: In the "Price Chart Windowing Controls" area. (A11 and A12)
B166: When retrieving data for a new symbol or when changing from daily to weekly or monthly data, there was the possibility that the
B167: residual settings in A11 and A12 would fall outside of the number bars available on the input data tab after the new data retrieval.
B168: In certain combinations, this could create a serious error in the chart sizing logic and crash the spreadsheet.
B169: I have taken this opportunity to update the validity checking logic used in the chart sizing macros
B170: to adjust these values as necessary so that they fall within the boundaries of the newly retrieved input data.
A171: Features carried forward from the October 2015 Traders Tips Template
B172: Improved automation: changes to any of the following will automatically initiate calculations appropriate to reflect a change.
C173: Changing either of cells A11 (pan) or A12 (zoom) will automatically initiate the same chart sizing macros that the manual
C174: "Set Chart" button uses.

Sheet InputPriceData
A1: SPDR S&P 500 ETF Trust (SPY) -NYSEArca (Daily)
IJ2: 241.79
A3: Request Online Yahoo History for: | F3: Market State == > | G3: As of | H3: 14:10:00 | I3: EDT. Market open.
A4: Symbol | B4: SPY | D4: Valid | I4: =OFFSET(I4,-2,0,1,1) -> 0
A5: From | B5: 1950-01-01 | D5: Data | AD5: Trailing 12 Div return (Cur Close)
A6: To | B6: =NOW() -> 2020-03-13T14:18:18.660 | D6: Types | E6: =VLOOKUP(B7,D7:E10,2,FALSE) -> d
A7: Data Type | B7: Daily | D7: Daily | E7: d
A8: Crumb | B8: KXeDzgaIWoh | D8: Weekly | E8: w
A9: Available Data | D9: Monthly | E9: m
A10: Bar Count: | B10: 6830 | AD10: =OFFSET(AC15,1,0,1,1)/OFFSET(N15,1,0,1,1) -> 0.02189107059
A11: From: | B11: =IF(B10<=0,"",OFFSET(B15,B10,IF(HistReqDataType="v",1,0),1,1)) -> 1993-01-29 | W11: Trailing 12 Month Dividend Returns
A12: To: | B12: =IF(B10<=0,"",IF(HistReqDataType="v",OFFSET(B15,2,1,1,1),OFFSET(B15,1,0,1,1))) -> 2020-03-13 | W12: Raw Close price on Dividend date | X12: Div Year and Month | Y12: Looking for year ago Div Year and Month | Z12: Year ago Div Date we found | AA12: row offset to year ago div Date | AB12: Same month flag | AC12: Trailing 12 Div Total | AD12: Trailing 12 Div return
Q13: Split History | S13: 0 | T13: Running | U13: Dividend History
B14: Raw Data Values | H14: Adjusted | I14: Price Adjust | J14: Vol Adjust | K14: Adjusted Values | P14: Last | Q14: Effective | R14: Shares | T14: Vol Adjust | V14: 112
A15: RelRow | B15: Date | C15: Open | D15: High | E15: Low | F15: Close | G15: Volume | H15: Close | I15: Factor | J15: Factor | K15: Open | L15: High | M15: Low | N15: Close | O15: Volume | P15: Trade | Q15: 43904 | R15: New | S15: Old | T15: 1 | U15: Date | V15: $ / Share
A16: 1 | B16: 2020-03-13 | C16: 263.089996 | D16: 264.109985 | E16: 249.580002 | F16: 256.679993 | G16: 194471262 | H16: 256.679993 | I16: =IF(F16=0,1,H16/F16) -> 1 | J16: =INDEX(OFFSET($T$15,0,0,$S$13+1,1),MATCH(B16,OFFSET($Q$15,0,0,$S$13+1,1),-1)) -> 1 | K16: =ROUND($I16*C16,2) -> 263.09 | L16: =ROUND($I16*D16,2) -> 264.11 | M16: 249.58 | N16: 256.68 | O16: =G16*J16 -> 194471262 | U16: 2019-12-20 | V16: 1.57 | W16: =(INDEX(OFFSET($F$15,1,0,$B$10,1),MATCH(U16,OFFSET($B$15,1,0,$B$10,1),-1))) -> 320.730011 | X16: =YEAR(U16)&RIGHT("0"&MONTH(U16),2) -> 201912 | Y16: =YEAR(U16)-1&RIGHT("0"&MONTH(U16),2) -> 201812 | Z16: =OFFSET(U15,AA16,0,1,1) -> 2018-12-21 | AA16: =MATCH(Y16,OFFSET($X$15,A16,0,$V$14+1-A16,1),-1) -> 5 | AB16: =IF(OR(AND(YEAR(U16)=YEAR(Z16),MONTH(U16)=MONTH(Z16)),MONTH(U16)=MONTH(Z16)),1,0) -> 1 | AC16: =(V16+IF(AA16-AB16=0,0,IFERROR(SUM(OFFSET(V16,1,0,AA16-AB16-1,1)),0))) -> 5.619 | AD16: =AC16/(INDEX(OFFSET($F$15,1,0,$B$10,1),MATCH(U16,OFFSET($B$15,1,0,$B$10,1),-1))) -> 0.01751940825
A17: 2 | B17: 2020-03-12 | C17: 256 | D17: 266.660004 | E17: 247.679993 | F17: 248.110001 | G17: 390215100 | H17: 248.110001 | I17: =IF(F17=0,1,H17/F17) -> 1 | J17: =INDEX(OFFSET($T$15,0,0,$S$13+1,1),MATCH(B17,OFFSET($Q$15,0,0,$S$13+1,1),-1)) -> 1 | K17: =ROUND($I17*C17,2) -> 256 | L17: =ROUND($I17*D17,2) -> 266.66 | M17: =ROUND($I17*E17,2) -> 247.68 | N17: =ROUND($I17*F17,2) -> 248.11 | O17: =G17*J17 -> 390215100 | U17: 2019-09-20 | V17: 1.384 | W17: =(INDEX(OFFSET($F$15,1,0,$B$10,1),MATCH(U17,OFFSET($B$15,1,0,$B$10,1),-1))) -> 298.279999 | X17: =YEAR(U17)&RIGHT("0"&MONTH(U17),2) -> 201909 | Y17: =YEAR(U17)-1&RIGHT("0"&MONTH(U17),2) -> 201809 | Z17: =OFFSET(U16,AA17,0,1,1) -> 2018-09-21 | AA17: =MATCH(Y17,OFFSET($X$15,A17,0,$V$14+1-A17,1),-1) -> 5 | AB17: =IF(OR(AND(YEAR(U17)=YEAR(Z17),MONTH(U17)=MONTH(Z17)),MONTH(U17)=MONTH(Z17)),1,0) -> 1 | AC17: =(V17+IF(AA17-AB17=0,0,IFERROR(SUM(OFFSET(V17,1,0,AA17-AB17-1,1)),0))) -> 5.484 | AD17: =AC17/(INDEX(OFFSET($F$15,1,0,$B$10,1),MATCH(U17,OFFSET($B$15,1,0,$B$10,1),-1))) -> 0.01838540974
A18: 3 | B18: 2020-03-11 | C18: 280.700012 | D18: 281.940002 | E18: 270.880005 | F18: 274.359985 | G18: 255316300 | H18: 274.359985 | I18: 1 | J18: 1 | K18: 280.7 | L18: 281.94 | M18: 270.88 | N18: 274.36 | O18: 255316300 | U18: 2019-06-21 | V18: 1.432 | W18: 294 | X18: 201906 | Y18: 201806 | Z18: 2018-06-15 | AA18: 5 | AB18: 1 | AC18: 5.423 | AD18: 0.01844557823
A19: 4 | B19: 2020-03-10 | C19: 284.640015 | D19: 288.519989 | E19: 273.5 | F19: 288.420013 | G19: 276444100 | H19: 288.420013 | I19: 1 | J19: 1 | K19: 284.64 | L19: 288.52 | M19: 273.5 | N19: 288.42 | O19: 276444100 | U19: 2019-03-15 | V19: 1.233 | W19: 281.309998 | X19: 201903 | Y19: 201803 | Z19: 2018-03-16 | AA19: 5 | AB19: 1 | AC19: 5.237 | AD19: 0.01861647306
A20: 5 | B20: 2020-03-09 | C20: 275.299988 | D20: 284.190002 | E20: 273.450012 | F20: 274.230011 | G20: 309417300 | H20: 274.230011 | I20: 1 | J20: 1 | K20: 275.3 | L20: 284.19 | M20: 273.45 | N20: 274.23 | O20: 309417300 | U20: 2018-12-21 | V20: 1.435 | W20: 240.699997 | X20: 201812 | Y20: 201712 | Z20: 2017-12-15 | AA20: 5 | AB20: 1 | AC20: 5.101 | AD20: 0.02119235589
A21: 6 | B21: 2020-03-06 | C21: 293.149994 | D21: 298.779999 | E21: 290.230011 | F21: 297.459991 | G21: 228667200 | H21: 297.459991 | I21: 1 | J21: 1 | K21: 293.15 | L21: 298.78 | M21: 290.23 | N21: 297.46 | O21: 228667200 | U21: 2018-09-21 | V21: 1.323 | W21: 291.98999 | X21: 201809 | Y21: 201709 | Z21: 2017-09-15 | AA21: 5 | AB21: 1 | AC21: 5.017 | AD21: 0.01718209587
A22: 7 | B22: 2020-03-05 | C22: 304.980011 | D22: 308.470001 | E22: 300.01001 | F22: 302.459991 | G22: 186366800 | H22: 302.459991 | I22: 1 | J22: 1 | K22: 304.98 | L22: 308.47 | M22: 300.01 | N22: 302.46 | O22: 186366800 | U22: 2018-06-15 | V22: 1.246 | W22: 277.130005 | X22: 201806 | Y22: 201706 | Z22: 2017-06-16 | AA22: 5 | AB22: 1 | AC22: 4.929 | AD22: 0.01778587634
A23: 8 | B23: 2020-03-04 | C23: 306.119995 | D23: 313.100006 | E23: 303.329987 | F23: 312.859985 | G23: 176613400 | H23: 312.859985 | I23: 1 | J23: 1 | K23: 306.12 | L23: 313.1 | M23: 303.33 | N23: 312.86 | O23: 176613400 | U23: 2018-03-16 | V23: 1.097 | W23: 274.200012 | X23: 201803 | Y23: 201703 | Z23: 2017-03-17 | AA23: 5 | AB23: 1 | AC23: 4.866 | AD23: 0.0177461699
A24: 9 | B24: 2020-03-03 | C24: 309.5 | D24: 313.839996 | E24: 297.570007 | F24: 300.23999 | G24: 300139100 | H24: 300.23999 | I24: 1 | J24: 1 | K24: 309.5 | L24: 313.84 | M24: 297.57 | N24: 300.24 | O24: 300139100 | U24: 2017-12-15 | V24: 1.351 | W24: 266.51001 | X24: 201712 | Y24: 201612 | Z24: 2016-12-16 | AA24: 5 | AB24: 1 | AC24: 4.802 | AD24: 0.01801808495
A25: 10 | B25: 2020-03-02 | C25: 298.209991 | D25: 309.160004 | E25: 294.459991 | F25: 309.089996 | G25: 238703600 | H25: 309.089996 | I25: 1 | J25: 1 | K25: 298.21 | L25: 309.16 | M25: 294.46 | N25: 309.09 | O25: 238703600 | U25: 2017-09-15 | V25: 1.235 | W25: 249.190002 | X25: 201709 | Y25: 201609 | Z25: 2016-09-16 | AA25: 5 | AB25: 1 | AC25: 4.78 | AD25: 0.01918215001
A26: 11 | B26: 2020-02-28 | C26: 288.700012 | D26: 297.890015 | E26: 285.540009 | F26: 296.26001 | G26: 385764000 | H26: 296.26001 | I26: 1 | J26: 1 | K26: 288.7 | L26: 297.89 | M26: 285.54 | N26: 296.26 | O26: 385764000 | U26: 2017-06-16 | V26: 1.183 | W26: 242.639999 | X26: 201706 | Y26: 201606 | Z26: 2016-06-17 | AA26: 5 | AB26: 1 | AC26: 4.627 | AD26: 0.01906940331
A27: 12 | B27: 2020-02-27 | C27: 305.459991 | D27: 311.559998 | E27: 297.51001 | F27: 297.51001 | G27: 284353500 | H27: 297.51001 | I27: 1 | J27: 1 | K27: 305.46 | L27: 311.56 | M27: 297.51 | N27: 297.51 | O27: 284353500 | U27: 2017-03-17 | V27: 1.033 | W27: 237.029999 | X27: 201703 | Y27: 201603 | Z27: 2016-03-18 | AA27: 5 | AB27: 1 | AC27: 4.522 | AD27: 0.01907775395
A28: 13 | B28: 2020-02-26 | C28: 314.179993 | D28: 318.109985 | E28: 310.700012 | F28: 311.5 | G28: 194773800 | H28: 311.5 | I28: 1 | J28: 1 | K28: 314.18 | L28: 318.11 | M28: 310.7 | N28: 311.5 | O28: 194773800 | U28: 2016-12-16 | V28: 1.329 | W28: 225.039993 | X28: 201612 | Y28: 201512 | Z28: 2015-12-18 | AA28: 5 | AB28: 1 | AC28: 4.539 | AD28: 0.02016974823
A29: 14 | B29: 2020-02-25 | C29: 323.940002 | D29: 324.609985 | E29: 311.690002 | F29: 312.649994 | G29: 218913200 | H29: 312.649994 | I29: 1 | J29: 1 | K29: 323.94 | L29: 324.61 | M29: 311.69 | N29: 312.65 | O29: 218913200 | U29: 2016-09-16 | V29: 1.082 | W29: 213.369995 | X29: 201609 | Y29: 201509 | Z29: 2015-09-18 | AA29: 5 | AB29: 1 | AC29: 4.422 | AD29: 0.02072456345
A30: 15 | B30: 2020-02-24 | C30: 323.140015 | D30: 333.559998 | E30: 321.23999 | F30: 322.420013 | G30: 161088400 | H30: 322.420013 | I30: 1 | J30: 1 | K30: 323.14 | L30: 333.56 | M30: 321.24 | N30: 322.42 | O30: 161088400 | U30: 2016-06-17 | V30: 1.078 | W30: 206.520004 | X30: 201606 | Y30: 201506 | Z30: 2015-06-19 | AA30: 5 | AB30: 1 | AC30: 4.373 | AD30: 0.02117470422
A31: 16 | B31: 2020-02-21 | C31: 335.470001 | D31: 335.809998 | E31: 332.579987 | F31: 333.480011 | G31: 113788200 | H31: 333.480011 | I31: 1 | J31: 1 | K31: 335.47 | L31: 335.81 | M31: 332.58 | N31: 333.48 | O31: 113788200 | U31: 2016-03-18 | V31: 1.05 | W31: 204.380005 | X31: 201603 | Y31: 201503 | Z31: 2015-03-20 | AA31: 5 | AB31: 1 | AC31: 4.325 | AD31: 0.02116156128
A32: 17 | B32: 2020-02-20 | C32: 337.73999 | D32: 338.640015 | E32: 333.679993 | F32: 336.950012 | G32: 74163400 | H32: 336.950012 | I32: 1 | J32: 1 | K32: 337.74 | L32: 338.64 | M32: 333.68 | N32: 336.95 | O32: 74163400 | U32: 2015-12-18 | V32: 1.212 | W32: 200.020004 | X32: 201512 | Y32: 201412 | Z32: 2014-12-19 | AA32: 5 | AB32: 1 | AC32: 4.206 | AD32: 0.02102789679
A33: 18 | B33: 2020-02-19 | C33: 337.790009 | D33: 339.079987 | E33: 337.480011 | F33: 338.339996 | G33: 48814700 | H33: 338.339996 | I33: 1 | J33: 1 | K33: 337.79 | L33: 339.08 | M33: 337.48 | N33: 338.34 | O33: 48814700 | U33: 2015-09-18 | V33: 1.033 | W33: 195.449997 | X33: 201509 | Y33: 201409 | Z33: 2014-09-19 | AA33: 5 | AB33: 1 | AC33: 4.129 | AD33: 0.0211256079
A34: 19 | B34: 2020-02-18 | C34: 336.51001 | D34: 337.670013 | E34: 335.209991 | F34: 336.730011 | G34: 57226200 | H34: 336.730011 | I34: 1 | J34: 1 | K34: 336.51 | L34: 337.67 | M34: 335.21 | N34: 336.73 | O34: 57226200 | U34: 2015-06-19 | V34: 1.03 | W34: 210.809998 | X34: 201506 | Y34: 201406 | Z34: 2014-06-20 | AA34: 5 | AB34: 1 | AC34: 4.035 | AD34: 0.01914045841
A35: 20 | B35: 2020-02-14 | C35: 337.51001 | D35: 337.730011 | E35: 336.200012 | F35: 337.600006 | G35: 64582200 | H35: 337.600006 | I35: 1 | J35: 1 | K35: 337.51 | L35: 337.73 | M35: 336.2 | N35: 337.6 | O35: 64582200 | U35: 2015-03-20 | V35: 0.931 | W35: 210.410004 | X35: 201503 | Y35: 201403 | Z35: 2014-03-21 | AA35: 5 | AB35: 1 | AC35: 3.942 | AD35: 0.01873485065
A36: 21 | B36: 2020-02-13 | C36: 335.859985 | D36: 338.119995 | E36: 335.559998 | F36: 337.059998 | G36: 54501900 | H36: 337.059998 | I36: 1 | J36: 1 | K36: 335.86 | L36: 338.12 | M36: 335.56 | N36: 337.06 | O36: 54501900 | U36: 2014-12-19 | V36: 1.135 | W36: 206.520004 | X36: 201412 | Y36: 201312 | Z36: 2013-12-20 | AA36: 5 | AB36: 1 | AC36: 3.836 | AD36: 0.01857447185
A37: 22 | B37: 2020-02-12 | C37: 336.829987 | D37: 337.649994 | E37: 336.429993 | F37: 337.420013 | G37: 43992700 | H37: 337.420013 | I37: 1 | J37: 1 | K37: 336.83 | L37: 337.65 | M37: 336.43 | N37: 337.42 | O37: 43992700 | U37: 2014-09-19 | V37: 0.939 | W37: 200.699997 | X37: 201409 | Y37: 201309 | Z37: 2013-09-20 | AA37: 5 | AB37: 1 | AC37: 3.681 | AD37: 0.01834080745
A38: 23 | B38: 2020-02-11 | C38: 336.160004 | D38: 337.019989 | E38: 334.679993 | F38: 335.26001 | G38: 54864500 | H38: 335.26001 | I38: 1 | J38: 1 | K38: 336.16 | L38: 337.02 | M38: 334.68 | N38: 335.26 | O38: 54864500 | U38: 2014-06-20 | V38: 0.937 | W38: 195.940002 | X38: 201406 | Y38: 201306 | Z38: 2013-06-21 | AA38: 5 | AB38: 1 | AC38: 3.58 | AD38: 0.01827089907
A39: 24 | B39: 2020-02-10 | C39: 331.230011 | D39: 334.75 | E39: 331.190002 | F39: 334.679993 | G39: 42070000 | H39: 334.679993 | I39: 1 | J39: 1 | K39: 331.23 | L39: 334.75 | M39: 331.19 | N39: 334.68 | O39: 42070000 | U39: 2014-03-21 | V39: 0.825 | W39: 186.199997 | X39: 201403 | Y39: 201303 | Z39: 2013-03-15 | AA39: 5 | AB39: 1 | AC39: 3.482 | AD39: 0.01870032254
A40: 25 | B40: 2020-02-07 | C40: 332.820007 | D40: 333.98999 | E40: 331.600006 | F40: 332.200012 | G40: 64139400 | H40: 332.200012 | I40: 1 | J40: 1 | K40: 332.82 | L40: 333.99 | M40: 331.6 | N40: 332.2 | O40: 64139400 | U40: 2013-12-20 | V40: 0.98 | W40: 181.559998 | X40: 201312 | Y40: 201212 | Z40: 2012-12-21 | AA40: 5 | AB40: 1 | AC40: 3.351 | AD40: 0.01845670873
A41: 26 | B41: 2020-02-06 | C41: 333.910004 | D41: 334.190002 | E41: 332.799988 | F41: 333.980011 | G41: 50359700 | H41: 333.980011 | I41: 1 | J41: 1 | K41: 333.91 | L41: 334.19 | M41: 332.8 | N41: 333.98 | O41: 50359700 | U41: 2013-09-20 | V41: 0.838 | W41: 170.720001 | X41: 201309 | Y41: 201209 | Z41: 2012-09-21 | AA41: 5 | AB41: 1 | AC41: 3.393 | AD41: 0.01987464843
A42: 27 | B42: 2020-02-05 | C42: 332.269989 | D42: 333.089996 | E42: 330.670013 | F42: 332.859985 | G42: 65951100 | H42: 332.859985 | I42: 1 | J42: 1 | K42: 332.27 | L42: 333.09 | M42: 330.67 | N42: 332.86 | O42: 65951100 | U42: 2013-06-21 | V42: 0.839 | W42: 159.070007 | X42: 201306 | Y42: 201206 | Z42: 2012-06-15 | AA42: 5 | AB42: 1 | AC42: 3.334 | AD42: 0.02095932516
A43: 28 | B43: 2020-02-04 | C43: 328.070007 | D43: 330.01001 | E43: 327.720001 | F43: 329.059998 | G43: 62573200 | H43: 329.059998 | I43: 1 | J43: 1 | K43: 328.07 | L43: 330.01 | M43: 327.72 | N43: 329.06 | O43: 62573200 | U43: 2013-03-15 | V43: 0.694 | W43: 155.830002 | X43: 201303 | Y43: 201203 | Z43: 2012-03-16 | AA43: 5 | AB43: 1 | AC43: 3.183 | AD43: 0.02042610511
A44: 29 | B44: 2020-02-03 | C44: 323.350006 | D44: 326.160004 | E44: 323.220001 | F44: 324.119995 | G44: 69242300 | H44: 324.119995 | I44: 1 | J44: 1 | K44: 323.35 | L44: 326.16 | M44: 323.22 | N44: 324.12 | O44: 69242300 | U44: 2012-12-21 | V44: 1.022 | W44: 142.789993 | X44: 201212 | Y44: 201112 | Z44: 2011-12-16 | AA44: 5 | AB44: 1 | AC44: 3.103 | AD44: 0.02173121474
A45: 30 | B45: 2020-01-31 | C45: 327 | D45: 327.170013 | E45: 320.730011 | F45: 321.730011 | G45: 113845600 | H45: 321.730011 | I45: 1 | J45: 1 | K45: 327 | L45: 327.17 | M45: 320.73 | N45: 321.73 | O45: 113845600 | U45: 2012-09-21 | V45: 0.779 | W45: 145.869995 | X45: 201209 | Y45: 201109 | Z45: 2011-09-16 | AA45: 5 | AB45: 1 | AC45: 2.851 | AD45: 0.01954480083
A46: 31 | B46: 2020-01-30 | C46: 324.359985 | D46: 327.910004 | E46: 323.540009 | F46: 327.679993 | G46: 75491800 | H46: 327.679993 | I46: 1 | J46: 1 | K46: 324.36 | L46: 327.91 | M46: 323.54 | N46: 327.68 | O46: 75491800 | U46: 2012-06-15 | V46: 0.688 | W46: 134.139999 | X46: 201206 | Y46: 201106 | Z46: 2011-06-17 | AA46: 5 | AB46: 1 | AC46: 2.697 | AD46: 0.0201058597
A47: 32 | B47: 2020-01-29 | C47: 328.380005 | D47: 328.630005 | E47: 326.399994 | F47: 326.619995 | G47: 53888900 | H47: 326.619995 | I47: 1 | J47: 1 | K47: 328.38 | L47: 328.63 | M47: 326.4 | N47: 326.62 | O47: 53888900 | U47: 2012-03-16 | V47: 0.614 | W47: 140.300003 | X47: 201203 | Y47: 201103 | Z47: 2011-03-18 | AA47: 5 | AB47: 1 | AC47: 2.637 | AD47: 0.01879543794
A48: 33 | B48: 2020-01-28 | C48: 325.059998 | D48: 327.850006 | E48: 323.600006 | F48: 326.890015 | G48: 63834000 | H48: 326.890015 | I48: 1 | J48: 1 | K48: 325.06 | L48: 327.85 | M48: 323.6 | N48: 326.89 | O48: 63834000 | U48: 2011-12-16 | V48: 0.77 | W48: 121.589996 | X48: 201112 | Y48: 201012 | Z48: 2010-12-17 | AA48: 5 | AB48: 1 | AC48: 2.576 | AD48: 0.02118595349
A49: 34 | B49: 2020-01-27 | C49: 323.029999 | D49: 325.119995 | E49: 322.660004 | F49: 323.5 | G49: 84062500 | H49: 323.5 | I49: 1 | J49: 1 | K49: 323.03 | L49: 325.12 | M49: 322.66 | N49: 323.5 | O49: 84062500 | U49: 2011-09-16 | V49: 0.625 | W49: 121.519997 | X49: 201109 | Y49: 201009 | Z49: 2010-09-17 | AA49: 5 | AB49: 1 | AC49: 2.459 | AD49: 0.0202353527
A50: 35 | B50: 2020-01-24 | C50: 332.440002 | D50: 332.529999 | E50: 327.359985 | F50: 328.769989 | G50: 87578400 | H50: 328.769989 | I50: 1 | J50: 1 | K50: 332.44 | L50: 332.53 | M50: 327.36 | N50: 328.77 | O50: 87578400 | U50: 2011-06-17 | V50: 0.628 | W50: 127.050003 | X50: 201106 | Y50: 201006 | Z50: 2010-06-18 | AA50: 5 | AB50: 1 | AC50: 2.436 | AD50: 0.01917355327
A51: 36 | B51: 2020-01-23 | C51: 330.630005 | D51: 332.170013 | E51: 329.410004 | F51: 331.720001 | G51: 51963000 | H51: 331.720001 | I51: 1 | J51: 1 | K51: 330.63 | L51: 332.17 | M51: 329.41 | N51: 331.72 | O51: 51963000 | U51: 2011-03-18 | V51: 0.553 | W51: 127.760002 | X51: 201103 | Y51: 201003 | Z51: 2010-03-19 | AA51: 5 | AB51: 1 | AC51: 2.339 | AD51: 0.01830776427
A52: 37 | B52: 2020-01-22 | C52: 332.23999 | D52: 332.950012 | E52: 331.170013 | F52: 331.339996 | G52: 48914900 | H52: 331.339996 | I52: 1 | J52: 1 | K52: 332.24 | L52: 332.95 | M52: 331.17 | N52: 331.34 | O52: 48914900 | U52: 2010-12-17 | V52: 0.653 | W52: 124.300003 | X52: 201012 | Y52: 200912 | Z52: 2009-12-18 | AA52: 5 | AB52: 1 | AC52: 2.266 | AD52: 0.01823008806
A53: 38 | B53: 2020-01-21 | C53: 330.899994 | D53: 332.179993 | E53: 330.820007 | F53: 331.299988 | G53: 77742400 | H53: 331.299988 | I53: 1 | J53: 1 | K53: 330.9 | L53: 332.18 | M53: 330.82 | N53: 331.3 | O53: 77742400 | U53: 2010-09-17 | V53: 0.602 | W53: 112.489998 | X53: 201009 | Y53: 200909 | Z53: 2009-09-18 | AA53: 5 | AB53: 1 | AC53: 2.203 | AD53: 0.01958396337
A54: 39 | B54: 2020-01-17 | C54: 331.700012 | D54: 332.179993 | E54: 330.850006 | F54: 331.950012 | G54: 95846000 | H54: 331.950012 | I54: 1 | J54: 1 | K54: 331.7 | L54: 332.18 | M54: 330.85 | N54: 331.95 | O54: 95846000 | U54: 2010-06-18 | V54: 0.531 | W54: 111.730003 | X54: 201006 | Y54: 200906 | Z54: 2009-06-19 | AA54: 5 | AB54: 1 | AC54: 2.109 | AD54: 0.01887586094
A55: 40 | B55: 2020-01-16 | C55: 329.700012 | D55: 330.920013 | E55: 329.450012 | F55: 330.920013 | G55: 54050300 | H55: 330.920013 | I55: 1 | J55: 1 | K55: 329.7 | L55: 330.92 | M55: 329.45 | N55: 330.92 | O55: 54050300 | U55: 2010-03-19 | V55: 0.48 | W55: 115.970001 | X55: 201003 | Y55: 200903 | Z55: 2009-03-20 | AA55: 5 | AB55: 1 | AC55: 2.096 | AD55: 0.01807363958
A56: 41 | B56: 2020-01-15 | C56: 327.350006 | D56: 329.019989 | E56: 327.26001 | F56: 328.190002 | G56: 72056600 | H56: 328.190002 | I56: 1 | J56: 1 | K56: 327.35 | L56: 329.02 | M56: 327.26 | N56: 328.19 | O56: 72056600 | U56: 2009-12-18 | V56: 0.59 | W56: 110.209999 | X56: 200912 | Y56: 200812 | Z56: 2008-12-19 | AA56: 5 | AB56: 1 | AC56: 2.177 | AD56: 0.01975319862
A57: 42 | B57: 2020-01-14 | C57: 327.470001 | D57: 328.619995 | E57: 326.839996 | F57: 327.450012 | G57: 62832800 | H57: 327.450012 | I57: 1 | J57: 1 | K57: 327.47 | L57: 328.62 | M57: 326.84 | N57: 327.45 | O57: 62832800 | U57: 2009-09-18 | V57: 0.508 | W57: 106.720001 | X57: 200909 | Y57: 200809 | Z57: 2008-09-19 | AA57: 5 | AB57: 1 | AC57: 2.306 | AD57: 0.02160794582
A58: 43 | B58: 2020-01-13 | C58: 326.390015 | D58: 327.959991 | E58: 325.920013 | F58: 327.950012 | G58: 47086800 | H58: 327.950012 | I58: 1 | J58: 1 | K58: 326.39 | L58: 327.96 | M58: 325.92 | N58: 327.95 | O58: 47086800 | U58: 2009-06-19 | V58: 0.518 | W58: 92.040001 | X58: 200906 | Y58: 200806 | Z58: 2008-06-20 | AA58: 5 | AB58: 1 | AC58: 2.489 | AD58: 0.02704258988
A59: 44 | B59: 2020-01-10 | C59: 327.290009 | D59: 327.459991 | E59: 325.200012 | F59: 325.709991 | G59: 53029300 | H59: 325.709991 | I59: 1 | J59: 1 | K59: 327.29 | L59: 327.46 | M59: 325.2 | N59: 325.71 | O59: 53029300 | U59: 2009-03-20 | V59: 0.561 | W59: 76.709999 | X59: 200903 | Y59: 200803 | Z59: 2008-03-20 | AA59: 5 | AB59: 1 | AC59: 2.64 | AD59: 0.03441533091
A60: 45 | B60: 2020-01-09 | C60: 326.160004 | D60: 326.730011 | E60: 325.519989 | F60: 326.649994 | G60: 48473300 | H60: 326.649994 | I60: 1 | J60: 1 | K60: 326.16 | L60: 326.73 | M60: 325.52 | N60: 326.65 | O60: 48473300 | U60: 2008-12-19 | V60: 0.719 | W60: 88.190002 | X60: 200812 | Y60: 200712 | Z60: 2007-12-21 | AA60: 5 | AB60: 1 | AC60: 2.721 | AD60: 0.0308538376
A61: 46 | B61: 2020-01-08 | C61: 322.940002 | D61: 325.779999 | E61: 322.670013 | F61: 324.450012 | G61: 68296000 | H61: 324.450012 | I61: 1 | J61: 1 | K61: 322.94 | L61: 325.78 | M61: 322.67 | N61: 324.45 | O61: 68296000 | U61: 2008-09-19 | V61: 0.691 | W61: 124.120003 | X61: 200809 | Y61: 200709 | Z61: 2007-09-21 | AA61: 5 | AB61: 1 | AC61: 2.777 | AD61: 0.02237350897
A62: 47 | B62: 2020-01-07 | C62: 323.019989 | D62: 323.540009 | E62: 322.23999 | F62: 322.730011 | G62: 40496400 | H62: 322.730011 | I62: 1 | J62: 1 | K62: 323.02 | L62: 323.54 | M62: 322.24 | N62: 322.73 | O62: 40496400 | U62: 2008-06-20 | V62: 0.669 | W62: 131.580002 | X62: 200806 | Y62: 200706 | Z62: 2007-06-15 | AA62: 5 | AB62: 1 | AC62: 2.805 | AD62: 0.02131782913
A63: 48 | B63: 2020-01-06 | C63: 320.48999 | D63: 323.730011 | E63: 320.359985 | F63: 323.640015 | G63: 55653900 | H63: 323.640015 | I63: 1 | J63: 1 | K63: 320.49 | L63: 323.73 | M63: 320.36 | N63: 323.64 | O63: 55653900 | U63: 2008-03-20 | V63: 0.642 | W63: 132.080002 | X63: 200803 | Y63: 200703 | Z63: 2007-03-16 | AA63: 5 | AB63: 1 | AC63: 2.792 | AD63: 0.0211387035
A64: 49 | B64: 2020-01-03 | C64: 321.160004 | D64: 323.640015 | E64: 321.100006 | F64: 322.410004 | G64: 77709700 | H64: 322.410004 | I64: 1 | J64: 1 | K64: 321.16 | L64: 323.64 | M64: 321.1 | N64: 322.41 | O64: 77709700 | U64: 2007-12-21 | V64: 0.775 | W64: 148.130005 | X64: 200712 | Y64: 200612 | Z64: 2006-12-15 | AA64: 5 | AB64: 1 | AC64: 2.701 | AD64: 0.01823398305
A65: 50 | B65: 2020-01-02 | C65: 323.540009 | D65: 324.890015 | E65: 322.529999 | F65: 324.869995 | G65: 59151200 | H65: 324.869995 | I65: 1 | J65: 1 | K65: 323.54 | L65: 324.89 | M65: 322.53 | N65: 324.87 | O65: 59151200 | U65: 2007-09-21 | V65: 0.719 | W65: 151.970001 | X65: 200709 | Y65: 200609 | Z65: 2006-09-15 | AA65: 5 | AB65: 1 | AC65: 2.719 | AD65: 0.01789168903
A66: 51 | B66: 2019-12-31 | C66: 320.529999 | D66: 322.130005 | E66: 320.149994 | F66: 321.859985 | G66: 57077300 | H66: 321.859985 | I66: 1 | J66: 1 | K66: 320.53 | L66: 322.13 | M66: 320.15 | N66: 321.86 | O66: 57077300 | U66: 2007-06-15 | V66: 0.656 | W66: 153.070007 | X66: 200706 | Y66: 200606 | Z66: 2006-06-16 | AA66: 5 | AB66: 1 | AC66: 2.579 | AD66: 0.01684849992
A67: 52 | B67: 2019-12-30 | C67: 322.950012 | D67: 323.100006 | E67: 320.549988 | F67: 321.079987 | G67: 49729100 | H67: 321.079987 | I67: 1 | J67: 1 | K67: 322.95 | L67: 323.1 | M67: 320.55 | N67: 321.08 | O67: 49729100 | U67: 2007-03-16 | V67: 0.551 | W67: 138.529999 | X67: 200703 | Y67: 200603 | Z67: 2006-03-17 | AA67: 5 | AB67: 1 | AC67: 2.478 | AD67: 0.01788782226
A68: 53 | B68: 2019-12-27 | C68: 323.73999 | D68: 323.799988 | E68: 322.279999 | F68: 322.859985 | G68: 42528800 | H68: 322.859985 | I68: 1 | J68: 1 | K68: 323.74 | L68: 323.8 | M68: 322.28 | N68: 322.86 | O68: 42528800 | U68: 2006-12-15 | V68: 0.793 | W68: 142.339996 | X68: 200612 | Y68: 200512 | Z68: 2005-12-16 | AA68: 5 | AB68: 1 | AC68: 2.446 | AD68: 0.01718420731
A69: 54 | B69: 2019-12-26 | C69: 321.649994 | D69: 322.950012 | E69: 321.640015 | F69: 322.940002 | G69: 30911200 | H69: 322.940002 | I69: 1 | J69: 1 | K69: 321.65 | L69: 322.95 | M69: 321.64 | N69: 322.94 | O69: 30911200 | U69: 2006-09-15 | V69: 0.579 | W69: 131.960007 | X69: 200609 | Y69: 200509 | Z69: 2005-09-16 | AA69: 5 | AB69: 1 | AC69: 2.325 | AD69: 0.01761897451
A70: 55 | B70: 2019-12-24 | C70: 321.470001 | D70: 321.519989 | E70: 320.899994 | F70: 321.230011 | G70: 20270000 | H70: 321.230011 | I70: 1 | J70: 1 | K70: 321.47 | L70: 321.52 | M70: 320.9 | N70: 321.23 | O70: 20270000 | U70: 2006-06-16 | V70: 0.555 | W70: 124.650002 | X70: 200606 | Y70: 200506 | Z70: 2005-06-17 | AA70: 5 | AB70: 1 | AC70: 2.268 | AD70: 0.01819494556
A71: 56 | B71: 2019-12-23 | C71: 321.589996 | D71: 321.649994 | E71: 321.059998 | F71: 321.220001 | G71: 52990000 | H71: 321.220001 | I71: 1 | J71: 1 | K71: 321.59 | L71: 321.65 | M71: 321.06 | N71: 321.22 | O71: 52990000 | U71: 2006-03-17 | V71: 0.519 | W71: 130.619995 | X71: 200603 | Y71: 200503 | Z71: 2005-03-18 | AA71: 5 | AB71: 1 | AC71: 2.201 | AD71: 0.0168504064
A72: 57 | B72: 2019-12-20 | C72: 320.459991 | D72: 321.970001 | E72: 319.390015 | F72: 320.730011 | G72: 147142100 | H72: 320.730011 | I72: 1 | J72: 1 | K72: 320.46 | L72: 321.97 | M72: 319.39 | N72: 320.73 | O72: 147142100 | U72: 2005-12-16 | V72: 0.672 | W72: 126.360001 | X72: 200512 | Y72: 200412 | Z72: 2004-12-17 | AA72: 5 | AB72: 1 | AC72: 2.149 | AD72: 0.01700696409
A73: 58 | B73: 2019-12-19 | C73: 319.799988 | D73: 320.980011 | E73: 319.519989 | F73: 320.899994 | G73: 85310500 | H73: 319.329987 | I73: 0.9951074882 | J73: 1 | K73: 318.24 | L73: 319.41 | M73: 317.96 | N73: 319.33 | O73: 85310500 | U73: 2005-09-16 | V73: 0.522 | W73: 123.5 | X73: 200509 | Y73: 200409 | Z73: 2004-09-17 | AA73: 6 | AB73: 1 | AC73: 2.396 | AD73: 0.01940080972
A74: 59 | B74: 2019-12-18 | C74: 320 | D74: 320.25 | E74: 319.529999 | F74: 319.589996 | G74: 48133000 | H74: 318.026398 | I74: 0.9951074877 | J74: 1 | K74: 318.43 | L74: 318.68 | M74: 317.97 | N74: 318.03 | O74: 48133000 | U74: 2005-06-17 | V74: 0.488 | W74: 121.360001 | X74: 200506 | Y74: 200406 | Z74: 2004-06-18 | AA74: 6 | AB74: 1 | AC74: 2.343 | AD74: 0.01930619628
A75: 60 | B75: 2019-12-17 | C75: 319.920013 | D75: 320.25 | E75: 319.480011 | F75: 319.570007 | G75: 61097700 | H75: 318.006531 | I75: 0.9951075634 | J75: 1 | K75: 318.35 | L75: 318.68 | M75: 317.92 | N75: 318.01 | O75: 61097700 | U75: 2005-03-18 | V75: 0.467 | W75: 118.540001 | X75: 200503 | Y75: 200403 | Z75: 2004-03-19 | AA75: 6 | AB75: 1 | AC75: 2.269 | AD75: 0.01914121799
A76: 61 | B76: 2019-12-16 | C76: 319.220001 | D76: 320.149994 | E76: 317.25 | F76: 319.5 | G76: 82749700 | H76: 317.936859 | I76: 0.9951075399 | J76: 1 | K76: 317.66 | L76: 318.58 | M76: 315.7 | N76: 317.94 | O76: 82749700 | U76: 2004-12-17 | V76: 0.568 | W76: 119.440002 | X76: 200412 | Y76: 200312 | Z76: 2003-12-19 | AA76: 6 | AB76: 1 | AC76: 2.197 | AD76: 0.0183941725
A77: 62 | B77: 2019-12-13 | C77: 316.869995 | D77: 318.670013 | E77: 316.019989 | F77: 317.320007 | G77: 81503900 | H77: 315.767517 | I77: 0.9951074941 | J77: 1 | K77: 315.32 | L77: 317.11 | M77: 314.47 | N77: 315.77 | O77: 81503900 | U77: 2004-11-15 | V77: 0.351 | W77: 118.730003 | X77: 200411 | Y77: 200311 | Z77: 2003-12-19 | AA77: 5 | AB77: 0 | AC77: 2.145 | AD77: 0.01806620017
A78: 63 | B78: 2019-12-12 | C78: 314.429993 | D78: 317.98999 | E78: 314.170013 | F78: 317.130005 | G78: 96389600 | H78: 315.578461 | I78: 0.9951075459 | J78: 1 | K78: 312.89 | L78: 316.43 | M78: 312.63 | N78: 315.58 | O78: 96389600 | U78: 2004-09-17 | V78: 0.469 | W78: 113.150002 | X78: 200409 | Y78: 200309 | Z78: 2003-09-19 | AA78: 5 | AB78: 1 | AC78: 1.794 | AD78: 0.01585505938
A79: 64 | B79: 2019-12-11 | C79: 314.029999 | D79: 314.700012 | E79: 313.440002 | F79: 314.420013 | G79: 53429100 | H79: 312.881714 | I79: 0.9951075029 | J79: 1 | K79: 312.49 | L79: 313.16 | M79: 311.91 | N79: 312.88 | O79: 53429100 | U79: 2004-06-18 | V79: 0.414 | W79: 113.629997 | X79: 200406 | Y79: 200306 | Z79: 2003-06-20 | AA79: 5 | AB79: 1 | AC79: 1.725 | AD79: 0.01518085053
A80: 65 | B80: 2019-12-10 | C80: 313.820007 | D80: 314.549988 | E80: 312.809998 | F80: 313.529999 | G80: 52649800 | H80: 311.996063 | I80: 0.9951075304 | J80: 1 | K80: 312.28 | L80: 313.01 | M80: 311.28 | N80: 312 | O80: 52649800 | U80: 2004-03-19 | V80: 0.395 | W80: 111.059998 | X80: 200403 | Y80: 200303 | Z80: 2003-03-21 | AA80: 5 | AB80: 1 | AC80: 1.671 | AD80: 0.01504592139
A81: 66 | B81: 2019-12-09 | C81: 314.440002 | D81: 315.179993 | E81: 313.799988 | F81: 313.880005 | G81: 34838500 | H81: 312.34436 | I81: =IF(F81=0,1,H81/F81) -> 0.9951075412 | J81: =INDEX(OFFSET($T$15,0,0,$S$13+1,1),MATCH(B81,OFFSET($Q$15,0,0,$S$13+1,1),-1)) -> 1 | K81: =ROUND($I81*C81,2) -> 312.9 | L81: =ROUND($I81*D81,2) -> 313.64 | M81: =ROUND($I81*E81,2) -> 312.26 | N81: =ROUND($I81*F81,2) -> 312.34 | O81: =G81*J81 -> 34838500 | U81: 2003-12-19 | V81: 0.516 | W81: =(INDEX(OFFSET($F$15,1,0,$B$10,1),MATCH(U81,OFFSET($B$15,1,0,$B$10,1),-1))) -> 108.900002 | X81: =YEAR(U81)&RIGHT("0"&MONTH(U81),2) -> 200312 | Y81: =YEAR(U81)-1&RIGHT("0"&MONTH(U81),2) -> 200212 | Z81: =OFFSET(U80,AA81,0,1,1) -> 2002-12-20 | AA81: =MATCH(Y81,OFFSET($X$15,A81,0,$V$14+1-A81,1),-1) -> 5 | AB81: =IF(OR(AND(YEAR(U81)=YEAR(Z81),MONTH(U81)=MONTH(Z81)),MONTH(U81)=MONTH(Z81)),1,0) -> 1 | AC81: =(V81+IF(AA81-AB81=0,0,IFERROR(SUM(OFFSET(V81,1,0,AA81-AB81-1,1)),0))) -> 1.63 | AD81: =AC81/(INDEX(OFFSET($F$15,1,0,$B$10,1),MATCH(U81,OFFSET($B$15,1,0,$B$10,1),-1))) -> 0.01496786015
A82: 67 | B82: 2019-12-06 | C82: 314.119995 | D82: 315.309998 | E82: 314.109985 | F82: 314.869995 | G82: 48927000 | H82: 313.329498 | I82: 0.9951075141 | J82: 1 | K82: 312.58 | L82: 313.77 | M82: 312.57 | N82: 313.33 | O82: 48927000 | U82: 2003-09-19 | V82: 0.4 | W82: 103.669998 | X82: 200309 | Y82: 200209 | Z82: 2002-09-20 | AA82: 5 | AB82: 1 | AC82: 1.55 | AD82: 0.01495128803
A83: 68 | B83: 2019-12-05 | C83: 312.230011 | D83: 312.25 | E83: 310.579987 | F83: 312.019989 | G83: 40709000 | H83: 310.493439 | I83: 0.995107525 | J83: 1 | K83: 310.7 | L83: 310.72 | M83: 309.06 | N83: 310.49 | O83: 40709000 | U83: 2003-06-20 | V83: 0.36 | W83: 99.440002 | X83: 200306 | Y83: 200206 | Z83: 2002-06-21 | AA83: 5 | AB83: 1 | AC83: 1.528 | AD83: 0.01536604957
A84: 69 | B84: 2019-12-04 | C84: 310.700012 | D84: 312.119995 | E84: 310.320007 | F84: 311.459991 | G84: 49080000 | H84: 309.936188 | I84: 0.9951075482 | J84: 1 | K84: 309.18 | L84: 310.59 | M84: 308.8 | N84: 309.94 | O84: 49080000 | U84: 2003-03-21 | V84: 0.354 | W84: 89.669998 | X84: 200303 | Y84: 200203 | Z84: 2002-03-15 | AA84: 5 | AB84: 1 | AC84: 1.521 | AD84: 0.01696219509
A85: 70 | B85: 2019-12-03 | C85: 308.649994 | D85: 309.640015 | E85: 307.130005 | F85: 309.549988 | G85: 73941700 | H85: 308.035522 | I85: 0.9951075236 | J85: 1 | K85: 307.14 | L85: 308.13 | M85: 305.63 | N85: 308.04 | O85: 73941700 | U85: 2002-12-20 | V85: 0.436 | W85: 89.989998 | X85: 200212 | Y85: 200112 | Z85: 2001-12-21 | AA85: 5 | AB85: 1 | AC85: 1.498 | AD85: 0.0166462944
A86: 71 | B86: 2019-12-02 | C86: 314.589996 | D86: 314.660004 | E86: 311.170013 | F86: 311.640015 | G86: 75767800 | H86: 310.115326 | I86: 0.9951075314 | J86: 1 | K86: 313.05 | L86: 313.12 | M86: 309.65 | N86: 310.12 | O86: 75767800 | U86: 2002-09-20 | V86: 0.378 | W86: 84.349998 | X86: 200209 | Y86: 200109 | Z86: 2001-09-21 | AA86: 5 | AB86: 1 | AC86: 1.455 | AD86: 0.01724955583
A87: 72 | B87: 2019-11-29 | C87: 314.859985 | D87: 315.130005 | E87: 314.059998 | F87: 314.309998 | G87: 36592700 | H87: 312.772247 | I87: 0.9951075339 | J87: 1 | K87: 313.32 | L87: 313.59 | M87: 312.52 | N87: 312.77 | O87: 36592700 | U87: 2002-06-21 | V87: 0.353 | W87: 99.279999 | X87: 200206 | Y87: 200106 | Z87: 2001-06-15 | AA87: 5 | AB87: 1 | AC87: 1.446 | AD87: 0.01456486719
A88: 73 | B88: 2019-11-27 | C88: 314.609985 | D88: 315.480011 | E88: 314.369995 | F88: 315.480011 | G88: 44444600 | H88: 313.936523 | I88: 0.9951074935 | J88: 1 | K88: 313.07 | L88: 313.94 | M88: 312.83 | N88: 313.94 | O88: 44444600 | U88: 2002-03-15 | V88: 0.331 | W88: 116.650002 | X88: 200203 | Y88: 200103 | Z88: 2001-03-16 | AA88: 5 | AB88: 1 | AC88: 1.439 | AD88: 0.0123360478
A89: 74 | B89: 2019-11-26 | C89: 313.410004 | D89: 314.279999 | E89: 313.059998 | F89: 314.079987 | G89: 37569000 | H89: 312.543365 | I89: 0.9951075456 | J89: 1 | K89: 311.88 | L89: 312.74 | M89: 311.53 | N89: 312.54 | O89: 37569000 | U89: 2001-12-21 | V89: 0.393 | W89: 114.949997 | X89: 200112 | Y89: 200012 | Z89: 2000-12-27 | AA89: 5 | AB89: 1 | AC89: 1.424 | AD89: 0.0123879951
A90: 75 | B90: 2019-11-25 | C90: 311.980011 | D90: 313.369995 | E90: 311.980011 | F90: 313.369995 | G90: 48647200 | H90: 311.836853 | I90: 0.9951075661 | J90: 1 | K90: 310.45 | L90: 311.84 | M90: 310.45 | N90: 311.84 | O90: 48647200 | U90: 2001-09-21 | V90: 0.369 | W90: 97.279999 | X90: 200109 | Y90: 200009 | Z90: 2000-09-15 | AA90: 6 | AB90: 1 | AC90: 1.442 | AD90: 0.01482319094
A91: 76 | B91: 2019-11-22 | C91: 311.089996 | D91: 311.23999 | E91: 309.850006 | F91: 310.959991 | G91: 44850200 | H91: 309.438629 | I91: 0.9951075314 | J91: 1 | K91: 309.57 | L91: 309.72 | M91: 308.33 | N91: 309.44 | O91: 44850200 | U91: 2001-06-15 | V91: 0.346 | W91: 121.849998 | X91: 200106 | Y91: 200006 | Z91: 2000-06-16 | AA91: 7 | AB91: 1 | AC91: 1.448 | AD91: 0.01188346347
A92: 77 | B92: 2019-11-21 | C92: 310.890015 | D92: 311.01001 | E92: 309.390015 | F92: 310.269989 | G92: 54664700 | H92: 308.752014 | I92: 0.9951075674 | J92: 1 | K92: 309.37 | L92: 309.49 | M92: 307.88 | N92: 308.75 | O92: 54664700 | U92: 2001-03-16 | V92: 0.316 | W92: 115.010002 | X92: 200103 | Y92: 200003 | Z92: 2000-03-17 | AA92: 7 | AB92: 1 | AC92: 1.45 | AD92: 0.01260759912
A93: 78 | B93: 2019-11-20 | C93: 311.279999 | D93: 311.850006 | E93: 309.059998 | F93: 310.769989 | G93: 79406200 | H93: 309.249542 | I93: 0.9951074845 | J93: 1 | K93: 309.76 | L93: 310.32 | M93: 307.55 | N93: 309.25 | O93: 79406200 | U93: 2000-12-27 | V93: 0 | W93: 133.3125 | X93: 200012 | Y93: 199912 | Z93: 1999-12-17 | AA93: 7 | AB93: 1 | AC93: 1.505 | AD93: 0.01128926395
A94: 79 | B94: 2019-11-19 | C94: 312.679993 | D94: 312.690002 | E94: 311.220001 | F94: 311.929993 | G94: 67804700 | H94: 310.4039 | I94: 0.9951075785 | J94: 1 | K94: 311.15 | L94: 311.16 | M94: 309.7 | N94: 310.4 | O94: 67804700 | U94: 2000-12-15 | V94: 0.411 | W94: 130.96875 | X94: 200012 | Y94: 199912 | Z94: 1999-12-17 | AA94: 6 | AB94: 1 | AC94: 1.505 | AD94: 0.01149129086
A95: 80 | B95: 2019-11-18 | C95: 311.529999 | D95: 312.279999 | E95: 311.029999 | F95: 312.019989 | G95: 49228000 | H95: 310.493439 | I95: 0.995107525 | J95: 1 | K95: 310.01 | L95: 310.75 | M95: 309.51 | N95: 310.49 | O95: 49228000 | U95: 2000-09-15 | V95: 0.375 | W95: 146 | X95: 200009 | Y95: 199909 | Z95: 1999-09-17 | AA95: 6 | AB95: 1 | AC95: 1.442 | AD95: 0.009876712329
A96: 81 | B96: 2019-11-15 | C96: 311.019989 | D96: 311.839996 | E96: 310.26001 | F96: 311.790009 | G96: 62023600 | H96: 310.264587 | I96: 0.9951075341 | J96: 1 | K96: 309.5 | L96: 310.31 | M96: 308.74 | N96: 310.26 | O96: 62023600 | U96: 2000-09-14 | V96: 0 | W96: 149.640625 | X96: 200009 | Y96: 199909 | Z96: 1999-09-17 | AA96: 5 | AB96: 1 | AC96: 1.067 | AD96: 0.007130416623
A97: 82 | B97: 2019-11-14 | C97: 308.790009 | D97: 309.640015 | E97: 308.089996 | F97: 309.549988 | G97: 51219900 | H97: 308.035522 | I97: 0.9951075236 | J97: 1 | K97: 307.28 | L97: 308.13 | M97: 306.58 | N97: 308.04 | O97: 51219900 | U97: 2000-06-16 | V97: 0.348 | W97: 146.59375 | X97: 200006 | Y97: 199906 | Z97: 1999-06-18 | AA97: 5 | AB97: 1 | AC97: 1.439 | AD97: 0.009816243871
A98: 83 | B98: 2019-11-13 | C98: 307.910004 | D98: 309.540009 | E98: 307.660004 | F98: 309.100006 | G98: 53917700 | H98: 307.587738 | I98: 0.9951075122 | J98: 1 | K98: 306.4 | L98: 308.03 | M98: 306.15 | N98: 307.59 | O98: 53917700 | U98: 2000-03-17 | V98: 0.371 | W98: 146.9375 | X98: 200003 | Y98: 199903 | Z98: 1999-03-19 | AA98: 5 | AB98: 1 | AC98: 1.496 | AD98: 0.01018119949
A99: 84 | B99: 2019-11-12 | C99: 308.75 | D99: 309.98999 | E99: 308.149994 | F99: 309 | G99: 46484600 | H99: 307.48822 | I99: 0.9951075081 | J99: 1 | K99: 307.24 | L99: 308.47 | M99: 306.64 | N99: 307.49 | O99: 46484600 | U99: 1999-12-17 | V99: 0.348 | W99: 142.6875 | X99: 199912 | Y99: 199812 | Z99: 1998-12-18 | AA99: 5 | AB99: 1 | AC99: 1.445 | AD99: 0.01012702584
A100: 85 | B100: 2019-11-11 | C100: 307.420013 | D100: 308.540009 | E100: 307.269989 | F100: 308.350006 | G100: 35797300 | H100: 306.8414 | I100: 0.9951074883 | J100: 1 | K100: 305.92 | L100: 307.03 | M100: 305.77 | N100: 306.84 | O100: 35797300 | U100: 1999-09-17 | V100: 0.372 | W100: 133.75 | X100: 199909 | Y100: 199809 | Z100: 1998-09-18 | AA100: 5 | AB100: 1 | AC100: 1.489 | AD100: 0.01113271028
A101: 86 | B101: 2019-11-08 | C101: 307.799988 | D101: 309 | E101: 307.029999 | F101: 308.940002 | G101: 49032100 | H101: 307.428528 | I101: 0.9951075484 | J101: 1 | K101: 306.29 | L101: 307.49 | M101: 305.53 | N101: 307.43 | O101: 49032100 | U101: 1999-06-18 | V101: 0.405 | W101: 134.3125 | X101: 199906 | Y101: 199806 | Z101: 1998-06-19 | AA101: 5 | AB101: 1 | AC101: 1.476 | AD101: 0.01098929735
A102: 87 | B102: 2019-11-07 | C102: 308.570007 | D102: 309.649994 | E102: 307.660004 | F102: 308.179993 | G102: 54272300 | H102: 306.672241 | I102: 0.9951075604 | J102: 1 | K102: 307.06 | L102: 308.14 | M102: 306.15 | N102: 306.67 | O102: 54272300 | U102: 1999-03-19 | V102: 0.32 | W102: 129.6875 | X102: 199903 | Y102: 199803 | Z102: 1998-03-20 | AA102: 5 | AB102: 1 | AC102: 1.423 | AD102: 0.01097253012
A103: 88 | B103: 2019-11-06 | C103: 307.029999 | D103: 307.399994 | E103: 306.059998 | F103: 307.100006 | G103: 46487100 | H103: 305.597534 | I103: 0.9951075481 | J103: 1 | K103: 305.53 | L103: 305.9 | M103: 304.56 | N103: 305.6 | O103: 46487100 | U103: 1998-12-18 | V103: 0.392 | W103: 118.5 | X103: 199812 | Y103: 199712 | Z103: 1997-12-19 | AA103: 5 | AB103: 1 | AC103: 1.416 | AD103: 0.01194936709
A104: 89 | B104: 2019-11-05 | C104: 307.589996 | D104: 307.920013 | E104: 306.709991 | F104: 307.029999 | G104: 42933200 | H104: 305.527863 | I104: 0.9951075269 | J104: 1 | K104: 306.09 | L104: 306.41 | M104: 305.21 | N104: 305.53 | O104: 42933200 | U104: 1998-09-18 | V104: 0.359 | W104: 102.09375 | X104: 199809 | Y104: 199709 | Z104: 1997-09-19 | AA104: 5 | AB104: 1 | AC104: 1.404 | AD104: 0.01375206612
A105: 90 | B105: 2019-11-04 | C105: 307.850006 | D105: 308 | E105: 306.959991 | F105: 307.369995 | G105: 60606900 | H105: 305.866211 | I105: 0.9951075771 | J105: 1 | K105: 306.34 | L105: 306.49 | M105: 305.46 | N105: 305.87 | O105: 60606900 | U105: 1998-06-19 | V105: 0.352 | W105: 110.0625 | X105: 199806 | Y105: 199706 | Z105: 1997-06-20 | AA105: 5 | AB105: 1 | AC105: 1.393 | AD105: 0.0126564452
A106: 91 | B106: 2019-11-01 | C106: 304.920013 | D106: 306.190002 | E106: 304.73999 | F106: 306.140015 | G106: 71141500 | H106: 304.642242 | I106: 0.9951075556 | J106: 1 | K106: 303.43 | L106: 304.69 | M106: 303.25 | N106: 304.64 | O106: 71141500 | U106: 1998-03-20 | V106: 0.313 | W106: 109.875 | X106: 199803 | Y106: 199703 | Z106: 1997-03-21 | AA106: 5 | AB106: 1 | AC106: 1.391 | AD106: 0.01265984073
A107: 92 | B107: 2019-10-31 | C107: 304.130005 | D107: 304.130005 | E107: 301.730011 | F107: 303.329987 | G107: 69053800 | H107: 301.845947 | I107: 0.9951075065 | J107: 1 | K107: 302.64 | L107: 302.64 | M107: 300.25 | N107: 301.85 | O107: 69053800 | U107: 1997-12-19 | V107: 0.38 | W107: 94.78125 | X107: 199712 | Y107: 199612 | Z107: 1996-12-20 | AA107: 5 | AB107: 1 | AC107: 1.377 | AD107: 0.01452818991
A108: 93 | B108: 2019-10-30 | C108: 303.429993 | D108: 304.549988 | E108: 301.98999 | F108: 304.140015 | G108: 49643900 | H108: 302.652008 | I108: 0.9951074935 | J108: 1 | K108: 301.95 | L108: 303.06 | M108: 300.51 | N108: 302.65 | O108: 49643900 | U108: 1997-09-19 | V108: 0.348 | W108: 95.03125 | X108: 199709 | Y108: 199609 | Z108: 1996-09-20 | AA108: 5 | AB108: 1 | AC108: 1.364 | AD108: 0.0143531733
A109: 94 | B109: 2019-10-29 | C109: 303 | D109: 304.230011 | E109: 302.859985 | F109: 303.209991 | G109: 44284900 | H109: 301.726532 | I109: 0.9951074864 | J109: 1 | K109: 301.52 | L109: 302.74 | M109: 301.38 | N109: 301.73 | O109: 44284900 | U109: 1997-06-20 | V109: 0.35 | W109: 89.578125 | X109: 199706 | Y109: 199606 | Z109: 1996-06-21 | AA109: 5 | AB109: 1 | AC109: 1.368 | AD109: 0.01527158556
A110: 95 | B110: 2019-10-28 | C110: 302.940002 | D110: 303.850006 | E110: 302.910004 | F110: 303.299988 | G110: 42147000 | H110: 301.816101 | I110: 0.995107527 | J110: 1 | K110: 301.46 | L110: 302.36 | M110: 301.43 | N110: 301.82 | O110: 42147000 | U110: 1997-03-21 | V110: 0.299 | W110: 78.4375 | X110: 199703 | Y110: 199603 | Z110: 1996-03-15 | AA110: 5 | AB110: 1 | AC110: 1.369 | AD110: 0.01745338645
A111: 96 | B111: 2019-10-25 | C111: 299.73999 | D111: 302.200012 | E111: 299.679993 | F111: 301.600006 | G111: 45205400 | H111: 300.124451 | I111: 0.9951075764 | J111: 1 | K111: 298.27 | L111: 300.72 | M111: 298.21 | N111: 300.12 | O111: 45205400 | U111: 1996-12-20 | V111: 0.367 | W111: 74.84375 | X111: 199612 | Y111: 199512 | Z111: 1995-12-15 | AA111: 5 | AB111: 1 | AC111: 1.355 | AD111: 0.01810438413
A112: 97 | B112: 2019-10-24 | C112: 300.910004 | D112: 301.070007 | E112: 299.459991 | F112: 300.369995 | G112: 35453100 | H112: 298.900452 | I112: 0.9951075573 | J112: 1 | K112: 299.44 | L112: 299.6 | M112: 297.99 | N112: 298.9 | O112: 35453100 | U112: 1996-09-20 | V112: 0.352 | W112: 68.640625 | X112: 199609 | Y112: 199509 | Z112: 1995-09-15 | AA112: 5 | AB112: 1 | AC112: 1.37 | AD112: 0.01995902572
A113: 98 | B113: 2019-10-23 | C113: 298.730011 | D113: 299.940002 | E113: 298.5 | F113: 299.880005 | G113: 34352200 | H113: 298.412842 | I113: 0.9951074997 | J113: 1 | K113: 297.27 | L113: 298.47 | M113: 297.04 | N113: 298.41 | O113: 34352200 | U113: 1996-06-21 | V113: 0.351 | W113: 66.8125 | X113: 199606 | Y113: 199506 | Z113: 1995-06-16 | AA113: 5 | AB113: 1 | AC113: 1.33 | AD113: 0.01990645463
A114: 99 | B114: 2019-10-22 | C114: 300.579987 | D114: 300.899994 | E114: 298.910004 | F114: 299.01001 | G114: 48594700 | H114: 297.547119 | I114: 0.9951075518 | J114: 1 | K114: 299.11 | L114: 299.43 | M114: 297.45 | N114: 297.55 | O114: 48594700 | U114: 1996-03-15 | V114: 0.285 | W114: 64.125 | X114: 199603 | Y114: 199503 | Z114: 1995-03-17 | AA114: 5 | AB114: 1 | AC114: 1.295 | AD114: 0.02019493177
A115: 100 | B115: 2019-10-21 | C115: 299.420013 | D115: 300.209991 | E115: 298.940002 | F115: 299.98999 | G115: 39048600 | H115: 298.522308 | I115: 0.9951075634 | J115: 1 | K115: 297.96 | L115: 298.74 | M115: 297.48 | N115: 298.52 | O115: 39048600 | U115: 1995-12-15 | V115: 0.382 | W115: 61.8125 | X115: 199512 | Y115: 199412 | Z115: 1994-12-16 | AA115: 5 | AB115: 1 | AC115: 1.278 | AD115: 0.02067542973
A116: 101 | B116: 2019-10-18 | C116: 298.690002 | D116: 299.399994 | E116: 297.029999 | F116: 297.970001 | G116: 64304000 | H116: 296.512207 | I116: 0.9951075813 | J116: 1 | K116: 297.23 | L116: 297.94 | M116: 295.58 | N116: 296.51 | O116: 64304000 | U116: 1995-09-15 | V116: 0.312 | W116: 58.4375 | X116: 199509 | Y116: 199409 | Z116: 1994-09-19 | AA116: 5 | AB116: 1 | AC116: 1.259 | AD116: 0.02154438503
A117: 102 | B117: 2019-10-17 | C117: 299.679993 | D117: 300.23999 | E117: 298.519989 | F117: 299.279999 | G117: 45736600 | H117: 297.815796 | I117: 0.9951075815 | J117: 1 | K117: 298.21 | L117: 298.77 | M117: 297.06 | N117: 297.82 | O117: 45736600 | U117: 1995-06-16 | V117: 0.316 | W117: 53.96875 | X117: 199506 | Y117: 199406 | Z117: 1994-06-17 | AA117: 6 | AB117: 1 | AC117: 1.235 | AD117: 0.0228836132
A118: 103 | B118: 2019-10-16 | C118: 298.369995 | D118: 299.160004 | E118: 297.920013 | F118: 298.399994 | G118: 48928200 | H118: 296.940094 | I118: 0.9951075736 | J118: 1 | K118: 296.91 | L118: 297.7 | M118: 296.46 | N118: 296.94 | O118: 48928200 | U118: 1995-03-17 | V118: 0.268 | W118: 49.5625 | X118: 199503 | Y118: 199403 | Z118: 1994-03-18 | AA118: 6 | AB118: 1 | AC118: 1.224 | AD118: 0.02469609079
A119: 104 | B119: 2019-10-15 | C119: 297.100006 | D119: 299.700012 | E119: 296.970001 | F119: 298.880005 | G119: 46754500 | H119: 297.417755 | I119: 0.9951075683 | J119: 1 | K119: 295.65 | L119: 298.23 | M119: 295.52 | N119: 297.42 | O119: 46754500 | U119: 1994-12-16 | V119: 0.363 | W119: 45.75 | X119: 199412 | Y119: 199312 | Z119: 1993-12-17 | AA119: 6 | AB119: 1 | AC119: 1.227 | AD119: 0.02681967213
A120: 105 | B120: 2019-10-14 | C120: 295.929993 | D120: 296.670013 | E120: 295.570007 | F120: 295.950012 | G120: 40394800 | H120: 294.502075 | I120: 0.9951074947 | J120: 1 | K120: 294.48 | L120: 295.22 | M120: 294.12 | N120: 294.5 | O120: 40394800 | U120: 1994-09-19 | V120: 0 | W120: 47.0625 | X120: 199409 | Y120: 199309 | Z120: 1993-09-17 | AA120: 6 | AB120: 1 | AC120: 1.181 | AD120: 0.02509428951
A121: 106 | B121: 2019-10-11 | C121: 296.269989 | D121: 298.73999 | E121: 296.140015 | F121: 296.279999 | G121: 98720400 | H121: 294.830444 | I121: 0.9951074828 | J121: 1 | K121: 294.82 | L121: 297.28 | M121: 294.69 | N121: 294.83 | O121: 98720400 | U121: 1994-09-16 | V121: 0.288 | W121: 47.015625 | X121: 199409 | Y121: 199309 | Z121: 1993-09-17 | AA121: 5 | AB121: 1 | AC121: 1.181 | AD121: 0.02511930874
A122: 107 | B122: 2019-10-10 | C122: 291.179993 | D122: 294.209991 | E122: 291 | F122: 293.23999 | G122: 55296300 | H122: 291.805328 | I122: 0.99510755 | J122: 1 | K122: 289.76 | L122: 292.77 | M122: 289.58 | N122: 291.81 | O122: 55296300 | U122: 1994-06-17 | V122: 0.305 | W122: 45.875 | X122: 199406 | Y122: 199306 | Z122: 1993-06-18 | AA122: 5 | AB122: 1 | AC122: 1.179 | AD122: 0.02570027248
A123: 108 | B123: 2019-10-09 | C123: 290.75 | D123: 292.299988 | E123: 290.059998 | F123: 291.269989 | G123: 62359400 | H123: 289.844971 | I123: 0.9951075701 | J123: 1 | K123: 289.33 | L123: 290.87 | M123: 288.64 | N123: 289.84 | O123: 62359400 | U123: 1994-03-18 | V123: 0.271 | W123: 46.96875 | X123: 199403 | Y123: 199303 | Z123: 1993-03-19 | AA123: 5 | AB123: 1 | AC123: 1.192 | AD123: 0.02537857618
A124: 109 | B124: 2019-10-08 | C124: 291.040009 | D124: 291.850006 | E124: 288.48999 | F124: 288.529999 | G124: 95708100 | H124: 287.118378 | I124: 0.9951075417 | J124: 1 | K124: 289.62 | L124: 290.42 | M124: 287.08 | N124: 287.12 | O124: 95708100 | U124: 1993-12-17 | V124: 0.317 | W124: 46.5625 | X124: 199312 | Y124: 199212 | Z124: 1993-03-19 | AA124: 4 | AB124: 0 | AC124: 1.134 | AD124: 0.02435436242
A125: 110 | B125: 2019-10-07 | C125: 293.470001 | D125: 295.26001 | E125: 292.769989 | F125: 293.079987 | G125: 59610500 | H125: 291.646088 | I125: 0.9951074824 | J125: 1 | K125: 292.03 | L125: 293.82 | M125: 291.34 | N125: 291.65 | O125: 59610500 | U125: 1993-09-17 | V125: 0.286 | W125: 45.8125 | X125: 199309 | Y125: 199209 | Z125: 1993-03-19 | AA125: 3 | AB125: 0 | AC125: 0.817 | AD125: 0.01783356071
A126: 111 | B126: 2019-10-04 | C126: 291.140015 | D126: 294.630005 | E126: 291.079987 | F126: 294.350006 | G126: 65091200 | H126: 292.909912 | I126: 0.9951075455 | J126: 1 | K126: 289.72 | L126: 293.19 | M126: 289.66 | N126: 292.91 | O126: 65091200 | U126: 1993-06-18 | V126: 0.318 | W126: 44.5 | X126: 199306 | Y126: 199206 | Z126: 1993-03-19 | AA126: 2 | AB126: 0 | AC126: 0.531 | AD126: 0.01193258427
A127: 112 | B127: 2019-10-03 | C127: 287.809998 | D127: 290.450012 | E127: 284.820007 | F127: 290.420013 | G127: 85278800 | H127: 288.999146 | I127: 0.9951075445 | J127: 1 | K127: 286.4 | L127: 289.03 | M127: 283.43 | N127: 289 | O127: 85278800 | U127: 1993-03-19 | V127: 0.213 | W127: 45.03125 | X127: 199303 | Y127: 199203 | Z127: 1993-03-19 | AA127: 1 | AB127: 1 | AC127: 0.213 | AD127: 0.004730048577
A128: 113 | B128: 2019-10-02 | C128: 291.5 | D128: 291.51001 | E128: 286.640015 | F128: 288.059998 | G128: 122539500 | H128: 286.650665 | I128: 0.9951075019 | J128: 1 | K128: 290.07 | L128: 290.08 | M128: 285.24 | N128: 286.65 | O128: 122539500
A129: 114 | B129: 2019-10-01 | C129: 297.73999 | D129: 298.459991 | E129: 293 | F129: 293.23999 | G129: 88242400 | H129: 291.805328 | I129: 0.99510755 | J129: 1 | K129: 296.28 | L129: 297 | M129: 291.57 | N129: 291.81 | O129: 88242400
A130: 115 | B130: 2019-09-30 | C130: 295.970001 | D130: 297.549988 | E130: 295.920013 | F130: 296.769989 | G130: 51662400 | H130: 295.318054 | I130: 0.995107541 | J130: 1 | K130: 294.52 | L130: 296.09 | M130: 294.47 | N130: 295.32 | O130: 51662400
A131: 116 | B131: 2019-09-27 | C131: 297.829987 | D131: 297.950012 | E131: 293.690002 | F131: 295.399994 | G131: 84746600 | H131: 293.954773 | I131: 0.9951075795 | J131: 1 | K131: 296.37 | L131: 296.49 | M131: 292.25 | N131: 293.95 | O131: 84746600
A132: 117 | B132: 2019-09-26 | C132: 297.630005 | D132: 297.859985 | E132: 295.450012 | F132: 297 | G132: 56179700 | H132: 295.546936 | I132: 0.9951075286 | J132: 1 | K132: 296.17 | L132: 296.4 | M132: 294 | N132: 295.55 | O132: 56179700
A133: 118 | B133: 2019-09-25 | C133: 295.959991 | D133: 298.109985 | E133: 294.329987 | F133: 297.619995 | G133: 71854000 | H133: 296.16391 | I133: 0.99510757 | J133: 1 | K133: 294.51 | L133: 296.65 | M133: 292.89 | N133: 296.16 | O133: 71854000
A134: 119 | B134: 2019-09-24 | C134: 299.410004 | D134: 299.839996 | E134: 294.809998 | F134: 295.869995 | G134: 94869400 | H134: 294.422455 | I134: 0.9951075134 | J134: 1 | K134: 297.95 | L134: 298.37 | M134: 293.37 | N134: 294.42 | O134: 94869400
A135: 120 | B135: 2019-09-23 | C135: 297.549988 | D135: 299 | E135: 297.269989 | F135: 298.209991 | G135: 43476800 | H135: 296.751007 | I135: 0.9951075281 | J135: 1 | K135: 296.09 | L135: 297.54 | M135: 295.82 | N135: 296.75 | O135: 43476800
A136: 121 | B136: 2019-09-20 | C136: 300.359985 | D136: 300.670013 | E136: 297.410004 | F136: 298.279999 | G136: 89565000 | H136: 296.820679 | I136: 0.9951075499 | J136: 1 | K136: 298.89 | L136: 299.2 | M136: 295.95 | N136: 296.82 | O136: 89565000
A137: 122 | B137: 2019-09-19 | C137: 301.529999 | D137: 302.630005 | E137: 300.709991 | F137: 301.079987 | G137: 76560500 | H137: 298.229736 | I137: 0.9905332432 | J137: 1 | K137: 298.68 | L137: 299.77 | M137: 297.86 | N137: 298.23 | O137: 76560500
A138: 123 | B138: 2019-09-18 | C138: 300.48999 | D138: 301.220001 | E138: 298.23999 | F138: 301.100006 | G138: 73375800 | H138: 298.249573 | I138: 0.9905332682 | J138: 1 | K138: 297.65 | L138: 298.37 | M138: 295.42 | N138: 298.25 | O138: 73375800
A139: 124 | B139: 2019-09-17 | C139: 299.940002 | D139: 301.019989 | E139: 299.75 | F139: 300.920013 | G139: 41475500 | H139: 298.071259 | I139: 0.9905331853 | J139: 1 | K139: 297.1 | L139: 298.17 | M139: 296.91 | N139: 298.07 | O139: 41475500
A140: 125 | B140: 2019-09-16 | C140: 299.839996 | D140: 301.140015 | E140: 299.450012 | F140: 300.160004 | G140: 58191200 | H140: 297.318481 | I140: 0.9905333057 | J140: 1 | K140: 297 | L140: 298.29 | M140: 296.62 | N140: 297.32 | O140: 58191200
A141: 126 | B141: 2019-09-13 | C141: 301.779999 | D141: 302.170013 | E141: 300.679993 | F141: 301.089996 | G141: 61426700 | H141: 298.239655 | I141: 0.990533259 | J141: 1 | K141: 298.92 | L141: 299.31 | M141: 297.83 | N141: 298.24 | O141: 61426700
A142: 127 | B142: 2019-09-12 | C142: 301.25 | D142: 302.459991 | E142: 300.410004 | F142: 301.290009 | G142: 72908700 | H142: 298.437775 | I142: 0.9905332606 | J142: 1 | K142: 298.4 | L142: 299.6 | M142: 297.57 | N142: 298.44 | O142: 72908700
A143: 128 | B143: 2019-09-11 | C143: 298.470001 | D143: 300.339996 | E143: 297.75 | F143: 300.25 | G143: 68821100 | H143: 297.407593 | I143: 0.990533199 | J143: 1 | K143: 295.64 | L143: 297.5 | M143: 294.93 | N143: 297.41 | O143: 68821100
A144: 129 | B144: 2019-09-10 | C144: 297.359985 | D144: 298.200012 | E144: 295.970001 | F144: 298.130005 | G144: 57947100 | H144: 295.307709 | I144: 0.990533338 | J144: 1 | K144: 294.54 | L144: 295.38 | M144: 293.17 | N144: 295.31 | O144: 57947100
A145: 130 | B145: 2019-09-09 | C145: 299.140015 | D145: 299.23999 | E145: 297.160004 | F145: 298.200012 | G145: 51260300 | H145: 295.377014 | I145: =IF(F145=0,1,H145/F145) -> 0.9905332063 | J145: =INDEX(OFFSET($T$15,0,0,$S$13+1,1),MATCH(B145,OFFSET($Q$15,0,0,$S$13+1,1),-1)) -> 1 | K145: =ROUND($I145*C145,2) -> 296.31 | L145: =ROUND($I145*D145,2) -> 296.41 | M145: =ROUND($I145*E145,2) -> 294.35 | N145: =ROUND($I145*F145,2) -> 295.38 | O145: =G145*J145 -> 51260300
A146: 131 | B146: 2019-09-06 | C146: 298.170013 | D146: 298.76001 | E146: 297.420013 | F146: 298.049988 | G146: 49584300 | H146: 295.228424 | I146: 0.9905332524 | J146: 1 | K146: 295.35 | L146: 295.93 | M146: 294.6 | N146: 295.23 | O146: 49584300
A147: 132 | B147: 2019-09-05 | C147: 296.790009 | D147: 298.829987 | E147: 294 | F147: 297.820007 | G147: 83258100 | H147: 295.00061 | I147: 0.9905332183 | J147: 1 | K147: 293.98 | L147: 296 | M147: 291.22 | N147: 295 | O147: 83258100
A148: 133 | B148: 2019-09-04 | C148: 293.140015 | D148: 294.059998 | E148: 292.309998 | F148: 294.040009 | G148: 46887300 | H148: 291.256409 | I148: 0.9905332611 | J148: 1 | K148: 290.36 | L148: 291.28 | M148: 289.54 | N148: 291.26 | O148: 46887300
A149: 134 | B149: 2019-09-03 | C149: 290.570007 | D149: 291.579987 | E149: 289.269989 | F149: 290.73999 | G149: 69101400 | H149: 287.98764 | I149: 0.990533294 | J149: 1 | K149: 287.82 | L149: 288.82 | M149: 286.53 | N149: 287.99 | O149: 69101400
A150: 135 | B150: 2019-08-30 | C150: 294.220001 | D150: 294.23999 | E150: 291.420013 | F150: 292.450012 | G150: 62901200 | H150: 289.681458 | I150: 0.9905332403 | J150: 1 | K150: 291.43 | L150: 291.45 | M150: 288.66 | N150: 289.68 | O150: 62901200
A151: 136 | B151: 2019-08-29 | C151: 291.720001 | D151: 293.160004 | E151: 290.609985 | F151: 292.579987 | G151: 57899400 | H151: 289.810211 | I151: 0.9905332691 | J151: 1 | K151: 288.96 | L151: 290.38 | M151: 287.86 | N151: 289.81 | O151: 57899400
A152: 137 | B152: 2019-08-28 | C152: 286.140015 | D152: 289.070007 | E152: 285.25 | F152: 288.890015 | G152: 59696700 | H152: 286.155151 | I152: 0.9905332 | J152: 1 | K152: 283.43 | L152: 286.33 | M152: 282.55 | N152: 286.16 | O152: 59696700
A153: 138 | B153: 2019-08-27 | C153: 289.540009 | D153: 289.950012 | E153: 286.029999 | F153: 286.869995 | G153: 66668900 | H153: 284.154266 | I153: 0.9905332414 | J153: 1 | K153: 286.8 | L153: 287.21 | M153: 283.32 | N153: 284.15 | O153: 66668900
A154: 139 | B154: 2019-08-26 | C154: 287.269989 | D154: 288 | E154: 285.579987 | F154: 288 | G154: 72423800 | H154: 285.27356 | I154: 0.9905331944 | J154: 1 | K154: 284.55 | L154: 285.27 | M154: 282.88 | N154: 285.27 | O154: 72423800
A155: 140 | B155: 2019-08-23 | C155: 290.920013 | D155: 292.76001 | E155: 283.470001 | F155: 284.850006 | G155: 149161500 | H155: 282.153412 | I155: 0.9905332844 | J155: 1 | K155: 288.17 | L155: 289.99 | M155: 280.79 | N155: 282.15 | O155: 149161500
A156: 141 | B156: 2019-08-22 | C156: 293.230011 | D156: 293.929993 | E156: 290.399994 | F156: 292.359985 | G156: 51666400 | H156: 289.592285 | I156: 0.9905332462 | J156: 1 | K156: 290.45 | L156: 291.15 | M156: 287.65 | N156: 289.59 | O156: 51666400
A157: 142 | B157: 2019-08-21 | C157: 292.480011 | D157: 292.859985 | E157: 291.720001 | F157: 292.450012 | G157: 49524700 | H157: 289.681458 | I157: 0.9905332403 | J157: 1 | K157: 289.71 | L157: 290.09 | M157: 288.96 | N157: 289.68 | O157: 49524700
A158: 143 | B158: 2019-08-20 | C158: 291.769989 | D158: 292.359985 | E158: 289.950012 | F158: 290.089996 | G158: 51596400 | H158: 287.343811 | I158: 0.9905333344 | J158: 1 | K158: 289.01 | L158: 289.59 | M158: 287.21 | N158: 287.34 | O158: 51596400
A159: 144 | B159: 2019-08-19 | C159: 292.190002 | D159: 293.079987 | E159: 291.440002 | F159: 292.329987 | G159: 53571800 | H159: 289.562561 | I159: 0.990533212 | J159: 1 | K159: 289.42 | L159: 290.31 | M159: 288.68 | N159: 289.56 | O159: 53571800
A160: 145 | B160: 2019-08-16 | C160: 286.480011 | D160: 289.329987 | E160: 284.709991 | F160: 288.850006 | G160: 83018300 | H160: 286.115509 | I160: 0.9905331593 | J160: 1 | K160: 283.77 | L160: 286.59 | M160: 282.01 | N160: 286.12 | O160: 83018300
A161: 146 | B161: 2019-08-15 | C161: 284.880005 | D161: 285.640015 | E161: 282.390015 | F161: 284.649994 | G161: 99556600 | H161: 281.955292 | I161: 0.9905332793 | J161: 1 | K161: 282.18 | L161: 282.94 | M161: 279.72 | N161: 281.96 | O161: 99556600
A162: 147 | B162: 2019-08-14 | C162: 288.070007 | D162: 288.73999 | E162: 283.76001 | F162: 283.899994 | G162: 135622100 | H162: 281.212372 | I162: 0.9905332087 | J162: 1 | K162: 285.34 | L162: 286.01 | M162: 281.07 | N162: 281.21 | O162: 135622100
A163: 148 | B163: 2019-08-13 | C163: 287.73999 | D163: 294.149994 | E163: 287.359985 | F163: 292.549988 | G163: 94299800 | H163: 289.780487 | I163: 0.9905332384 | J163: 1 | K163: 285.02 | L163: 291.37 | M163: 284.64 | N163: 289.78 | O163: 94299800
A164: 149 | B164: 2019-08-12 | C164: 289.959991 | D164: 291.609985 | E164: 287.019989 | F164: 288.070007 | G164: 62629500 | H164: 285.342926 | I164: 0.9905332699 | J164: 1 | K164: 287.22 | L164: 288.85 | M164: 284.3 | N164: 285.34 | O164: 62629500
A165: 150 | B165: 2019-08-09 | C165: 292.579987 | D165: 293.23999 | E165: 289.649994 | F165: 291.619995 | G165: 93730000 | H165: 288.859283 | I165: 0.9905331869 | J165: 1 | K165: 289.81 | L165: 290.46 | M165: 286.91 | N165: 288.86 | O165: 93730000
A166: 151 | B166: 2019-08-08 | C166: 289.619995 | D166: 293.619995 | E166: 289.01001 | F166: 293.619995 | G166: 87713900 | H166: 290.840363 | I166: 0.9905332333 | J166: 1 | K166: 286.88 | L166: 290.84 | M166: 286.27 | N166: 290.84 | O166: 87713900
A167: 152 | B167: 2019-08-07 | C167: 284.399994 | D167: 288.820007 | E167: 282.040009 | F167: 287.970001 | G167: 140572300 | H167: 285.243866 | I167: 0.9905332674 | J167: 1 | K167: 281.71 | L167: 286.09 | M167: 279.37 | N167: 285.24 | O167: 140572300
A168: 153 | B168: 2019-08-06 | C168: 285.910004 | D168: 288.040009 | E168: 284.279999 | F168: 287.799988 | G168: 120711700 | H168: 285.07547 | I168: 0.9905332936 | J168: 1 | K168: 283.2 | L168: 285.31 | M168: 281.59 | N168: 285.08 | O168: 120711700
A169: 154 | B169: 2019-08-05 | C169: 288.089996 | D169: 288.209991 | E169: 281.720001 | F169: 283.820007 | G169: 178745400 | H169: 281.133148 | I169: 0.990533229 | J169: 1 | K169: 285.36 | L169: 285.48 | M169: 279.05 | N169: 281.13 | O169: 178745400
A170: 155 | B170: 2019-08-02 | C170: 293.850006 | D170: 294.119995 | E170: 290.899994 | F170: 292.619995 | G170: 116749700 | H170: 289.849854 | I170: 0.9905333161 | J170: 1 | K170: 291.07 | L170: 291.34 | M170: 288.15 | N170: 289.85 | O170: 116749700
A171: 156 | B171: 2019-08-01 | C171: 297.600006 | D171: 300.869995 | E171: 293.959991 | F171: 294.839996 | G171: 142646600 | H171: 292.048828 | I171: 0.9905332789 | J171: 1 | K171: 294.78 | L171: 298.02 | M171: 291.18 | N171: 292.05 | O171: 142646600
A172: 157 | B172: 2019-07-31 | C172: 300.98999 | D172: 301.200012 | E172: 295.200012 | F172: 297.429993 | G172: 104245200 | H172: 294.614288 | I172: 0.9905332177 | J172: 1 | K172: 298.14 | L172: 298.35 | M172: 292.41 | N172: 294.61 | O172: 104245200
A173: 158 | B173: 2019-07-30 | C173: 299.910004 | D173: 301.170013 | E173: 299.48999 | F173: 300.720001 | G173: 45849000 | H173: 297.873138 | I173: 0.9905331771 | J173: 1 | K173: 297.07 | L173: 298.32 | M173: 296.65 | N173: 297.87 | O173: 45849000
A174: 159 | B174: 2019-07-29 | C174: 301.880005 | D174: 302.01001 | E174: 300.850006 | F174: 301.459991 | G174: 38126500 | H174: 298.60614 | I174: 0.9905332346 | J174: 1 | K174: 299.02 | L174: 299.15 | M174: 298 | N174: 298.61 | O174: 38126500
A175: 160 | B175: 2019-07-26 | C175: 300.76001 | D175: 302.230011 | E175: 300.619995 | F175: 302.01001 | G175: 45084100 | H175: 299.15094 | I175: 0.9905331946 | J175: 1 | K175: 297.91 | L175: 299.37 | M175: 297.77 | N175: 299.15 | O175: 45084100
A176: 161 | B176: 2019-07-25 | C176: 300.940002 | D176: 301 | E176: 299.109985 | F176: 300 | G176: 55394100 | H176: 297.159973 | I176: 0.9905332433 | J176: 1 | K176: 298.09 | L176: 298.15 | M176: 296.28 | N176: 297.16 | O176: 55394100
A177: 162 | B177: 2019-07-24 | C177: 299.190002 | D177: 301.440002 | E177: 299.089996 | F177: 301.440002 | G177: 47213200 | H177: 298.586334 | I177: 0.990533214 | J177: 1 | K177: 296.36 | L177: 298.59 | M177: 296.26 | N177: 298.59 | O177: 47213200
A178: 163 | B178: 2019-07-23 | C178: 299.140015 | D178: 300.029999 | E178: 298.220001 | F178: 300.029999 | G178: 44564500 | H178: 297.189667 | I178: 0.9905331733 | J178: 1 | K178: 296.31 | L178: 297.19 | M178: 295.4 | N178: 297.19 | O178: 44564500
A179: 164 | B179: 2019-07-22 | C179: 297.609985 | D179: 298.5 | E179: 297.040009 | F179: 297.899994 | G179: 43638100 | H179: 295.079834 | I179: 0.9905331989 | J179: 1 | K179: 294.79 | L179: 295.67 | M179: 294.23 | N179: 295.08 | O179: 43638100
A180: 165 | B180: 2019-07-19 | C180: 300.040009 | D180: 300.070007 | E180: 296.980011 | F180: 297.170013 | G180: 58678600 | H180: 294.356781 | I180: 0.9905332575 | J180: 1 | K180: 297.2 | L180: 297.23 | M180: 294.17 | N180: 294.36 | O180: 58678600
A181: 166 | B181: 2019-07-18 | C181: 297.190002 | D181: 299.25 | E181: 296.700012 | F181: 298.829987 | G181: 51392600 | H181: 296.001038 | I181: 0.9905332493 | J181: 1 | K181: 294.38 | L181: 296.42 | M181: 293.89 | N181: 296 | O181: 51392600
A182: 167 | B182: 2019-07-17 | C182: 299.75 | D182: 299.929993 | E182: 297.73999 | F182: 297.73999 | G182: 36036300 | H182: 294.921356 | I182: 0.9905332367 | J182: 1 | K182: 296.91 | L182: 297.09 | M182: 294.92 | N182: 294.92 | O182: 36036300
A183: 168 | B183: 2019-07-16 | C183: 300.649994 | D183: 300.880005 | E183: 299.440002 | F183: 299.779999 | G183: 36650100 | H183: 296.942047 | I183: 0.9905332177 | J183: 1 | K183: 297.8 | L183: 298.03 | M183: 296.61 | N183: 296.94 | O183: 36650100
A184: 169 | B184: 2019-07-15 | C184: 301.130005 | D184: 301.130005 | E184: 300.190002 | F184: 300.75 | G184: 33900000 | H184: 297.902863 | I184: 0.9905332103 | J184: 1 | K184: 298.28 | L184: 298.28 | M184: 297.35 | N184: 297.9 | O184: 33900000
A185: 170 | B185: 2019-07-12 | C185: 299.850006 | D185: 300.730011 | E185: 299.51001 | F185: 300.649994 | G185: 40326000 | H185: 297.803802 | I185: 0.9905332045 | J185: 1 | K185: 297.01 | L185: 297.88 | M185: 296.67 | N185: 297.8 | O185: 40326000
A186: 171 | B186: 2019-07-11 | C186: 299.320007 | D186: 299.579987 | E186: 298.200012 | F186: 299.309998 | G186: 50826100 | H186: 296.476501 | I186: 0.9905332364 | J186: 1 | K186: 296.49 | L186: 296.74 | M186: 295.38 | N186: 296.48 | O186: 50826100
A187: 172 | B187: 2019-07-10 | C187: 298.369995 | D187: 299.660004 | E187: 297.779999 | F187: 298.609985 | G187: 58448500 | H187: 295.783112 | I187: 0.9905332268 | J187: 1 | K187: 295.55 | L187: 296.82 | M187: 294.96 | N187: 295.78 | O187: 58448500
A188: 173 | B188: 2019-07-09 | C188: 295.540009 | D188: 297.519989 | E188: 295.480011 | F188: 297.190002 | G188: 41101300 | H188: 294.376587 | I188: 0.9905332784 | J188: 1 | K188: 292.74 | L188: 294.7 | M188: 292.68 | N188: 294.38 | O188: 41101300
A189: 174 | B189: 2019-07-08 | C189: 297.01001 | D189: 298.26001 | E189: 296.220001 | F189: 296.820007 | G189: 45841800 | H189: 294.010101 | I189: 0.9905332999 | J189: 1 | K189: 294.2 | L189: 295.44 | M189: 293.42 | N189: 294.01 | O189: 45841800
A190: 175 | B190: 2019-07-05 | C190: 297.440002 | D190: 298.640015 | E190: 296.01001 | F190: 298.459991 | G190: 51677300 | H190: 295.634552 | I190: 0.9905332739 | J190: 1 | K190: 294.62 | L190: 295.81 | M190: 293.21 | N190: 295.63 | O190: 51677300
A191: 176 | B191: 2019-07-03 | C191: 297.179993 | D191: 298.820007 | E191: 297.019989 | F191: 298.799988 | G191: 40898900 | H191: 295.971344 | I191: 0.9905333196 | J191: 1 | K191: 294.37 | L191: 295.99 | M191: 294.21 | N191: 295.97 | O191: 40898900
A192: 177 | B192: 2019-07-02 | C192: 295.609985 | D192: 296.48999 | E192: 294.679993 | F192: 296.429993 | G192: 61504500 | H192: 293.623779 | I192: 0.9905332994 | J192: 1 | K192: 292.81 | L192: 293.68 | M192: 291.89 | N192: 293.62 | O192: 61504500
A193: 178 | B193: 2019-07-01 | C193: 296.679993 | D193: 296.920013 | E193: 294.329987 | F193: 295.660004 | G193: 79107500 | H193: 292.861084 | I193: 0.9905333154 | J193: 1 | K193: 293.87 | L193: 294.11 | M193: 291.54 | N193: 292.86 | O193: 79107500
A194: 179 | B194: 2019-06-28 | C194: 292.579987 | D194: 293.549988 | E194: 292.01001 | F194: 293 | G194: 59350900 | H194: 290.226227 | I194: 0.990533198 | J194: 1 | K194: 289.81 | L194: 290.77 | M194: 289.25 | N194: 290.23 | O194: 59350900
A195: 180 | B195: 2019-06-27 | C195: 291.309998 | D195: 292.059998 | E195: 290.890015 | F195: 291.5 | G195: 40355200 | H195: 288.740448 | I195: 0.9905332693 | J195: 1 | K195: 288.55 | L195: 289.3 | M195: 288.14 | N195: 288.74 | O195: 40355200
A196: 181 | B196: 2019-06-26 | C196: 291.75 | D196: 292.309998 | E196: 290.350006 | F196: 290.470001 | G196: 51584900 | H196: 287.720184 | I196: 0.9905332152 | J196: 1 | K196: 288.99 | L196: 289.54 | M196: 287.6 | N196: 287.72 | O196: 51584900
A197: 182 | B197: 2019-06-25 | C197: 293.700012 | D197: 293.730011 | E197: 290.640015 | F197: 290.76001 | G197: 82028700 | H197: 288.007477 | I197: 0.9905333165 | J197: 1 | K197: 290.92 | L197: 290.95 | M197: 287.89 | N197: 288.01 | O197: 82028700
A198: 183 | B198: 2019-06-24 | C198: 294.230011 | D198: 294.579987 | E198: 293.470001 | F198: 293.640015 | G198: 47582700 | H198: 290.860199 | I198: 0.9905332521 | J198: 1 | K198: 291.44 | L198: 291.79 | M198: 290.69 | N198: 290.86 | O198: 47582700
A199: 184 | B199: 2019-06-21 | C199: 294.130005 | D199: 295.519989 | E199: 293.76001 | F199: 294 | G199: 83309500 | H199: 291.216797 | I199: 0.9905333231 | J199: 1 | K199: 291.35 | L199: 292.72 | M199: 290.98 | N199: 291.22 | O199: 83309500
A200: 185 | B200: 2019-06-20 | C200: 296.040009 | D200: 296.309998 | E200: 293.130005 | F200: 295.859985 | G200: 116570000 | H200: 291.640717 | I200: 0.9857389704 | J200: 1 | K200: 291.82 | L200: 292.08 | M200: 288.95 | N200: 291.64 | O200: 116570000
... 4300 more rows

Sheet CalculationsAndCharts
A1: CorrelationTrendIndicator.xlsm | R1: Clutter Control
A2: =InputPriceData!A1 -> SPDR S&P 500 ETF Trust (SPY) -NYSEArca (Daily)
R3: Plot Correlations
A4: User Charting Controls | E4: Click to Shift Chart One Bar: | R4: TRUE
A5: Data Control | C5: TRUE | R5: TRUE
A6: =InputPriceData!$B$10 -> 6830 | B6: Available Input Data Rows | E6: Earliest: | F6: =OFFSET(InputPriceData!B15,CalculationsAndCharts!A6,0,1,1) -> 1993-01-29 | R6: TRUE
A7: =MAX(A33:A56896) -> 1250 | B7: Available Calculation Rows | E7: Latest: | F7: =OFFSET(InputPriceData!B15,1,0,1,1) -> 2020-03-13
A8: =MIN(AvailableInputRows-DataPanRows,A7) -> 1250 | B8: Logically Available for Calc / Plot | E8: $ Change: | F8: =G33-G34 -> -1.17
A10: Historical Price Windowing Specifications | F10: Click to Shift
A11: 71 | B11: Input Data Offset (Pan) | F11: Points to Plot
A12: 251 | B12: Data Points to Plot (Zoom)
B13: First: | C13: =OFFSET(B32,A12,0,1,1) -> 2018-11-30 | R13: =IF(OR($R$9=1,$R$9=3),"Value @ Cursor:","") -> 
B14: ="Last: " & IF(OFFSET(InputPriceData!P15,1+A11,0,1,1)="","",TEXT(OFFSET(InputPriceData!P15,1+A11,0,1,1),"H:MM AM/PM")) -> Last: | C14: =B33 -> 2019-11-29 | R14: =IF(OR($R$9=1,$R$9=3),"Correl: "&TEXT(OFFSET(H32,$E$27,0,1,1),"#,##0.00"),"") -> 
A15: User Controls
A17: 10 | B17: Correlation Look Back
A18: 20 | B18: Correlation Look Back
A19: 40 | B19: Correlation Look Back
A25: Help! I would like to plot data
A26: From | B26: 2018-11-30 | C26: =OFFSET(InputPriceData!$A$15,MATCH(B26,OFFSET(InputPriceData!B15,1,0,InputPriceData!$B$10,1),0),0,1,1)-C27 -> 251 | E26: 238
A27: To | B27: 2019-11-29 | C27: =OFFSET(InputPriceData!$A$15,MATCH(B27,OFFSET(InputPriceData!$B$15,1,0,InputPriceData!$B$10,1),0),0,1,1)-1 -> 71 | E27: =$A$12-$E$26+1 -> 14 | T27: Chart clutter work area
H28: Value @ Cursor => | I28: =OFFSET(A32,$E$27,0,1,1)&"(RR)" -> 14(RR) | J28: =OFFSET($B$32,E27,0,1,1) -> 2019-11-11 | K28: =TEXT(OFFSET(D32,$E$27,0,1,1),"#,##0.00")&"(o)" -> 305.92(o) | L28: =TEXT(OFFSET(E32,$E$27,0,1,1),"#,##0.00")&"(h)" -> 307.03(h) | M28: =TEXT(OFFSET(F32,$E$27,0,1,1),"#,##0.00")&"(l)" -> 305.77(l) | N28: =TEXT(OFFSET(G32,$E$27,0,1,1),"#,##0.00")&"(c)" -> 306.84(c) | O28: =TEXT(OFFSET(C32,$E$27,0,1,1),"#,##0.00,,""M""")&"(v)" -> 35.80M(v)
E29: Cursor ==> | AU29: Work Area For Chart Cursors
A31: Rel Row | C31: ="Price Bars: " & InputPriceData!A1 -> Price Bars: SPDR S&P 500 ETF Trust (SPY) -NYSEArca (Daily) | AP31: Used To Color Vol Bars
B32: Date | C32: Volume | D32: Open | E32: High | F32: Low | G32: Close | H32: ="Correl("&$A$17&")" -> Correl(10) | I32: ="Correl("&$A$18&")" -> Correl(20) | J32: ="Correl("&$A$19&")" -> Correl(40) | T32: =H32 -> Correl(10) | U32: =I32 -> Correl(20) | V32: =J32 -> Correl(40) | AP32: Up Vol | AQ32: Dn Vol | AU32: Volume Cursor | AV32: =MAX(OFFSET(C33,0,0,A12,1)) -> 255345600 | AW32: OBVM Cursor | AY32: Price Chart Cursor | BA32: Correl Cursor
A33: 1 | B33: =IF(A33>$A$8,"",OFFSET(InputPriceData!B$15,$A33+$A$11,0,1,1)) -> 2019-11-29 | C33: =IF($A33>$A$8,"",OFFSET(InputPriceData!G$15,CalculationsAndCharts!$A33+$A$11,IF($C$5,8,0),1,1)) -> 36592700 | D33: =IF(A33>$A$8,"",OFFSET(InputPriceData!C$15,CalculationsAndCharts!$A33+$A$11,IF($C$5,8,0),1,1)) -> 313.32 | E33: =IF(A33>$A$8,"",OFFSET(InputPriceData!D$15,CalculationsAndCharts!$A33+$A$11,IF($C$5,8,0),1,1)) -> 313.59 | F33: =IF(A33>$A$8,"",OFFSET(InputPriceData!E$15,CalculationsAndCharts!$A33+$A$11,IF($C$5,8,0),1,1)) -> 312.52 | G33: =IF(A33>$A$8,"",OFFSET(InputPriceData!F$15,CalculationsAndCharts!$A33+$A$11,IF($C$5,8,0),1,1)) -> 312.77 | H33: =IF(A33<$A$8,-CORREL(OFFSET($G33,0,0,$A$17,1),OFFSET($A$33,0,0,$A$17,1)),NA()) -> 0.7037762858 | I33: =IF(A33<$A$8,-CORREL(OFFSET($G33,0,0,$A$18,1),OFFSET($A$33,0,0,$A$18,1)),NA()) -> 0.941004874 | J33: =IF(A33<$A$8,-CORREL(OFFSET($G33,0,0,$A$19,1),OFFSET($A$33,0,0,$A$19,1)),NA()) -> 0.9766152847 | T33: =IF($R$4,H33,NA()) -> 0.7037762858 | U33: =IF($R$5,I33,NA()) -> 0.941004874 | V33: =IF($R$6,J33,NA()) -> 0.9766152847 | AP33: =IF(G33>=D33,C33,NA()) ->  | AQ33: =IF(G33<D33,C33,NA()) -> 36592700 | AU33: =$E$27 -> 14 | AV33: 0 | AW33: =$E$27 -> 14 | AX33: 62500000 | AY33: =$E$27 -> 14 | AZ33: 223.6845 | BA33: =$E$27 -> 14 | BB33: -1
A34: 2 | B34: =IF(A34>$A$8,"",OFFSET(InputPriceData!B$15,$A34+$A$11,0,1,1)) -> 2019-11-27 | C34: =IF(A34>$A$8,"",OFFSET(InputPriceData!G$15,CalculationsAndCharts!$A34+$A$11,IF($C$5,8,0),1,1)) -> 44444600 | D34: =IF(A34>$A$8,"",OFFSET(InputPriceData!C$15,CalculationsAndCharts!$A34+$A$11,IF($C$5,8,0),1,1)) -> 313.07 | E34: =IF(A34>$A$8,"",OFFSET(InputPriceData!D$15,CalculationsAndCharts!$A34+$A$11,IF($C$5,8,0),1,1)) -> 313.94 | F34: =IF(A34>$A$8,"",OFFSET(InputPriceData!E$15,CalculationsAndCharts!$A34+$A$11,IF($C$5,8,0),1,1)) -> 312.83 | G34: =IF(A34>$A$8,"",OFFSET(InputPriceData!F$15,CalculationsAndCharts!$A34+$A$11,IF($C$5,8,0),1,1)) -> 313.94 | H34: 0.732128461 | I34: 0.9342784316 | J34: 0.9775473961 | T34: 0.732128461 | U34: 0.9342784316 | V34: 0.9775473961 | AP34: =IF(G34>=D34,C34,NA()) -> 44444600 | AQ34: =IF(G34<D34,C34,NA()) ->  | AU34: =$E$27 -> 14 | AV34: =CEILING(AV32,10^INT(LOG10(AV32))/8) -> 262500000 | AW34: =$E$27 -> 14 | AX34: 125000000 | AY34: =$E$27 -> 14 | AZ34: 321.7885 | BA34: =$E$27 -> 14 | BB34: 1
A35: 3 | B35: =IF(A35>$A$8,"",OFFSET(InputPriceData!B$15,$A35+$A$11,0,1,1)) -> 2019-11-26 | C35: =IF(A35>$A$8,"",OFFSET(InputPriceData!G$15,CalculationsAndCharts!$A35+$A$11,IF($C$5,8,0),1,1)) -> 37569000 | D35: =IF(A35>$A$8,"",OFFSET(InputPriceData!C$15,CalculationsAndCharts!$A35+$A$11,IF($C$5,8,0),1,1)) -> 311.88 | E35: =IF(A35>$A$8,"",OFFSET(InputPriceData!D$15,CalculationsAndCharts!$A35+$A$11,IF($C$5,8,0),1,1)) -> 312.74 | F35: =IF(A35>$A$8,"",OFFSET(InputPriceData!E$15,CalculationsAndCharts!$A35+$A$11,IF($C$5,8,0),1,1)) -> 311.53 | G35: =IF(A35>$A$8,"",OFFSET(InputPriceData!F$15,CalculationsAndCharts!$A35+$A$11,IF($C$5,8,0),1,1)) -> 312.54 | H35: 0.7089890122 | I35: 0.9362369991 | J35: 0.9762947974 | T35: 0.7089890122 | U35: 0.9362369991 | V35: 0.9762947974 | AP35: =IF(G35>=D35,C35,NA()) -> 37569000 | AQ35: =IF(G35<D35,C35,NA()) -> 
A36: 4 | B36: =IF(A36>$A$8,"",OFFSET(InputPriceData!B$15,$A36+$A$11,0,1,1)) -> 2019-11-25 | C36: =IF(A36>$A$8,"",OFFSET(InputPriceData!G$15,CalculationsAndCharts!$A36+$A$11,IF($C$5,8,0),1,1)) -> 48647200 | D36: =IF(A36>$A$8,"",OFFSET(InputPriceData!C$15,CalculationsAndCharts!$A36+$A$11,IF($C$5,8,0),1,1)) -> 310.45 | E36: =IF(A36>$A$8,"",OFFSET(InputPriceData!D$15,CalculationsAndCharts!$A36+$A$11,IF($C$5,8,0),1,1)) -> 311.84 | F36: =IF(A36>$A$8,"",OFFSET(InputPriceData!E$15,CalculationsAndCharts!$A36+$A$11,IF($C$5,8,0),1,1)) -> 310.45 | G36: =IF(A36>$A$8,"",OFFSET(InputPriceData!F$15,CalculationsAndCharts!$A36+$A$11,IF($C$5,8,0),1,1)) -> 311.84 | H36: 0.680038974 | I36: 0.9354849152 | J36: 0.9739805676 | T36: 0.680038974 | U36: 0.9354849152 | V36: 0.9739805676 | AP36: =IF(G36>=D36,C36,NA()) -> 48647200 | AQ36: =IF(G36<D36,C36,NA()) -> 
A37: 5 | B37: =IF(A37>$A$8,"",OFFSET(InputPriceData!B$15,$A37+$A$11,0,1,1)) -> 2019-11-22 | C37: =IF(A37>$A$8,"",OFFSET(InputPriceData!G$15,CalculationsAndCharts!$A37+$A$11,IF($C$5,8,0),1,1)) -> 44850200 | D37: =IF(A37>$A$8,"",OFFSET(InputPriceData!C$15,CalculationsAndCharts!$A37+$A$11,IF($C$5,8,0),1,1)) -> 309.57 | E37: =IF(A37>$A$8,"",OFFSET(InputPriceData!D$15,CalculationsAndCharts!$A37+$A$11,IF($C$5,8,0),1,1)) -> 309.72 | F37: =IF(A37>$A$8,"",OFFSET(InputPriceData!E$15,CalculationsAndCharts!$A37+$A$11,IF($C$5,8,0),1,1)) -> 308.33 | G37: =IF(A37>$A$8,"",OFFSET(InputPriceData!F$15,CalculationsAndCharts!$A37+$A$11,IF($C$5,8,0),1,1)) -> 309.44 | H37: 0.6638332993 | I37: 0.9355748188 | J37: 0.9616982975 | T37: 0.6638332993 | U37: 0.9355748188 | V37: 0.9616982975 | AQ37: 44850200
A38: 6 | B38: =IF(A38>$A$8,"",OFFSET(InputPriceData!B$15,$A38+$A$11,0,1,1)) -> 2019-11-21 | C38: =IF(A38>$A$8,"",OFFSET(InputPriceData!G$15,CalculationsAndCharts!$A38+$A$11,IF($C$5,8,0),1,1)) -> 54664700 | D38: =IF(A38>$A$8,"",OFFSET(InputPriceData!C$15,CalculationsAndCharts!$A38+$A$11,IF($C$5,8,0),1,1)) -> 309.37 | E38: =IF(A38>$A$8,"",OFFSET(InputPriceData!D$15,CalculationsAndCharts!$A38+$A$11,IF($C$5,8,0),1,1)) -> 309.49 | F38: =IF(A38>$A$8,"",OFFSET(InputPriceData!E$15,CalculationsAndCharts!$A38+$A$11,IF($C$5,8,0),1,1)) -> 307.88 | G38: =IF(A38>$A$8,"",OFFSET(InputPriceData!F$15,CalculationsAndCharts!$A38+$A$11,IF($C$5,8,0),1,1)) -> 308.75 | H38: 0.7235621602 | I38: 0.9487688704 | J38: 0.9550380626 | T38: 0.7235621602 | U38: 0.9487688704 | V38: 0.9550380626 | AQ38: 54664700
A39: 7 | B39: =IF(A39>$A$8,"",OFFSET(InputPriceData!B$15,$A39+$A$11,0,1,1)) -> 2019-11-20 | C39: =IF(A39>$A$8,"",OFFSET(InputPriceData!G$15,CalculationsAndCharts!$A39+$A$11,IF($C$5,8,0),1,1)) -> 79406200 | D39: =IF(A39>$A$8,"",OFFSET(InputPriceData!C$15,CalculationsAndCharts!$A39+$A$11,IF($C$5,8,0),1,1)) -> 309.76 | E39: =IF(A39>$A$8,"",OFFSET(InputPriceData!D$15,CalculationsAndCharts!$A39+$A$11,IF($C$5,8,0),1,1)) -> 310.32 | F39: =IF(A39>$A$8,"",OFFSET(InputPriceData!E$15,CalculationsAndCharts!$A39+$A$11,IF($C$5,8,0),1,1)) -> 307.55 | G39: =IF(A39>$A$8,"",OFFSET(InputPriceData!F$15,CalculationsAndCharts!$A39+$A$11,IF($C$5,8,0),1,1)) -> 309.25 | H39: 0.8632534583 | I39: 0.9663734764 | J39: 0.9418640593 | T39: 0.8632534583 | U39: 0.9663734764 | V39: 0.9418640593 | AQ39: 79406200
A40: 8 | B40: =IF(A40>$A$8,"",OFFSET(InputPriceData!B$15,$A40+$A$11,0,1,1)) -> 2019-11-19 | C40: =IF(A40>$A$8,"",OFFSET(InputPriceData!G$15,CalculationsAndCharts!$A40+$A$11,IF($C$5,8,0),1,1)) -> 67804700 | D40: =IF(A40>$A$8,"",OFFSET(InputPriceData!C$15,CalculationsAndCharts!$A40+$A$11,IF($C$5,8,0),1,1)) -> 311.15 | E40: =IF(A40>$A$8,"",OFFSET(InputPriceData!D$15,CalculationsAndCharts!$A40+$A$11,IF($C$5,8,0),1,1)) -> 311.16 | F40: =IF(A40>$A$8,"",OFFSET(InputPriceData!E$15,CalculationsAndCharts!$A40+$A$11,IF($C$5,8,0),1,1)) -> 309.7 | G40: =IF(A40>$A$8,"",OFFSET(InputPriceData!F$15,CalculationsAndCharts!$A40+$A$11,IF($C$5,8,0),1,1)) -> 310.4 | H40: 0.9364659201 | I40: 0.9767091191 | J40: 0.9229180464 | T40: 0.9364659201 | U40: 0.9767091191 | V40: 0.9229180464 | AQ40: 67804700
A41: 9 | B41: =IF(A41>$A$8,"",OFFSET(InputPriceData!B$15,$A41+$A$11,0,1,1)) -> 2019-11-18 | C41: =IF(A41>$A$8,"",OFFSET(InputPriceData!G$15,CalculationsAndCharts!$A41+$A$11,IF($C$5,8,0),1,1)) -> 49228000 | D41: =IF(A41>$A$8,"",OFFSET(InputPriceData!C$15,CalculationsAndCharts!$A41+$A$11,IF($C$5,8,0),1,1)) -> 310.01 | E41: =IF(A41>$A$8,"",OFFSET(InputPriceData!D$15,CalculationsAndCharts!$A41+$A$11,IF($C$5,8,0),1,1)) -> 310.75 | F41: =IF(A41>$A$8,"",OFFSET(InputPriceData!E$15,CalculationsAndCharts!$A41+$A$11,IF($C$5,8,0),1,1)) -> 309.51 | G41: =IF(A41>$A$8,"",OFFSET(InputPriceData!F$15,CalculationsAndCharts!$A41+$A$11,IF($C$5,8,0),1,1)) -> 310.49 | H41: 0.9312363289 | I41: 0.9775259293 | J41: 0.9080113575 | T41: 0.9312363289 | U41: 0.9775259293 | V41: 0.9080113575 | AP41: 49228000
A42: 10 | B42: =IF(A42>$A$8,"",OFFSET(InputPriceData!B$15,$A42+$A$11,0,1,1)) -> 2019-11-15 | C42: =IF(A42>$A$8,"",OFFSET(InputPriceData!G$15,CalculationsAndCharts!$A42+$A$11,IF($C$5,8,0),1,1)) -> 62023600 | D42: =IF(A42>$A$8,"",OFFSET(InputPriceData!C$15,CalculationsAndCharts!$A42+$A$11,IF($C$5,8,0),1,1)) -> 309.5 | E42: =IF(A42>$A$8,"",OFFSET(InputPriceData!D$15,CalculationsAndCharts!$A42+$A$11,IF($C$5,8,0),1,1)) -> 310.31 | F42: =IF(A42>$A$8,"",OFFSET(InputPriceData!E$15,CalculationsAndCharts!$A42+$A$11,IF($C$5,8,0),1,1)) -> 308.74 | G42: =IF(A42>$A$8,"",OFFSET(InputPriceData!F$15,CalculationsAndCharts!$A42+$A$11,IF($C$5,8,0),1,1)) -> 310.26 | H42: 0.8979671413 | I42: 0.9760034371 | J42: 0.8794343658 | T42: 0.8979671413 | U42: 0.9760034371 | V42: 0.8794343658 | AP42: 62023600
A43: 11 | B43: =IF(A43>$A$8,"",OFFSET(InputPriceData!B$15,$A43+$A$11,0,1,1)) -> 2019-11-14 | C43: =IF(A43>$A$8,"",OFFSET(InputPriceData!G$15,CalculationsAndCharts!$A43+$A$11,IF($C$5,8,0),1,1)) -> 51219900 | D43: =IF(A43>$A$8,"",OFFSET(InputPriceData!C$15,CalculationsAndCharts!$A43+$A$11,IF($C$5,8,0),1,1)) -> 307.28 | E43: =IF(A43>$A$8,"",OFFSET(InputPriceData!D$15,CalculationsAndCharts!$A43+$A$11,IF($C$5,8,0),1,1)) -> 308.13 | F43: =IF(A43>$A$8,"",OFFSET(InputPriceData!E$15,CalculationsAndCharts!$A43+$A$11,IF($C$5,8,0),1,1)) -> 306.58 | G43: =IF(A43>$A$8,"",OFFSET(InputPriceData!F$15,CalculationsAndCharts!$A43+$A$11,IF($C$5,8,0),1,1)) -> 308.04 | H43: 0.9401514183 | I43: 0.9757508805 | J43: 0.847430964 | T43: 0.9401514183 | U43: 0.9757508805 | V43: 0.847430964 | AP43: 51219900
A44: 12 | B44: =IF(A44>$A$8,"",OFFSET(InputPriceData!B$15,$A44+$A$11,0,1,1)) -> 2019-11-13 | C44: =IF(A44>$A$8,"",OFFSET(InputPriceData!G$15,CalculationsAndCharts!$A44+$A$11,IF($C$5,8,0),1,1)) -> 53917700 | D44: =IF(A44>$A$8,"",OFFSET(InputPriceData!C$15,CalculationsAndCharts!$A44+$A$11,IF($C$5,8,0),1,1)) -> 306.4 | E44: =IF(A44>$A$8,"",OFFSET(InputPriceData!D$15,CalculationsAndCharts!$A44+$A$11,IF($C$5,8,0),1,1)) -> 308.03 | F44: =IF(A44>$A$8,"",OFFSET(InputPriceData!E$15,CalculationsAndCharts!$A44+$A$11,IF($C$5,8,0),1,1)) -> 306.15 | G44: =IF(A44>$A$8,"",OFFSET(InputPriceData!F$15,CalculationsAndCharts!$A44+$A$11,IF($C$5,8,0),1,1)) -> 307.59 | H44: 0.8753852845 | I44: 0.9757777578 | J44: 0.8040584565 | T44: 0.8753852845 | U44: 0.9757777578 | V44: 0.8040584565 | AP44: 53917700
A45: 13 | B45: =IF(A45>$A$8,"",OFFSET(InputPriceData!B$15,$A45+$A$11,0,1,1)) -> 2019-11-12 | C45: =IF(A45>$A$8,"",OFFSET(InputPriceData!G$15,CalculationsAndCharts!$A45+$A$11,IF($C$5,8,0),1,1)) -> 46484600 | D45: =IF(A45>$A$8,"",OFFSET(InputPriceData!C$15,CalculationsAndCharts!$A45+$A$11,IF($C$5,8,0),1,1)) -> 307.24 | E45: =IF(A45>$A$8,"",OFFSET(InputPriceData!D$15,CalculationsAndCharts!$A45+$A$11,IF($C$5,8,0),1,1)) -> 308.47 | F45: =IF(A45>$A$8,"",OFFSET(InputPriceData!E$15,CalculationsAndCharts!$A45+$A$11,IF($C$5,8,0),1,1)) -> 306.64 | G45: =IF(A45>$A$8,"",OFFSET(InputPriceData!F$15,CalculationsAndCharts!$A45+$A$11,IF($C$5,8,0),1,1)) -> 307.49 | H45: 0.9072467339 | I45: 0.9771340937 | J45: 0.7568735215 | T45: 0.9072467339 | U45: 0.9771340937 | V45: 0.7568735215 | AP45: 46484600
A46: 14 | B46: =IF(A46>$A$8,"",OFFSET(InputPriceData!B$15,$A46+$A$11,0,1,1)) -> 2019-11-11 | C46: =IF(A46>$A$8,"",OFFSET(InputPriceData!G$15,CalculationsAndCharts!$A46+$A$11,IF($C$5,8,0),1,1)) -> 35797300 | D46: =IF(A46>$A$8,"",OFFSET(InputPriceData!C$15,CalculationsAndCharts!$A46+$A$11,IF($C$5,8,0),1,1)) -> 305.92 | E46: =IF(A46>$A$8,"",OFFSET(InputPriceData!D$15,CalculationsAndCharts!$A46+$A$11,IF($C$5,8,0),1,1)) -> 307.03 | F46: =IF(A46>$A$8,"",OFFSET(InputPriceData!E$15,CalculationsAndCharts!$A46+$A$11,IF($C$5,8,0),1,1)) -> 305.77 | G46: =IF(A46>$A$8,"",OFFSET(InputPriceData!F$15,CalculationsAndCharts!$A46+$A$11,IF($C$5,8,0),1,1)) -> 306.84 | H46: 0.9280106133 | I46: 0.970821351 | J46: 0.7063944068 | T46: 0.9280106133 | U46: 0.970821351 | V46: 0.7063944068 | AP46: 35797300
A47: 15 | B47: =IF(A47>$A$8,"",OFFSET(InputPriceData!B$15,$A47+$A$11,0,1,1)) -> 2019-11-08 | C47: =IF(A47>$A$8,"",OFFSET(InputPriceData!G$15,CalculationsAndCharts!$A47+$A$11,IF($C$5,8,0),1,1)) -> 49032100 | D47: =IF(A47>$A$8,"",OFFSET(InputPriceData!C$15,CalculationsAndCharts!$A47+$A$11,IF($C$5,8,0),1,1)) -> 306.29 | E47: =IF(A47>$A$8,"",OFFSET(InputPriceData!D$15,CalculationsAndCharts!$A47+$A$11,IF($C$5,8,0),1,1)) -> 307.49 | F47: =IF(A47>$A$8,"",OFFSET(InputPriceData!E$15,CalculationsAndCharts!$A47+$A$11,IF($C$5,8,0),1,1)) -> 305.53 | G47: =IF(A47>$A$8,"",OFFSET(InputPriceData!F$15,CalculationsAndCharts!$A47+$A$11,IF($C$5,8,0),1,1)) -> 307.43 | H47: 0.9452097531 | I47: 0.9731625292 | J47: 0.6582106246 | T47: 0.9452097531 | U47: 0.9731625292 | V47: 0.6582106246 | AP47: 49032100
A48: 16 | B48: =IF(A48>$A$8,"",OFFSET(InputPriceData!B$15,$A48+$A$11,0,1,1)) -> 2019-11-07 | C48: =IF(A48>$A$8,"",OFFSET(InputPriceData!G$15,CalculationsAndCharts!$A48+$A$11,IF($C$5,8,0),1,1)) -> 54272300 | D48: =IF(A48>$A$8,"",OFFSET(InputPriceData!C$15,CalculationsAndCharts!$A48+$A$11,IF($C$5,8,0),1,1)) -> 307.06 | E48: =IF(A48>$A$8,"",OFFSET(InputPriceData!D$15,CalculationsAndCharts!$A48+$A$11,IF($C$5,8,0),1,1)) -> 308.14 | F48: =IF(A48>$A$8,"",OFFSET(InputPriceData!E$15,CalculationsAndCharts!$A48+$A$11,IF($C$5,8,0),1,1)) -> 306.15 | G48: =IF(A48>$A$8,"",OFFSET(InputPriceData!F$15,CalculationsAndCharts!$A48+$A$11,IF($C$5,8,0),1,1)) -> 306.67 | H48: 0.9474345482 | I48: 0.9719767468 | J48: 0.5943276319 | T48: 0.9474345482 | U48: 0.9719767468 | V48: 0.5943276319 | AQ48: 54272300
A49: 17 | B49: =IF(A49>$A$8,"",OFFSET(InputPriceData!B$15,$A49+$A$11,0,1,1)) -> 2019-11-06 | C49: =IF(A49>$A$8,"",OFFSET(InputPriceData!G$15,CalculationsAndCharts!$A49+$A$11,IF($C$5,8,0),1,1)) -> 46487100 | D49: =IF(A49>$A$8,"",OFFSET(InputPriceData!C$15,CalculationsAndCharts!$A49+$A$11,IF($C$5,8,0),1,1)) -> 305.53 | E49: =IF(A49>$A$8,"",OFFSET(InputPriceData!D$15,CalculationsAndCharts!$A49+$A$11,IF($C$5,8,0),1,1)) -> 305.9 | F49: =IF(A49>$A$8,"",OFFSET(InputPriceData!E$15,CalculationsAndCharts!$A49+$A$11,IF($C$5,8,0),1,1)) -> 304.56 | G49: =IF(A49>$A$8,"",OFFSET(InputPriceData!F$15,CalculationsAndCharts!$A49+$A$11,IF($C$5,8,0),1,1)) -> 305.6 | H49: 0.9511304329 | I49: 0.9686675229 | J49: 0.5226372801 | T49: 0.9511304329 | U49: 0.9686675229 | V49: 0.5226372801 | AP49: 46487100
A50: 18 | B50: =IF(A50>$A$8,"",OFFSET(InputPriceData!B$15,$A50+$A$11,0,1,1)) -> 2019-11-05 | C50: =IF(A50>$A$8,"",OFFSET(InputPriceData!G$15,CalculationsAndCharts!$A50+$A$11,IF($C$5,8,0),1,1)) -> 42933200 | D50: =IF(A50>$A$8,"",OFFSET(InputPriceData!C$15,CalculationsAndCharts!$A50+$A$11,IF($C$5,8,0),1,1)) -> 306.09 | E50: =IF(A50>$A$8,"",OFFSET(InputPriceData!D$15,CalculationsAndCharts!$A50+$A$11,IF($C$5,8,0),1,1)) -> 306.41 | F50: =IF(A50>$A$8,"",OFFSET(InputPriceData!E$15,CalculationsAndCharts!$A50+$A$11,IF($C$5,8,0),1,1)) -> 305.21 | G50: =IF(A50>$A$8,"",OFFSET(InputPriceData!F$15,CalculationsAndCharts!$A50+$A$11,IF($C$5,8,0),1,1)) -> 305.53 | H50: 0.963842702 | I50: 0.9628073109 | J50: 0.4569936754 | T50: 0.963842702 | U50: 0.9628073109 | V50: 0.4569936754 | AQ50: 42933200
A51: 19 | B51: =IF(A51>$A$8,"",OFFSET(InputPriceData!B$15,$A51+$A$11,0,1,1)) -> 2019-11-04 | C51: =IF(A51>$A$8,"",OFFSET(InputPriceData!G$15,CalculationsAndCharts!$A51+$A$11,IF($C$5,8,0),1,1)) -> 60606900 | D51: =IF(A51>$A$8,"",OFFSET(InputPriceData!C$15,CalculationsAndCharts!$A51+$A$11,IF($C$5,8,0),1,1)) -> 306.34 | E51: =IF(A51>$A$8,"",OFFSET(InputPriceData!D$15,CalculationsAndCharts!$A51+$A$11,IF($C$5,8,0),1,1)) -> 306.49 | F51: =IF(A51>$A$8,"",OFFSET(InputPriceData!E$15,CalculationsAndCharts!$A51+$A$11,IF($C$5,8,0),1,1)) -> 305.46 | G51: =IF(A51>$A$8,"",OFFSET(InputPriceData!F$15,CalculationsAndCharts!$A51+$A$11,IF($C$5,8,0),1,1)) -> 305.87 | H51: 0.9672372242 | I51: 0.9501734895 | J51: 0.4037364495 | T51: 0.9672372242 | U51: 0.9501734895 | V51: 0.4037364495 | AQ51: 60606900
A52: 20 | B52: =IF(A52>$A$8,"",OFFSET(InputPriceData!B$15,$A52+$A$11,0,1,1)) -> 2019-11-01 | C52: =IF(A52>$A$8,"",OFFSET(InputPriceData!G$15,CalculationsAndCharts!$A52+$A$11,IF($C$5,8,0),1,1)) -> 71141500 | D52: =IF(A52>$A$8,"",OFFSET(InputPriceData!C$15,CalculationsAndCharts!$A52+$A$11,IF($C$5,8,0),1,1)) -> 303.43 | E52: =IF(A52>$A$8,"",OFFSET(InputPriceData!D$15,CalculationsAndCharts!$A52+$A$11,IF($C$5,8,0),1,1)) -> 304.69 | F52: =IF(A52>$A$8,"",OFFSET(InputPriceData!E$15,CalculationsAndCharts!$A52+$A$11,IF($C$5,8,0),1,1)) -> 303.25 | G52: =IF(A52>$A$8,"",OFFSET(InputPriceData!F$15,CalculationsAndCharts!$A52+$A$11,IF($C$5,8,0),1,1)) -> 304.64 | H52: 0.9421072988 | I52: 0.9437986875 | J52: 0.3386872424 | T52: 0.9421072988 | U52: 0.9437986875 | V52: 0.3386872424 | AP52: 71141500
A53: 21 | B53: =IF(A53>$A$8,"",OFFSET(InputPriceData!B$15,$A53+$A$11,0,1,1)) -> 2019-10-31 | C53: =IF(A53>$A$8,"",OFFSET(InputPriceData!G$15,CalculationsAndCharts!$A53+$A$11,IF($C$5,8,0),1,1)) -> 69053800 | D53: =IF(A53>$A$8,"",OFFSET(InputPriceData!C$15,CalculationsAndCharts!$A53+$A$11,IF($C$5,8,0),1,1)) -> 302.64 | E53: =IF(A53>$A$8,"",OFFSET(InputPriceData!D$15,CalculationsAndCharts!$A53+$A$11,IF($C$5,8,0),1,1)) -> 302.64 | F53: =IF(A53>$A$8,"",OFFSET(InputPriceData!E$15,CalculationsAndCharts!$A53+$A$11,IF($C$5,8,0),1,1)) -> 300.25 | G53: =IF(A53>$A$8,"",OFFSET(InputPriceData!F$15,CalculationsAndCharts!$A53+$A$11,IF($C$5,8,0),1,1)) -> 301.85 | H53: 0.9456232552 | I53: 0.92408133 | J53: 0.2715333079 | T53: 0.9456232552 | U53: 0.92408133 | V53: 0.2715333079 | AQ53: 69053800
A54: 22 | B54: =IF(A54>$A$8,"",OFFSET(InputPriceData!B$15,$A54+$A$11,0,1,1)) -> 2019-10-30 | C54: =IF(A54>$A$8,"",OFFSET(InputPriceData!G$15,CalculationsAndCharts!$A54+$A$11,IF($C$5,8,0),1,1)) -> 49643900 | D54: =IF(A54>$A$8,"",OFFSET(InputPriceData!C$15,CalculationsAndCharts!$A54+$A$11,IF($C$5,8,0),1,1)) -> 301.95 | E54: =IF(A54>$A$8,"",OFFSET(InputPriceData!D$15,CalculationsAndCharts!$A54+$A$11,IF($C$5,8,0),1,1)) -> 303.06 | F54: =IF(A54>$A$8,"",OFFSET(InputPriceData!E$15,CalculationsAndCharts!$A54+$A$11,IF($C$5,8,0),1,1)) -> 300.51 | G54: =IF(A54>$A$8,"",OFFSET(InputPriceData!F$15,CalculationsAndCharts!$A54+$A$11,IF($C$5,8,0),1,1)) -> 302.65 | H54: 0.927264393 | I54: 0.93109739 | J54: 0.2205500046 | T54: 0.927264393 | U54: 0.93109739 | V54: 0.2205500046 | AP54: 49643900
A55: 23 | B55: =IF(A55>$A$8,"",OFFSET(InputPriceData!B$15,$A55+$A$11,0,1,1)) -> 2019-10-29 | C55: =IF(A55>$A$8,"",OFFSET(InputPriceData!G$15,CalculationsAndCharts!$A55+$A$11,IF($C$5,8,0),1,1)) -> 44284900 | D55: =IF(A55>$A$8,"",OFFSET(InputPriceData!C$15,CalculationsAndCharts!$A55+$A$11,IF($C$5,8,0),1,1)) -> 301.52 | E55: =IF(A55>$A$8,"",OFFSET(InputPriceData!D$15,CalculationsAndCharts!$A55+$A$11,IF($C$5,8,0),1,1)) -> 302.74 | F55: =IF(A55>$A$8,"",OFFSET(InputPriceData!E$15,CalculationsAndCharts!$A55+$A$11,IF($C$5,8,0),1,1)) -> 301.38 | G55: =IF(A55>$A$8,"",OFFSET(InputPriceData!F$15,CalculationsAndCharts!$A55+$A$11,IF($C$5,8,0),1,1)) -> 301.73 | H55: 0.9026846641 | I55: 0.9320053352 | J55: 0.1961372389 | T55: 0.9026846641 | U55: 0.9320053352 | V55: 0.1961372389 | AP55: 44284900
A56: 24 | B56: =IF(A56>$A$8,"",OFFSET(InputPriceData!B$15,$A56+$A$11,0,1,1)) -> 2019-10-28 | C56: =IF(A56>$A$8,"",OFFSET(InputPriceData!G$15,CalculationsAndCharts!$A56+$A$11,IF($C$5,8,0),1,1)) -> 42147000 | D56: =IF(A56>$A$8,"",OFFSET(InputPriceData!C$15,CalculationsAndCharts!$A56+$A$11,IF($C$5,8,0),1,1)) -> 301.46 | E56: =IF(A56>$A$8,"",OFFSET(InputPriceData!D$15,CalculationsAndCharts!$A56+$A$11,IF($C$5,8,0),1,1)) -> 302.36 | F56: =IF(A56>$A$8,"",OFFSET(InputPriceData!E$15,CalculationsAndCharts!$A56+$A$11,IF($C$5,8,0),1,1)) -> 301.43 | G56: =IF(A56>$A$8,"",OFFSET(InputPriceData!F$15,CalculationsAndCharts!$A56+$A$11,IF($C$5,8,0),1,1)) -> 301.82 | H56: 0.8328274467 | I56: 0.9031673736 | J56: 0.2064561222 | T56: 0.8328274467 | U56: 0.9031673736 | V56: 0.2064561222 | AP56: 42147000
A57: 25 | B57: =IF(A57>$A$8,"",OFFSET(InputPriceData!B$15,$A57+$A$11,0,1,1)) -> 2019-10-25 | C57: =IF(A57>$A$8,"",OFFSET(InputPriceData!G$15,CalculationsAndCharts!$A57+$A$11,IF($C$5,8,0),1,1)) -> 45205400 | D57: =IF(A57>$A$8,"",OFFSET(InputPriceData!C$15,CalculationsAndCharts!$A57+$A$11,IF($C$5,8,0),1,1)) -> 298.27 | E57: =IF(A57>$A$8,"",OFFSET(InputPriceData!D$15,CalculationsAndCharts!$A57+$A$11,IF($C$5,8,0),1,1)) -> 300.72 | F57: =IF(A57>$A$8,"",OFFSET(InputPriceData!E$15,CalculationsAndCharts!$A57+$A$11,IF($C$5,8,0),1,1)) -> 298.21 | G57: =IF(A57>$A$8,"",OFFSET(InputPriceData!F$15,CalculationsAndCharts!$A57+$A$11,IF($C$5,8,0),1,1)) -> 300.12 | H57: 0.8385045187 | I57: 0.7993830596 | J57: 0.1932267091 | T57: 0.8385045187 | U57: 0.7993830596 | V57: 0.1932267091 | AP57: 45205400
A58: 26 | B58: =IF(A58>$A$8,"",OFFSET(InputPriceData!B$15,$A58+$A$11,0,1,1)) -> 2019-10-24 | C58: =IF(A58>$A$8,"",OFFSET(InputPriceData!G$15,CalculationsAndCharts!$A58+$A$11,IF($C$5,8,0),1,1)) -> 35453100 | D58: =IF(A58>$A$8,"",OFFSET(InputPriceData!C$15,CalculationsAndCharts!$A58+$A$11,IF($C$5,8,0),1,1)) -> 299.44 | E58: =IF(A58>$A$8,"",OFFSET(InputPriceData!D$15,CalculationsAndCharts!$A58+$A$11,IF($C$5,8,0),1,1)) -> 299.6 | F58: =IF(A58>$A$8,"",OFFSET(InputPriceData!E$15,CalculationsAndCharts!$A58+$A$11,IF($C$5,8,0),1,1)) -> 297.99 | G58: =IF(A58>$A$8,"",OFFSET(InputPriceData!F$15,CalculationsAndCharts!$A58+$A$11,IF($C$5,8,0),1,1)) -> 298.9 | H58: 0.8366192334 | I58: 0.7172805651 | J58: 0.1897617875 | T58: 0.8366192334 | U58: 0.7172805651 | V58: 0.1897617875 | AQ58: 35453100
A59: 27 | B59: =IF(A59>$A$8,"",OFFSET(InputPriceData!B$15,$A59+$A$11,0,1,1)) -> 2019-10-23 | C59: =IF(A59>$A$8,"",OFFSET(InputPriceData!G$15,CalculationsAndCharts!$A59+$A$11,IF($C$5,8,0),1,1)) -> 34352200 | D59: =IF(A59>$A$8,"",OFFSET(InputPriceData!C$15,CalculationsAndCharts!$A59+$A$11,IF($C$5,8,0),1,1)) -> 297.27 | E59: =IF(A59>$A$8,"",OFFSET(InputPriceData!D$15,CalculationsAndCharts!$A59+$A$11,IF($C$5,8,0),1,1)) -> 298.47 | F59: =IF(A59>$A$8,"",OFFSET(InputPriceData!E$15,CalculationsAndCharts!$A59+$A$11,IF($C$5,8,0),1,1)) -> 297.04 | G59: =IF(A59>$A$8,"",OFFSET(InputPriceData!F$15,CalculationsAndCharts!$A59+$A$11,IF($C$5,8,0),1,1)) -> 298.41 | H59: 0.8379112689 | I59: 0.5906834956 | J59: 0.2275121546 | T59: 0.8379112689 | U59: 0.5906834956 | V59: 0.2275121546 | AP59: 34352200
A60: 28 | B60: =IF(A60>$A$8,"",OFFSET(InputPriceData!B$15,$A60+$A$11,0,1,1)) -> 2019-10-22 | C60: =IF(A60>$A$8,"",OFFSET(InputPriceData!G$15,CalculationsAndCharts!$A60+$A$11,IF($C$5,8,0),1,1)) -> 48594700 | D60: =IF(A60>$A$8,"",OFFSET(InputPriceData!C$15,CalculationsAndCharts!$A60+$A$11,IF($C$5,8,0),1,1)) -> 299.11 | E60: =IF(A60>$A$8,"",OFFSET(InputPriceData!D$15,CalculationsAndCharts!$A60+$A$11,IF($C$5,8,0),1,1)) -> 299.43 | F60: =IF(A60>$A$8,"",OFFSET(InputPriceData!E$15,CalculationsAndCharts!$A60+$A$11,IF($C$5,8,0),1,1)) -> 297.45 | G60: =IF(A60>$A$8,"",OFFSET(InputPriceData!F$15,CalculationsAndCharts!$A60+$A$11,IF($C$5,8,0),1,1)) -> 297.55 | H60: 0.8676856647 | I60: 0.4382820209 | J60: 0.2755622382 | T60: 0.8676856647 | U60: 0.4382820209 | V60: 0.2755622382 | AQ60: 48594700
A61: 29 | B61: =IF(A61>$A$8,"",OFFSET(InputPriceData!B$15,$A61+$A$11,0,1,1)) -> 2019-10-21 | C61: =IF(A61>$A$8,"",OFFSET(InputPriceData!G$15,CalculationsAndCharts!$A61+$A$11,IF($C$5,8,0),1,1)) -> 39048600 | D61: =IF(A61>$A$8,"",OFFSET(InputPriceData!C$15,CalculationsAndCharts!$A61+$A$11,IF($C$5,8,0),1,1)) -> 297.96 | E61: =IF(A61>$A$8,"",OFFSET(InputPriceData!D$15,CalculationsAndCharts!$A61+$A$11,IF($C$5,8,0),1,1)) -> 298.74 | F61: =IF(A61>$A$8,"",OFFSET(InputPriceData!E$15,CalculationsAndCharts!$A61+$A$11,IF($C$5,8,0),1,1)) -> 297.48 | G61: =IF(A61>$A$8,"",OFFSET(InputPriceData!F$15,CalculationsAndCharts!$A61+$A$11,IF($C$5,8,0),1,1)) -> 298.52 | H61: 0.91327106 | I61: 0.3353079737 | J61: 0.31432654 | T61: 0.91327106 | U61: 0.3353079737 | V61: 0.31432654 | AP61: 39048600
A62: 30 | B62: =IF(A62>$A$8,"",OFFSET(InputPriceData!B$15,$A62+$A$11,0,1,1)) -> 2019-10-18 | C62: =IF(A62>$A$8,"",OFFSET(InputPriceData!G$15,CalculationsAndCharts!$A62+$A$11,IF($C$5,8,0),1,1)) -> 64304000 | D62: =IF(A62>$A$8,"",OFFSET(InputPriceData!C$15,CalculationsAndCharts!$A62+$A$11,IF($C$5,8,0),1,1)) -> 297.23 | E62: =IF(A62>$A$8,"",OFFSET(InputPriceData!D$15,CalculationsAndCharts!$A62+$A$11,IF($C$5,8,0),1,1)) -> 297.94 | F62: =IF(A62>$A$8,"",OFFSET(InputPriceData!E$15,CalculationsAndCharts!$A62+$A$11,IF($C$5,8,0),1,1)) -> 295.58 | G62: =IF(A62>$A$8,"",OFFSET(InputPriceData!F$15,CalculationsAndCharts!$A62+$A$11,IF($C$5,8,0),1,1)) -> 296.51 | H62: 0.8688432574 | I62: 0.1322760197 | J62: 0.3545819047 | T62: 0.8688432574 | U62: 0.1322760197 | V62: 0.3545819047 | AQ62: 64304000
A63: 31 | B63: =IF(A63>$A$8,"",OFFSET(InputPriceData!B$15,$A63+$A$11,0,1,1)) -> 2019-10-17 | C63: =IF(A63>$A$8,"",OFFSET(InputPriceData!G$15,CalculationsAndCharts!$A63+$A$11,IF($C$5,8,0),1,1)) -> 45736600 | D63: =IF(A63>$A$8,"",OFFSET(InputPriceData!C$15,CalculationsAndCharts!$A63+$A$11,IF($C$5,8,0),1,1)) -> 298.21 | E63: =IF(A63>$A$8,"",OFFSET(InputPriceData!D$15,CalculationsAndCharts!$A63+$A$11,IF($C$5,8,0),1,1)) -> 298.77 | F63: =IF(A63>$A$8,"",OFFSET(InputPriceData!E$15,CalculationsAndCharts!$A63+$A$11,IF($C$5,8,0),1,1)) -> 297.06 | G63: =IF(A63>$A$8,"",OFFSET(InputPriceData!F$15,CalculationsAndCharts!$A63+$A$11,IF($C$5,8,0),1,1)) -> 297.82 | H63: 0.7881386984 | I63: -0.03219017628 | J63: 0.3569144334 | T63: 0.7881386984 | U63: -0.03219017628 | V63: 0.3569144334 | AQ63: 45736600
A64: 32 | B64: =IF(A64>$A$8,"",OFFSET(InputPriceData!B$15,$A64+$A$11,0,1,1)) -> 2019-10-16 | C64: =IF(A64>$A$8,"",OFFSET(InputPriceData!G$15,CalculationsAndCharts!$A64+$A$11,IF($C$5,8,0),1,1)) -> 48928200 | D64: =IF(A64>$A$8,"",OFFSET(InputPriceData!C$15,CalculationsAndCharts!$A64+$A$11,IF($C$5,8,0),1,1)) -> 296.91 | E64: =IF(A64>$A$8,"",OFFSET(InputPriceData!D$15,CalculationsAndCharts!$A64+$A$11,IF($C$5,8,0),1,1)) -> 297.7 | F64: =IF(A64>$A$8,"",OFFSET(InputPriceData!E$15,CalculationsAndCharts!$A64+$A$11,IF($C$5,8,0),1,1)) -> 296.46 | G64: =IF(A64>$A$8,"",OFFSET(InputPriceData!F$15,CalculationsAndCharts!$A64+$A$11,IF($C$5,8,0),1,1)) -> 296.94 | H64: 0.7727219486 | I64: -0.2645770099 | J64: 0.3449780789 | T64: 0.7727219486 | U64: -0.2645770099 | V64: 0.3449780789 | AP64: 48928200
A65: 33 | B65: =IF(A65>$A$8,"",OFFSET(InputPriceData!B$15,$A65+$A$11,0,1,1)) -> 2019-10-15 | C65: =IF(A65>$A$8,"",OFFSET(InputPriceData!G$15,CalculationsAndCharts!$A65+$A$11,IF($C$5,8,0),1,1)) -> 46754500 | D65: =IF(A65>$A$8,"",OFFSET(InputPriceData!C$15,CalculationsAndCharts!$A65+$A$11,IF($C$5,8,0),1,1)) -> 295.65 | E65: =IF(A65>$A$8,"",OFFSET(InputPriceData!D$15,CalculationsAndCharts!$A65+$A$11,IF($C$5,8,0),1,1)) -> 298.23 | F65: =IF(A65>$A$8,"",OFFSET(InputPriceData!E$15,CalculationsAndCharts!$A65+$A$11,IF($C$5,8,0),1,1)) -> 295.52 | G65: =IF(A65>$A$8,"",OFFSET(InputPriceData!F$15,CalculationsAndCharts!$A65+$A$11,IF($C$5,8,0),1,1)) -> 297.42 | H65: 0.7819208361 | I65: -0.4617074257 | J65: 0.3548234943 | T65: 0.7819208361 | U65: -0.4617074257 | V65: 0.3548234943 | AP65: 46754500
A66: 34 | B66: =IF(A66>$A$8,"",OFFSET(InputPriceData!B$15,$A66+$A$11,0,1,1)) -> 2019-10-14 | C66: =IF(A66>$A$8,"",OFFSET(InputPriceData!G$15,CalculationsAndCharts!$A66+$A$11,IF($C$5,8,0),1,1)) -> 40394800 | D66: =IF(A66>$A$8,"",OFFSET(InputPriceData!C$15,CalculationsAndCharts!$A66+$A$11,IF($C$5,8,0),1,1)) -> 294.48 | E66: =IF(A66>$A$8,"",OFFSET(InputPriceData!D$15,CalculationsAndCharts!$A66+$A$11,IF($C$5,8,0),1,1)) -> 295.22 | F66: =IF(A66>$A$8,"",OFFSET(InputPriceData!E$15,CalculationsAndCharts!$A66+$A$11,IF($C$5,8,0),1,1)) -> 294.12 | G66: =IF(A66>$A$8,"",OFFSET(InputPriceData!F$15,CalculationsAndCharts!$A66+$A$11,IF($C$5,8,0),1,1)) -> 294.5 | H66: 0.5319424019 | I66: -0.6624706909 | J66: 0.3398498454 | T66: 0.5319424019 | U66: -0.6624706909 | V66: 0.3398498454 | AP66: 40394800
A67: 35 | B67: =IF(A67>$A$8,"",OFFSET(InputPriceData!B$15,$A67+$A$11,0,1,1)) -> 2019-10-11 | C67: =IF(A67>$A$8,"",OFFSET(InputPriceData!G$15,CalculationsAndCharts!$A67+$A$11,IF($C$5,8,0),1,1)) -> 98720400 | D67: =IF(A67>$A$8,"",OFFSET(InputPriceData!C$15,CalculationsAndCharts!$A67+$A$11,IF($C$5,8,0),1,1)) -> 294.82 | E67: =IF(A67>$A$8,"",OFFSET(InputPriceData!D$15,CalculationsAndCharts!$A67+$A$11,IF($C$5,8,0),1,1)) -> 297.28 | F67: =IF(A67>$A$8,"",OFFSET(InputPriceData!E$15,CalculationsAndCharts!$A67+$A$11,IF($C$5,8,0),1,1)) -> 294.69 | G67: =IF(A67>$A$8,"",OFFSET(InputPriceData!F$15,CalculationsAndCharts!$A67+$A$11,IF($C$5,8,0),1,1)) -> 294.83 | H67: 0.02893062752 | I67: -0.7522567342 | J67: 0.3721639315 | T67: 0.02893062752 | U67: -0.7522567342 | V67: 0.3721639315 | AP67: 98720400
A68: 36 | B68: =IF(A68>$A$8,"",OFFSET(InputPriceData!B$15,$A68+$A$11,0,1,1)) -> 2019-10-10 | C68: =IF(A68>$A$8,"",OFFSET(InputPriceData!G$15,CalculationsAndCharts!$A68+$A$11,IF($C$5,8,0),1,1)) -> 55296300 | D68: =IF(A68>$A$8,"",OFFSET(InputPriceData!C$15,CalculationsAndCharts!$A68+$A$11,IF($C$5,8,0),1,1)) -> 289.76 | E68: =IF(A68>$A$8,"",OFFSET(InputPriceData!D$15,CalculationsAndCharts!$A68+$A$11,IF($C$5,8,0),1,1)) -> 292.77 | F68: =IF(A68>$A$8,"",OFFSET(InputPriceData!E$15,CalculationsAndCharts!$A68+$A$11,IF($C$5,8,0),1,1)) -> 289.58 | G68: =IF(A68>$A$8,"",OFFSET(InputPriceData!F$15,CalculationsAndCharts!$A68+$A$11,IF($C$5,8,0),1,1)) -> 291.81 | H68: -0.403067013 | I68: -0.8513953908 | J68: 0.419538438 | T68: -0.403067013 | U68: -0.8513953908 | V68: 0.419538438 | AP68: 55296300
A69: 37 | B69: =IF(A69>$A$8,"",OFFSET(InputPriceData!B$15,$A69+$A$11,0,1,1)) -> 2019-10-09 | C69: =IF(A69>$A$8,"",OFFSET(InputPriceData!G$15,CalculationsAndCharts!$A69+$A$11,IF($C$5,8,0),1,1)) -> 62359400 | D69: =IF(A69>$A$8,"",OFFSET(InputPriceData!C$15,CalculationsAndCharts!$A69+$A$11,IF($C$5,8,0),1,1)) -> 289.33 | E69: =IF(A69>$A$8,"",OFFSET(InputPriceData!D$15,CalculationsAndCharts!$A69+$A$11,IF($C$5,8,0),1,1)) -> 290.87 | F69: =IF(A69>$A$8,"",OFFSET(InputPriceData!E$15,CalculationsAndCharts!$A69+$A$11,IF($C$5,8,0),1,1)) -> 288.64 | G69: =IF(A69>$A$8,"",OFFSET(InputPriceData!F$15,CalculationsAndCharts!$A69+$A$11,IF($C$5,8,0),1,1)) -> 289.84 | H69: -0.646896918 | I69: -0.8764701967 | J69: 0.4867974108 | T69: -0.646896918 | U69: -0.8764701967 | V69: 0.4867974108 | AP69: 62359400
A70: 38 | B70: =IF(A70>$A$8,"",OFFSET(InputPriceData!B$15,$A70+$A$11,0,1,1)) -> 2019-10-08 | C70: =IF(A70>$A$8,"",OFFSET(InputPriceData!G$15,CalculationsAndCharts!$A70+$A$11,IF($C$5,8,0),1,1)) -> 95708100 | D70: =IF(A70>$A$8,"",OFFSET(InputPriceData!C$15,CalculationsAndCharts!$A70+$A$11,IF($C$5,8,0),1,1)) -> 289.62 | E70: =IF(A70>$A$8,"",OFFSET(InputPriceData!D$15,CalculationsAndCharts!$A70+$A$11,IF($C$5,8,0),1,1)) -> 290.42 | F70: =IF(A70>$A$8,"",OFFSET(InputPriceData!E$15,CalculationsAndCharts!$A70+$A$11,IF($C$5,8,0),1,1)) -> 287.08 | G70: =IF(A70>$A$8,"",OFFSET(InputPriceData!F$15,CalculationsAndCharts!$A70+$A$11,IF($C$5,8,0),1,1)) -> 287.12 | H70: -0.7337576229 | I70: -0.8560918567 | J70: 0.5187902384 | T70: -0.7337576229 | U70: -0.8560918567 | V70: 0.5187902384 | AQ70: 95708100
A71: 39 | B71: =IF(A71>$A$8,"",OFFSET(InputPriceData!B$15,$A71+$A$11,0,1,1)) -> 2019-10-07 | C71: =IF(A71>$A$8,"",OFFSET(InputPriceData!G$15,CalculationsAndCharts!$A71+$A$11,IF($C$5,8,0),1,1)) -> 59610500 | D71: =IF(A71>$A$8,"",OFFSET(InputPriceData!C$15,CalculationsAndCharts!$A71+$A$11,IF($C$5,8,0),1,1)) -> 292.03 | E71: =IF(A71>$A$8,"",OFFSET(InputPriceData!D$15,CalculationsAndCharts!$A71+$A$11,IF($C$5,8,0),1,1)) -> 293.82 | F71: =IF(A71>$A$8,"",OFFSET(InputPriceData!E$15,CalculationsAndCharts!$A71+$A$11,IF($C$5,8,0),1,1)) -> 291.34 | G71: =IF(A71>$A$8,"",OFFSET(InputPriceData!F$15,CalculationsAndCharts!$A71+$A$11,IF($C$5,8,0),1,1)) -> 291.65 | H71: -0.6368664886 | I71: -0.7742065501 | J71: 0.6064155286 | T71: -0.6368664886 | U71: -0.7742065501 | V71: 0.6064155286 | AQ71: 59610500
A72: 40 | B72: =IF(A72>$A$8,"",OFFSET(InputPriceData!B$15,$A72+$A$11,0,1,1)) -> 2019-10-04 | C72: =IF(A72>$A$8,"",OFFSET(InputPriceData!G$15,CalculationsAndCharts!$A72+$A$11,IF($C$5,8,0),1,1)) -> 65091200 | D72: =IF(A72>$A$8,"",OFFSET(InputPriceData!C$15,CalculationsAndCharts!$A72+$A$11,IF($C$5,8,0),1,1)) -> 289.72 | E72: =IF(A72>$A$8,"",OFFSET(InputPriceData!D$15,CalculationsAndCharts!$A72+$A$11,IF($C$5,8,0),1,1)) -> 293.19 | F72: =IF(A72>$A$8,"",OFFSET(InputPriceData!E$15,CalculationsAndCharts!$A72+$A$11,IF($C$5,8,0),1,1)) -> 289.66 | G72: =IF(A72>$A$8,"",OFFSET(InputPriceData!F$15,CalculationsAndCharts!$A72+$A$11,IF($C$5,8,0),1,1)) -> 292.91 | H72: -0.7299599046 | I72: -0.7046030021 | J72: 0.6269267373 | T72: -0.7299599046 | U72: -0.7046030021 | V72: 0.6269267373 | AP72: 65091200
A73: 41 | B73: =IF(A73>$A$8,"",OFFSET(InputPriceData!B$15,$A73+$A$11,0,1,1)) -> 2019-10-03 | C73: =IF(A73>$A$8,"",OFFSET(InputPriceData!G$15,CalculationsAndCharts!$A73+$A$11,IF($C$5,8,0),1,1)) -> 85278800 | D73: =IF(A73>$A$8,"",OFFSET(InputPriceData!C$15,CalculationsAndCharts!$A73+$A$11,IF($C$5,8,0),1,1)) -> 286.4 | E73: =IF(A73>$A$8,"",OFFSET(InputPriceData!D$15,CalculationsAndCharts!$A73+$A$11,IF($C$5,8,0),1,1)) -> 289.03 | F73: =IF(A73>$A$8,"",OFFSET(InputPriceData!E$15,CalculationsAndCharts!$A73+$A$11,IF($C$5,8,0),1,1)) -> 283.43 | G73: =IF(A73>$A$8,"",OFFSET(InputPriceData!F$15,CalculationsAndCharts!$A73+$A$11,IF($C$5,8,0),1,1)) -> 289 | H73: -0.8419700401 | I73: -0.6426458183 | J73: 0.6214413106 | T73: -0.8419700401 | U73: -0.6426458183 | V73: 0.6214413106 | AP73: 85278800
A74: 42 | B74: =IF(A74>$A$8,"",OFFSET(InputPriceData!B$15,$A74+$A$11,0,1,1)) -> 2019-10-02 | C74: =IF(A74>$A$8,"",OFFSET(InputPriceData!G$15,CalculationsAndCharts!$A74+$A$11,IF($C$5,8,0),1,1)) -> 122539500 | D74: =IF(A74>$A$8,"",OFFSET(InputPriceData!C$15,CalculationsAndCharts!$A74+$A$11,IF($C$5,8,0),1,1)) -> 290.07 | E74: =IF(A74>$A$8,"",OFFSET(InputPriceData!D$15,CalculationsAndCharts!$A74+$A$11,IF($C$5,8,0),1,1)) -> 290.08 | F74: =IF(A74>$A$8,"",OFFSET(InputPriceData!E$15,CalculationsAndCharts!$A74+$A$11,IF($C$5,8,0),1,1)) -> 285.24 | G74: =IF(A74>$A$8,"",OFFSET(InputPriceData!F$15,CalculationsAndCharts!$A74+$A$11,IF($C$5,8,0),1,1)) -> 286.65 | H74: -0.8254909738 | I74: -0.5013600916 | J74: 0.684573411 | T74: -0.8254909738 | U74: -0.5013600916 | V74: 0.684573411 | AQ74: 122539500
A75: 43 | B75: =IF(A75>$A$8,"",OFFSET(InputPriceData!B$15,$A75+$A$11,0,1,1)) -> 2019-10-01 | C75: =IF(A75>$A$8,"",OFFSET(InputPriceData!G$15,CalculationsAndCharts!$A75+$A$11,IF($C$5,8,0),1,1)) -> 88242400 | D75: =IF(A75>$A$8,"",OFFSET(InputPriceData!C$15,CalculationsAndCharts!$A75+$A$11,IF($C$5,8,0),1,1)) -> 296.28 | E75: =IF(A75>$A$8,"",OFFSET(InputPriceData!D$15,CalculationsAndCharts!$A75+$A$11,IF($C$5,8,0),1,1)) -> 297 | F75: =IF(A75>$A$8,"",OFFSET(InputPriceData!E$15,CalculationsAndCharts!$A75+$A$11,IF($C$5,8,0),1,1)) -> 291.57 | G75: =IF(A75>$A$8,"",OFFSET(InputPriceData!F$15,CalculationsAndCharts!$A75+$A$11,IF($C$5,8,0),1,1)) -> 291.81 | H75: -0.8738932825 | I75: -0.07514787417 | J75: 0.7709614236 | T75: -0.8738932825 | U75: -0.07514787417 | V75: 0.7709614236 | AQ75: 88242400
A76: 44 | B76: =IF(A76>$A$8,"",OFFSET(InputPriceData!B$15,$A76+$A$11,0,1,1)) -> 2019-09-30 | C76: =IF(A76>$A$8,"",OFFSET(InputPriceData!G$15,CalculationsAndCharts!$A76+$A$11,IF($C$5,8,0),1,1)) -> 51662400 | D76: =IF(A76>$A$8,"",OFFSET(InputPriceData!C$15,CalculationsAndCharts!$A76+$A$11,IF($C$5,8,0),1,1)) -> 294.52 | E76: =IF(A76>$A$8,"",OFFSET(InputPriceData!D$15,CalculationsAndCharts!$A76+$A$11,IF($C$5,8,0),1,1)) -> 296.09 | F76: =IF(A76>$A$8,"",OFFSET(InputPriceData!E$15,CalculationsAndCharts!$A76+$A$11,IF($C$5,8,0),1,1)) -> 294.47 | G76: =IF(A76>$A$8,"",OFFSET(InputPriceData!F$15,CalculationsAndCharts!$A76+$A$11,IF($C$5,8,0),1,1)) -> 295.32 | H76: -0.8573433954 | I76: 0.3518954076 | J76: 0.8129434744 | T76: -0.8573433954 | U76: 0.3518954076 | V76: 0.8129434744 | AP76: 51662400
A77: 45 | B77: =IF(A77>$A$8,"",OFFSET(InputPriceData!B$15,$A77+$A$11,0,1,1)) -> 2019-09-27 | C77: =IF(A77>$A$8,"",OFFSET(InputPriceData!G$15,CalculationsAndCharts!$A77+$A$11,IF($C$5,8,0),1,1)) -> 84746600 | D77: =IF(A77>$A$8,"",OFFSET(InputPriceData!C$15,CalculationsAndCharts!$A77+$A$11,IF($C$5,8,0),1,1)) -> 296.37 | E77: =IF(A77>$A$8,"",OFFSET(InputPriceData!D$15,CalculationsAndCharts!$A77+$A$11,IF($C$5,8,0),1,1)) -> 296.49 | F77: =IF(A77>$A$8,"",OFFSET(InputPriceData!E$15,CalculationsAndCharts!$A77+$A$11,IF($C$5,8,0),1,1)) -> 292.25 | G77: =IF(A77>$A$8,"",OFFSET(InputPriceData!F$15,CalculationsAndCharts!$A77+$A$11,IF($C$5,8,0),1,1)) -> 293.95 | H77: -0.8363854888 | I77: 0.5015987225 | J77: 0.7939560415 | T77: -0.8363854888 | U77: 0.5015987225 | V77: 0.7939560415 | AQ77: 84746600
A78: 46 | B78: =IF(A78>$A$8,"",OFFSET(InputPriceData!B$15,$A78+$A$11,0,1,1)) -> 2019-09-26 | C78: =IF(A78>$A$8,"",OFFSET(InputPriceData!G$15,CalculationsAndCharts!$A78+$A$11,IF($C$5,8,0),1,1)) -> 56179700 | D78: =IF(A78>$A$8,"",OFFSET(InputPriceData!C$15,CalculationsAndCharts!$A78+$A$11,IF($C$5,8,0),1,1)) -> 296.17 | E78: =IF(A78>$A$8,"",OFFSET(InputPriceData!D$15,CalculationsAndCharts!$A78+$A$11,IF($C$5,8,0),1,1)) -> 296.4 | F78: =IF(A78>$A$8,"",OFFSET(InputPriceData!E$15,CalculationsAndCharts!$A78+$A$11,IF($C$5,8,0),1,1)) -> 294 | G78: =IF(A78>$A$8,"",OFFSET(InputPriceData!F$15,CalculationsAndCharts!$A78+$A$11,IF($C$5,8,0),1,1)) -> 295.55 | H78: -0.7920042029 | I78: 0.6583624346 | J78: 0.7635211481 | T78: -0.7920042029 | U78: 0.6583624346 | V78: 0.7635211481 | AQ78: 56179700
A79: 47 | B79: =IF(A79>$A$8,"",OFFSET(InputPriceData!B$15,$A79+$A$11,0,1,1)) -> 2019-09-25 | C79: =IF(A79>$A$8,"",OFFSET(InputPriceData!G$15,CalculationsAndCharts!$A79+$A$11,IF($C$5,8,0),1,1)) -> 71854000 | D79: =IF(A79>$A$8,"",OFFSET(InputPriceData!C$15,CalculationsAndCharts!$A79+$A$11,IF($C$5,8,0),1,1)) -> 294.51 | E79: =IF(A79>$A$8,"",OFFSET(InputPriceData!D$15,CalculationsAndCharts!$A79+$A$11,IF($C$5,8,0),1,1)) -> 296.65 | F79: =IF(A79>$A$8,"",OFFSET(InputPriceData!E$15,CalculationsAndCharts!$A79+$A$11,IF($C$5,8,0),1,1)) -> 292.89 | G79: =IF(A79>$A$8,"",OFFSET(InputPriceData!F$15,CalculationsAndCharts!$A79+$A$11,IF($C$5,8,0),1,1)) -> 296.16 | H79: -0.7745990706 | I79: 0.7515597426 | J79: 0.6987720358 | T79: -0.7745990706 | U79: 0.7515597426 | V79: 0.6987720358 | AP79: 71854000
A80: 48 | B80: =IF(A80>$A$8,"",OFFSET(InputPriceData!B$15,$A80+$A$11,0,1,1)) -> 2019-09-24 | C80: =IF(A80>$A$8,"",OFFSET(InputPriceData!G$15,CalculationsAndCharts!$A80+$A$11,IF($C$5,8,0),1,1)) -> 94869400 | D80: =IF(A80>$A$8,"",OFFSET(InputPriceData!C$15,CalculationsAndCharts!$A80+$A$11,IF($C$5,8,0),1,1)) -> 297.95 | E80: =IF(A80>$A$8,"",OFFSET(InputPriceData!D$15,CalculationsAndCharts!$A80+$A$11,IF($C$5,8,0),1,1)) -> 298.37 | F80: =IF(A80>$A$8,"",OFFSET(InputPriceData!E$15,CalculationsAndCharts!$A80+$A$11,IF($C$5,8,0),1,1)) -> 293.37 | G80: =IF(A80>$A$8,"",OFFSET(InputPriceData!F$15,CalculationsAndCharts!$A80+$A$11,IF($C$5,8,0),1,1)) -> 294.42 | H80: -0.6481739897 | I80: 0.8121726564 | J80: 0.5950165674 | T80: -0.6481739897 | U80: 0.8121726564 | V80: 0.5950165674 | AQ80: 94869400
A81: 49 | B81: =IF(A81>$A$8,"",OFFSET(InputPriceData!B$15,$A81+$A$11,0,1,1)) -> 2019-09-23 | C81: =IF(A81>$A$8,"",OFFSET(InputPriceData!G$15,CalculationsAndCharts!$A81+$A$11,IF($C$5,8,0),1,1)) -> 43476800 | D81: =IF(A81>$A$8,"",OFFSET(InputPriceData!C$15,CalculationsAndCharts!$A81+$A$11,IF($C$5,8,0),1,1)) -> 296.09 | E81: =IF(A81>$A$8,"",OFFSET(InputPriceData!D$15,CalculationsAndCharts!$A81+$A$11,IF($C$5,8,0),1,1)) -> 297.54 | F81: =IF(A81>$A$8,"",OFFSET(InputPriceData!E$15,CalculationsAndCharts!$A81+$A$11,IF($C$5,8,0),1,1)) -> 295.82 | G81: =IF(A81>$A$8,"",OFFSET(InputPriceData!F$15,CalculationsAndCharts!$A81+$A$11,IF($C$5,8,0),1,1)) -> 296.75 | H81: 0.159660229 | I81: 0.8916915241 | J81: 0.4969645136 | T81: 0.159660229 | U81: 0.8916915241 | V81: 0.4969645136 | AP81: 43476800
A82: 50 | B82: =IF(A82>$A$8,"",OFFSET(InputPriceData!B$15,$A82+$A$11,0,1,1)) -> 2019-09-20 | C82: =IF(A82>$A$8,"",OFFSET(InputPriceData!G$15,CalculationsAndCharts!$A82+$A$11,IF($C$5,8,0),1,1)) -> 89565000 | D82: =IF(A82>$A$8,"",OFFSET(InputPriceData!C$15,CalculationsAndCharts!$A82+$A$11,IF($C$5,8,0),1,1)) -> 298.89 | E82: =IF(A82>$A$8,"",OFFSET(InputPriceData!D$15,CalculationsAndCharts!$A82+$A$11,IF($C$5,8,0),1,1)) -> 299.2 | F82: =IF(A82>$A$8,"",OFFSET(InputPriceData!E$15,CalculationsAndCharts!$A82+$A$11,IF($C$5,8,0),1,1)) -> 295.95 | G82: =IF(A82>$A$8,"",OFFSET(InputPriceData!F$15,CalculationsAndCharts!$A82+$A$11,IF($C$5,8,0),1,1)) -> 296.82 | H82: 0.5558106086 | I82: 0.924005163 | J82: 0.3839395811 | T82: 0.5558106086 | U82: 0.924005163 | V82: 0.3839395811 | AP82: =IF(G82>=D82,C82,NA()) ->  | AQ82: =IF(G82<D82,C82,NA()) -> 89565000
A83: 51 | B83: =IF(A83>$A$8,"",OFFSET(InputPriceData!B$15,$A83+$A$11,0,1,1)) -> 2019-09-19 | C83: =IF(A83>$A$8,"",OFFSET(InputPriceData!G$15,CalculationsAndCharts!$A83+$A$11,IF($C$5,8,0),1,1)) -> 76560500 | D83: =IF(A83>$A$8,"",OFFSET(InputPriceData!C$15,CalculationsAndCharts!$A83+$A$11,IF($C$5,8,0),1,1)) -> 298.68 | E83: =IF(A83>$A$8,"",OFFSET(InputPriceData!D$15,CalculationsAndCharts!$A83+$A$11,IF($C$5,8,0),1,1)) -> 299.77 | F83: =IF(A83>$A$8,"",OFFSET(InputPriceData!E$15,CalculationsAndCharts!$A83+$A$11,IF($C$5,8,0),1,1)) -> 297.86 | G83: =IF(A83>$A$8,"",OFFSET(InputPriceData!F$15,CalculationsAndCharts!$A83+$A$11,IF($C$5,8,0),1,1)) -> 298.23 | H83: 0.8222541758 | I83: 0.9161210807 | J83: 0.2924194454 | T83: 0.8222541758 | U83: 0.9161210807 | V83: 0.2924194454 | AQ83: 76560500
A84: 52 | B84: =IF(A84>$A$8,"",OFFSET(InputPriceData!B$15,$A84+$A$11,0,1,1)) -> 2019-09-18 | C84: =IF(A84>$A$8,"",OFFSET(InputPriceData!G$15,CalculationsAndCharts!$A84+$A$11,IF($C$5,8,0),1,1)) -> 73375800 | D84: =IF(A84>$A$8,"",OFFSET(InputPriceData!C$15,CalculationsAndCharts!$A84+$A$11,IF($C$5,8,0),1,1)) -> 297.65 | E84: =IF(A84>$A$8,"",OFFSET(InputPriceData!D$15,CalculationsAndCharts!$A84+$A$11,IF($C$5,8,0),1,1)) -> 298.37 | F84: =IF(A84>$A$8,"",OFFSET(InputPriceData!E$15,CalculationsAndCharts!$A84+$A$11,IF($C$5,8,0),1,1)) -> 295.42 | G84: =IF(A84>$A$8,"",OFFSET(InputPriceData!F$15,CalculationsAndCharts!$A84+$A$11,IF($C$5,8,0),1,1)) -> 298.25 | H84: 0.8665137552 | I84: 0.8870814332 | J84: 0.1793351181 | T84: 0.8665137552 | U84: 0.8870814332 | V84: 0.1793351181 | AP84: 73375800
A85: 53 | B85: =IF(A85>$A$8,"",OFFSET(InputPriceData!B$15,$A85+$A$11,0,1,1)) -> 2019-09-17 | C85: =IF(A85>$A$8,"",OFFSET(InputPriceData!G$15,CalculationsAndCharts!$A85+$A$11,IF($C$5,8,0),1,1)) -> 41475500 | D85: =IF(A85>$A$8,"",OFFSET(InputPriceData!C$15,CalculationsAndCharts!$A85+$A$11,IF($C$5,8,0),1,1)) -> 297.1 | E85: =IF(A85>$A$8,"",OFFSET(InputPriceData!D$15,CalculationsAndCharts!$A85+$A$11,IF($C$5,8,0),1,1)) -> 298.17 | F85: =IF(A85>$A$8,"",OFFSET(InputPriceData!E$15,CalculationsAndCharts!$A85+$A$11,IF($C$5,8,0),1,1)) -> 296.91 | G85: =IF(A85>$A$8,"",OFFSET(InputPriceData!F$15,CalculationsAndCharts!$A85+$A$11,IF($C$5,8,0),1,1)) -> 298.07 | H85: 0.8655428815 | I85: 0.8738982379 | J85: 0.07779472918 | T85: 0.8655428815 | U85: 0.8738982379 | V85: 0.07779472918 | AP85: 41475500
A86: 54 | B86: =IF(A86>$A$8,"",OFFSET(InputPriceData!B$15,$A86+$A$11,0,1,1)) -> 2019-09-16 | C86: =IF(A86>$A$8,"",OFFSET(InputPriceData!G$15,CalculationsAndCharts!$A86+$A$11,IF($C$5,8,0),1,1)) -> 58191200 | D86: =IF(A86>$A$8,"",OFFSET(InputPriceData!C$15,CalculationsAndCharts!$A86+$A$11,IF($C$5,8,0),1,1)) -> 297 | E86: =IF(A86>$A$8,"",OFFSET(InputPriceData!D$15,CalculationsAndCharts!$A86+$A$11,IF($C$5,8,0),1,1)) -> 298.29 | F86: =IF(A86>$A$8,"",OFFSET(InputPriceData!E$15,CalculationsAndCharts!$A86+$A$11,IF($C$5,8,0),1,1)) -> 296.62 | G86: =IF(A86>$A$8,"",OFFSET(InputPriceData!F$15,CalculationsAndCharts!$A86+$A$11,IF($C$5,8,0),1,1)) -> 297.32 | H86: 0.8761117304 | I86: 0.8262067881 | J86: -0.007889069861 | T86: 0.8761117304 | U86: 0.8262067881 | V86: -0.007889069861 | AP86: 58191200
A87: 55 | B87: =IF(A87>$A$8,"",OFFSET(InputPriceData!B$15,$A87+$A$11,0,1,1)) -> 2019-09-13 | C87: =IF(A87>$A$8,"",OFFSET(InputPriceData!G$15,CalculationsAndCharts!$A87+$A$11,IF($C$5,8,0),1,1)) -> 61426700 | D87: =IF(A87>$A$8,"",OFFSET(InputPriceData!C$15,CalculationsAndCharts!$A87+$A$11,IF($C$5,8,0),1,1)) -> 298.92 | E87: =IF(A87>$A$8,"",OFFSET(InputPriceData!D$15,CalculationsAndCharts!$A87+$A$11,IF($C$5,8,0),1,1)) -> 299.31 | F87: =IF(A87>$A$8,"",OFFSET(InputPriceData!E$15,CalculationsAndCharts!$A87+$A$11,IF($C$5,8,0),1,1)) -> 297.83 | G87: =IF(A87>$A$8,"",OFFSET(InputPriceData!F$15,CalculationsAndCharts!$A87+$A$11,IF($C$5,8,0),1,1)) -> 298.24 | H87: 0.9295589612 | I87: 0.8140265426 | J87: -0.08525690611 | T87: 0.9295589612 | U87: 0.8140265426 | V87: -0.08525690611 | AQ87: 61426700
A88: 56 | B88: =IF(A88>$A$8,"",OFFSET(InputPriceData!B$15,$A88+$A$11,0,1,1)) -> 2019-09-12 | C88: =IF(A88>$A$8,"",OFFSET(InputPriceData!G$15,CalculationsAndCharts!$A88+$A$11,IF($C$5,8,0),1,1)) -> 72908700 | D88: =IF(A88>$A$8,"",OFFSET(InputPriceData!C$15,CalculationsAndCharts!$A88+$A$11,IF($C$5,8,0),1,1)) -> 298.4 | E88: =IF(A88>$A$8,"",OFFSET(InputPriceData!D$15,CalculationsAndCharts!$A88+$A$11,IF($C$5,8,0),1,1)) -> 299.6 | F88: =IF(A88>$A$8,"",OFFSET(InputPriceData!E$15,CalculationsAndCharts!$A88+$A$11,IF($C$5,8,0),1,1)) -> 297.57 | G88: =IF(A88>$A$8,"",OFFSET(InputPriceData!F$15,CalculationsAndCharts!$A88+$A$11,IF($C$5,8,0),1,1)) -> 298.44 | H88: 0.9277372623 | I88: 0.8153494562 | J88: -0.1861074714 | T88: 0.9277372623 | U88: 0.8153494562 | V88: -0.1861074714 | AP88: 72908700
A89: 57 | B89: =IF(A89>$A$8,"",OFFSET(InputPriceData!B$15,$A89+$A$11,0,1,1)) -> 2019-09-11 | C89: =IF(A89>$A$8,"",OFFSET(InputPriceData!G$15,CalculationsAndCharts!$A89+$A$11,IF($C$5,8,0),1,1)) -> 68821100 | D89: =IF(A89>$A$8,"",OFFSET(InputPriceData!C$15,CalculationsAndCharts!$A89+$A$11,IF($C$5,8,0),1,1)) -> 295.64 | E89: =IF(A89>$A$8,"",OFFSET(InputPriceData!D$15,CalculationsAndCharts!$A89+$A$11,IF($C$5,8,0),1,1)) -> 297.5 | F89: =IF(A89>$A$8,"",OFFSET(InputPriceData!E$15,CalculationsAndCharts!$A89+$A$11,IF($C$5,8,0),1,1)) -> 294.93 | G89: =IF(A89>$A$8,"",OFFSET(InputPriceData!F$15,CalculationsAndCharts!$A89+$A$11,IF($C$5,8,0),1,1)) -> 297.41 | H89: 0.9318420475 | I89: 0.8132470057 | J89: -0.2851185574 | T89: 0.9318420475 | U89: 0.8132470057 | V89: -0.2851185574 | AP89: 68821100
A90: 58 | B90: =IF(A90>$A$8,"",OFFSET(InputPriceData!B$15,$A90+$A$11,0,1,1)) -> 2019-09-10 | C90: =IF(A90>$A$8,"",OFFSET(InputPriceData!G$15,CalculationsAndCharts!$A90+$A$11,IF($C$5,8,0),1,1)) -> 57947100 | D90: =IF(A90>$A$8,"",OFFSET(InputPriceData!C$15,CalculationsAndCharts!$A90+$A$11,IF($C$5,8,0),1,1)) -> 294.54 | E90: =IF(A90>$A$8,"",OFFSET(InputPriceData!D$15,CalculationsAndCharts!$A90+$A$11,IF($C$5,8,0),1,1)) -> 295.38 | F90: =IF(A90>$A$8,"",OFFSET(InputPriceData!E$15,CalculationsAndCharts!$A90+$A$11,IF($C$5,8,0),1,1)) -> 293.17 | G90: =IF(A90>$A$8,"",OFFSET(InputPriceData!F$15,CalculationsAndCharts!$A90+$A$11,IF($C$5,8,0),1,1)) -> 295.31 | H90: 0.9364779461 | I90: 0.6975895504 | J90: -0.3907175976 | T90: 0.9364779461 | U90: 0.6975895504 | V90: -0.3907175976 | AP90: 57947100
A91: 59 | B91: =IF(A91>$A$8,"",OFFSET(InputPriceData!B$15,$A91+$A$11,0,1,1)) -> 2019-09-09 | C91: =IF(A91>$A$8,"",OFFSET(InputPriceData!G$15,CalculationsAndCharts!$A91+$A$11,IF($C$5,8,0),1,1)) -> 51260300 | D91: =IF(A91>$A$8,"",OFFSET(InputPriceData!C$15,CalculationsAndCharts!$A91+$A$11,IF($C$5,8,0),1,1)) -> 296.31 | E91: =IF(A91>$A$8,"",OFFSET(InputPriceData!D$15,CalculationsAndCharts!$A91+$A$11,IF($C$5,8,0),1,1)) -> 296.41 | F91: =IF(A91>$A$8,"",OFFSET(InputPriceData!E$15,CalculationsAndCharts!$A91+$A$11,IF($C$5,8,0),1,1)) -> 294.35 | G91: =IF(A91>$A$8,"",OFFSET(InputPriceData!F$15,CalculationsAndCharts!$A91+$A$11,IF($C$5,8,0),1,1)) -> 295.38 | H91: 0.9421624795 | I91: 0.6545126296 | J91: -0.4793368435 | T91: 0.9421624795 | U91: 0.6545126296 | V91: -0.4793368435 | AQ91: 51260300
A92: 60 | B92: =IF(A92>$A$8,"",OFFSET(InputPriceData!B$15,$A92+$A$11,0,1,1)) -> 2019-09-06 | C92: =IF(A92>$A$8,"",OFFSET(InputPriceData!G$15,CalculationsAndCharts!$A92+$A$11,IF($C$5,8,0),1,1)) -> 49584300 | D92: =IF(A92>$A$8,"",OFFSET(InputPriceData!C$15,CalculationsAndCharts!$A92+$A$11,IF($C$5,8,0),1,1)) -> 295.35 | E92: =IF(A92>$A$8,"",OFFSET(InputPriceData!D$15,CalculationsAndCharts!$A92+$A$11,IF($C$5,8,0),1,1)) -> 295.93 | F92: =IF(A92>$A$8,"",OFFSET(InputPriceData!E$15,CalculationsAndCharts!$A92+$A$11,IF($C$5,8,0),1,1)) -> 294.6 | G92: =IF(A92>$A$8,"",OFFSET(InputPriceData!F$15,CalculationsAndCharts!$A92+$A$11,IF($C$5,8,0),1,1)) -> 295.23 | H92: 0.9478827953 | I92: 0.5229565889 | J92: -0.5650652998 | T92: 0.9478827953 | U92: 0.5229565889 | V92: -0.5650652998 | AQ92: 49584300
A93: 61 | B93: =IF(A93>$A$8,"",OFFSET(InputPriceData!B$15,$A93+$A$11,0,1,1)) -> 2019-09-05 | C93: =IF(A93>$A$8,"",OFFSET(InputPriceData!G$15,CalculationsAndCharts!$A93+$A$11,IF($C$5,8,0),1,1)) -> 83258100 | D93: =IF(A93>$A$8,"",OFFSET(InputPriceData!C$15,CalculationsAndCharts!$A93+$A$11,IF($C$5,8,0),1,1)) -> 293.98 | E93: =IF(A93>$A$8,"",OFFSET(InputPriceData!D$15,CalculationsAndCharts!$A93+$A$11,IF($C$5,8,0),1,1)) -> 296 | F93: =IF(A93>$A$8,"",OFFSET(InputPriceData!E$15,CalculationsAndCharts!$A93+$A$11,IF($C$5,8,0),1,1)) -> 291.22 | G93: =IF(A93>$A$8,"",OFFSET(InputPriceData!F$15,CalculationsAndCharts!$A93+$A$11,IF($C$5,8,0),1,1)) -> 295 | H93: 0.7117692435 | I93: 0.3029051692 | J93: -0.6406153658 | T93: 0.7117692435 | U93: 0.3029051692 | V93: -0.6406153658 | AP93: 83258100
A94: 62 | B94: =IF(A94>$A$8,"",OFFSET(InputPriceData!B$15,$A94+$A$11,0,1,1)) -> 2019-09-04 | C94: =IF(A94>$A$8,"",OFFSET(InputPriceData!G$15,CalculationsAndCharts!$A94+$A$11,IF($C$5,8,0),1,1)) -> 46887300 | D94: =IF(A94>$A$8,"",OFFSET(InputPriceData!C$15,CalculationsAndCharts!$A94+$A$11,IF($C$5,8,0),1,1)) -> 290.36 | E94: =IF(A94>$A$8,"",OFFSET(InputPriceData!D$15,CalculationsAndCharts!$A94+$A$11,IF($C$5,8,0),1,1)) -> 291.28 | F94: =IF(A94>$A$8,"",OFFSET(InputPriceData!E$15,CalculationsAndCharts!$A94+$A$11,IF($C$5,8,0),1,1)) -> 289.54 | G94: =IF(A94>$A$8,"",OFFSET(InputPriceData!F$15,CalculationsAndCharts!$A94+$A$11,IF($C$5,8,0),1,1)) -> 291.26 | H94: 0.3461880051 | I94: 0.1853200252 | J94: -0.7092300374 | T94: 0.3461880051 | U94: 0.1853200252 | V94: -0.7092300374 | AP94: 46887300
A95: 63 | B95: =IF(A95>$A$8,"",OFFSET(InputPriceData!B$15,$A95+$A$11,0,1,1)) -> 2019-09-03 | C95: =IF(A95>$A$8,"",OFFSET(InputPriceData!G$15,CalculationsAndCharts!$A95+$A$11,IF($C$5,8,0),1,1)) -> 69101400 | D95: =IF(A95>$A$8,"",OFFSET(InputPriceData!C$15,CalculationsAndCharts!$A95+$A$11,IF($C$5,8,0),1,1)) -> 287.82 | E95: =IF(A95>$A$8,"",OFFSET(InputPriceData!D$15,CalculationsAndCharts!$A95+$A$11,IF($C$5,8,0),1,1)) -> 288.82 | F95: =IF(A95>$A$8,"",OFFSET(InputPriceData!E$15,CalculationsAndCharts!$A95+$A$11,IF($C$5,8,0),1,1)) -> 286.53 | G95: =IF(A95>$A$8,"",OFFSET(InputPriceData!F$15,CalculationsAndCharts!$A95+$A$11,IF($C$5,8,0),1,1)) -> 287.99 | H95: 0.1218739413 | I95: 0.1198921065 | J95: -0.7346112899 | T95: 0.1218739413 | U95: 0.1198921065 | V95: -0.7346112899 | AP95: 69101400
A96: 64 | B96: =IF(A96>$A$8,"",OFFSET(InputPriceData!B$15,$A96+$A$11,0,1,1)) -> 2019-08-30 | C96: =IF(A96>$A$8,"",OFFSET(InputPriceData!G$15,CalculationsAndCharts!$A96+$A$11,IF($C$5,8,0),1,1)) -> 62901200 | D96: =IF(A96>$A$8,"",OFFSET(InputPriceData!C$15,CalculationsAndCharts!$A96+$A$11,IF($C$5,8,0),1,1)) -> 291.43 | E96: =IF(A96>$A$8,"",OFFSET(InputPriceData!D$15,CalculationsAndCharts!$A96+$A$11,IF($C$5,8,0),1,1)) -> 291.45 | F96: =IF(A96>$A$8,"",OFFSET(InputPriceData!E$15,CalculationsAndCharts!$A96+$A$11,IF($C$5,8,0),1,1)) -> 288.66 | G96: =IF(A96>$A$8,"",OFFSET(InputPriceData!F$15,CalculationsAndCharts!$A96+$A$11,IF($C$5,8,0),1,1)) -> 289.68 | H96: -0.08188142549 | I96: 0.2253450576 | J96: -0.733194535 | T96: -0.08188142549 | U96: 0.2253450576 | V96: -0.733194535 | AQ96: 62901200
A97: 65 | B97: =IF(A97>$A$8,"",OFFSET(InputPriceData!B$15,$A97+$A$11,0,1,1)) -> 2019-08-29 | C97: =IF(A97>$A$8,"",OFFSET(InputPriceData!G$15,CalculationsAndCharts!$A97+$A$11,IF($C$5,8,0),1,1)) -> 57899400 | D97: =IF(A97>$A$8,"",OFFSET(InputPriceData!C$15,CalculationsAndCharts!$A97+$A$11,IF($C$5,8,0),1,1)) -> 288.96 | E97: =IF(A97>$A$8,"",OFFSET(InputPriceData!D$15,CalculationsAndCharts!$A97+$A$11,IF($C$5,8,0),1,1)) -> 290.38 | F97: =IF(A97>$A$8,"",OFFSET(InputPriceData!E$15,CalculationsAndCharts!$A97+$A$11,IF($C$5,8,0),1,1)) -> 287.86 | G97: =IF(A97>$A$8,"",OFFSET(InputPriceData!F$15,CalculationsAndCharts!$A97+$A$11,IF($C$5,8,0),1,1)) -> 289.81 | H97: =IF(A97<$A$8,-CORREL(OFFSET($G97,0,0,$A$17,1),OFFSET($A$33,0,0,$A$17,1)),NA()) -> -0.1864032391 | I97: =IF(A97<$A$8,-CORREL(OFFSET($G97,0,0,$A$18,1),OFFSET($A$33,0,0,$A$18,1)),NA()) -> 0.04097719658 | J97: =IF(A97<$A$8,-CORREL(OFFSET($G97,0,0,$A$19,1),OFFSET($A$33,0,0,$A$19,1)),NA()) -> -0.7500150199 | T97: =IF($R$4,H97,NA()) -> -0.1864032391 | U97: =IF($R$5,I97,NA()) -> 0.04097719658 | V97: =IF($R$6,J97,NA()) -> -0.7500150199 | AP97: 57899400
A98: 66 | B98: =IF(A98>$A$8,"",OFFSET(InputPriceData!B$15,$A98+$A$11,0,1,1)) -> 2019-08-28 | C98: =IF(A98>$A$8,"",OFFSET(InputPriceData!G$15,CalculationsAndCharts!$A98+$A$11,IF($C$5,8,0),1,1)) -> 59696700 | D98: =IF(A98>$A$8,"",OFFSET(InputPriceData!C$15,CalculationsAndCharts!$A98+$A$11,IF($C$5,8,0),1,1)) -> 283.43 | E98: =IF(A98>$A$8,"",OFFSET(InputPriceData!D$15,CalculationsAndCharts!$A98+$A$11,IF($C$5,8,0),1,1)) -> 286.33 | F98: =IF(A98>$A$8,"",OFFSET(InputPriceData!E$15,CalculationsAndCharts!$A98+$A$11,IF($C$5,8,0),1,1)) -> 282.55 | G98: =IF(A98>$A$8,"",OFFSET(InputPriceData!F$15,CalculationsAndCharts!$A98+$A$11,IF($C$5,8,0),1,1)) -> 286.16 | H98: -0.08291211844 | I98: -0.1944016661 | J98: -0.7674457614 | T98: -0.08291211844 | U98: -0.1944016661 | V98: -0.7674457614 | AP98: 59696700
A99: 67 | B99: =IF(A99>$A$8,"",OFFSET(InputPriceData!B$15,$A99+$A$11,0,1,1)) -> 2019-08-27 | C99: =IF(A99>$A$8,"",OFFSET(InputPriceData!G$15,CalculationsAndCharts!$A99+$A$11,IF($C$5,8,0),1,1)) -> 66668900 | D99: =IF(A99>$A$8,"",OFFSET(InputPriceData!C$15,CalculationsAndCharts!$A99+$A$11,IF($C$5,8,0),1,1)) -> 286.8 | E99: =IF(A99>$A$8,"",OFFSET(InputPriceData!D$15,CalculationsAndCharts!$A99+$A$11,IF($C$5,8,0),1,1)) -> 287.21 | F99: =IF(A99>$A$8,"",OFFSET(InputPriceData!E$15,CalculationsAndCharts!$A99+$A$11,IF($C$5,8,0),1,1)) -> 283.32 | G99: =IF(A99>$A$8,"",OFFSET(InputPriceData!F$15,CalculationsAndCharts!$A99+$A$11,IF($C$5,8,0),1,1)) -> 284.15 | H99: 0.1790413096 | I99: -0.3398551077 | J99: -0.7486867294 | T99: 0.1790413096 | U99: -0.3398551077 | V99: -0.7486867294 | AQ99: 66668900
A100: 68 | B100: =IF(A100>$A$8,"",OFFSET(InputPriceData!B$15,$A100+$A$11,0,1,1)) -> 2019-08-26 | C100: =IF(A100>$A$8,"",OFFSET(InputPriceData!G$15,CalculationsAndCharts!$A100+$A$11,IF($C$5,8,0),1,1)) -> 72423800 | D100: =IF(A100>$A$8,"",OFFSET(InputPriceData!C$15,CalculationsAndCharts!$A100+$A$11,IF($C$5,8,0),1,1)) -> 284.55 | E100: =IF(A100>$A$8,"",OFFSET(InputPriceData!D$15,CalculationsAndCharts!$A100+$A$11,IF($C$5,8,0),1,1)) -> 285.27 | F100: =IF(A100>$A$8,"",OFFSET(InputPriceData!E$15,CalculationsAndCharts!$A100+$A$11,IF($C$5,8,0),1,1)) -> 282.88 | G100: =IF(A100>$A$8,"",OFFSET(InputPriceData!F$15,CalculationsAndCharts!$A100+$A$11,IF($C$5,8,0),1,1)) -> 285.27 | H100: 0.06640018311 | I100: -0.4376901645 | J100: -0.7140221139 | T100: 0.06640018311 | U100: -0.4376901645 | V100: -0.7140221139 | AP100: 72423800
A101: 69 | B101: =IF(A101>$A$8,"",OFFSET(InputPriceData!B$15,$A101+$A$11,0,1,1)) -> 2019-08-23 | C101: =IF(A101>$A$8,"",OFFSET(InputPriceData!G$15,CalculationsAndCharts!$A101+$A$11,IF($C$5,8,0),1,1)) -> 149161500 | D101: =IF(A101>$A$8,"",OFFSET(InputPriceData!C$15,CalculationsAndCharts!$A101+$A$11,IF($C$5,8,0),1,1)) -> 288.17 | E101: =IF(A101>$A$8,"",OFFSET(InputPriceData!D$15,CalculationsAndCharts!$A101+$A$11,IF($C$5,8,0),1,1)) -> 289.99 | F101: =IF(A101>$A$8,"",OFFSET(InputPriceData!E$15,CalculationsAndCharts!$A101+$A$11,IF($C$5,8,0),1,1)) -> 280.79 | G101: =IF(A101>$A$8,"",OFFSET(InputPriceData!F$15,CalculationsAndCharts!$A101+$A$11,IF($C$5,8,0),1,1)) -> 282.15 | H101: 0.1681597818 | I101: -0.5259959108 | J101: -0.6580743271 | T101: 0.1681597818 | U101: -0.5259959108 | V101: -0.6580743271 | AQ101: 149161500
A102: 70 | B102: =IF(A102>$A$8,"",OFFSET(InputPriceData!B$15,$A102+$A$11,0,1,1)) -> 2019-08-22 | C102: =IF(A102>$A$8,"",OFFSET(InputPriceData!G$15,CalculationsAndCharts!$A102+$A$11,IF($C$5,8,0),1,1)) -> 51666400 | D102: =IF(A102>$A$8,"",OFFSET(InputPriceData!C$15,CalculationsAndCharts!$A102+$A$11,IF($C$5,8,0),1,1)) -> 290.45 | E102: =IF(A102>$A$8,"",OFFSET(InputPriceData!D$15,CalculationsAndCharts!$A102+$A$11,IF($C$5,8,0),1,1)) -> 291.15 | F102: =IF(A102>$A$8,"",OFFSET(InputPriceData!E$15,CalculationsAndCharts!$A102+$A$11,IF($C$5,8,0),1,1)) -> 287.65 | G102: =IF(A102>$A$8,"",OFFSET(InputPriceData!F$15,CalculationsAndCharts!$A102+$A$11,IF($C$5,8,0),1,1)) -> 289.59 | H102: 0.3060934116 | I102: -0.5566720612 | J102: -0.5715985518 | T102: 0.3060934116 | U102: -0.5566720612 | V102: -0.5715985518 | AQ102: 51666400
A103: 71 | B103: =IF(A103>$A$8,"",OFFSET(InputPriceData!B$15,$A103+$A$11,0,1,1)) -> 2019-08-21 | C103: =IF(A103>$A$8,"",OFFSET(InputPriceData!G$15,CalculationsAndCharts!$A103+$A$11,IF($C$5,8,0),1,1)) -> 49524700 | D103: =IF(A103>$A$8,"",OFFSET(InputPriceData!C$15,CalculationsAndCharts!$A103+$A$11,IF($C$5,8,0),1,1)) -> 289.71 | E103: =IF(A103>$A$8,"",OFFSET(InputPriceData!D$15,CalculationsAndCharts!$A103+$A$11,IF($C$5,8,0),1,1)) -> 290.09 | F103: =IF(A103>$A$8,"",OFFSET(InputPriceData!E$15,CalculationsAndCharts!$A103+$A$11,IF($C$5,8,0),1,1)) -> 288.96 | G103: =IF(A103>$A$8,"",OFFSET(InputPriceData!F$15,CalculationsAndCharts!$A103+$A$11,IF($C$5,8,0),1,1)) -> 289.68 | H103: -0.05559779676 | I103: -0.65393005 | J103: -0.5081920819 | T103: -0.05559779676 | U103: -0.65393005 | V103: -0.5081920819 | AQ103: 49524700
A104: 72 | B104: =IF(A104>$A$8,"",OFFSET(InputPriceData!B$15,$A104+$A$11,0,1,1)) -> 2019-08-20 | C104: =IF(A104>$A$8,"",OFFSET(InputPriceData!G$15,CalculationsAndCharts!$A104+$A$11,IF($C$5,8,0),1,1)) -> 51596400 | D104: =IF(A104>$A$8,"",OFFSET(InputPriceData!C$15,CalculationsAndCharts!$A104+$A$11,IF($C$5,8,0),1,1)) -> 289.01 | E104: =IF(A104>$A$8,"",OFFSET(InputPriceData!D$15,CalculationsAndCharts!$A104+$A$11,IF($C$5,8,0),1,1)) -> 289.59 | F104: =IF(A104>$A$8,"",OFFSET(InputPriceData!E$15,CalculationsAndCharts!$A104+$A$11,IF($C$5,8,0),1,1)) -> 287.21 | G104: =IF(A104>$A$8,"",OFFSET(InputPriceData!F$15,CalculationsAndCharts!$A104+$A$11,IF($C$5,8,0),1,1)) -> 287.34 | H104: -0.1257537522 | I104: -0.7445631317 | J104: -0.450039288 | T104: -0.1257537522 | U104: -0.7445631317 | V104: -0.450039288 | AQ104: 51596400
A105: 73 | B105: =IF(A105>$A$8,"",OFFSET(InputPriceData!B$15,$A105+$A$11,0,1,1)) -> 2019-08-19 | C105: =IF(A105>$A$8,"",OFFSET(InputPriceData!G$15,CalculationsAndCharts!$A105+$A$11,IF($C$5,8,0),1,1)) -> 53571800 | D105: =IF(A105>$A$8,"",OFFSET(InputPriceData!C$15,CalculationsAndCharts!$A105+$A$11,IF($C$5,8,0),1,1)) -> 289.42 | E105: =IF(A105>$A$8,"",OFFSET(InputPriceData!D$15,CalculationsAndCharts!$A105+$A$11,IF($C$5,8,0),1,1)) -> 290.31 | F105: =IF(A105>$A$8,"",OFFSET(InputPriceData!E$15,CalculationsAndCharts!$A105+$A$11,IF($C$5,8,0),1,1)) -> 288.68 | G105: =IF(A105>$A$8,"",OFFSET(InputPriceData!F$15,CalculationsAndCharts!$A105+$A$11,IF($C$5,8,0),1,1)) -> 289.56 | H105: -0.09130890462 | I105: -0.7816985922 | J105: -0.4026252231 | T105: -0.09130890462 | U105: -0.7816985922 | V105: -0.4026252231 | AP105: 53571800
A106: 74 | B106: =IF(A106>$A$8,"",OFFSET(InputPriceData!B$15,$A106+$A$11,0,1,1)) -> 2019-08-16 | C106: =IF(A106>$A$8,"",OFFSET(InputPriceData!G$15,CalculationsAndCharts!$A106+$A$11,IF($C$5,8,0),1,1)) -> 83018300 | D106: =IF(A106>$A$8,"",OFFSET(InputPriceData!C$15,CalculationsAndCharts!$A106+$A$11,IF($C$5,8,0),1,1)) -> 283.77 | E106: =IF(A106>$A$8,"",OFFSET(InputPriceData!D$15,CalculationsAndCharts!$A106+$A$11,IF($C$5,8,0),1,1)) -> 286.59 | F106: =IF(A106>$A$8,"",OFFSET(InputPriceData!E$15,CalculationsAndCharts!$A106+$A$11,IF($C$5,8,0),1,1)) -> 282.01 | G106: =IF(A106>$A$8,"",OFFSET(InputPriceData!F$15,CalculationsAndCharts!$A106+$A$11,IF($C$5,8,0),1,1)) -> 286.12 | H106: -0.01995090581 | I106: -0.8195241314 | J106: -0.372603103 | T106: -0.01995090581 | U106: -0.8195241314 | V106: -0.372603103 | AP106: 83018300
A107: 75 | B107: =IF(A107>$A$8,"",OFFSET(InputPriceData!B$15,$A107+$A$11,0,1,1)) -> 2019-08-15 | C107: =IF(A107>$A$8,"",OFFSET(InputPriceData!G$15,CalculationsAndCharts!$A107+$A$11,IF($C$5,8,0),1,1)) -> 99556600 | D107: =IF(A107>$A$8,"",OFFSET(InputPriceData!C$15,CalculationsAndCharts!$A107+$A$11,IF($C$5,8,0),1,1)) -> 282.18 | E107: =IF(A107>$A$8,"",OFFSET(InputPriceData!D$15,CalculationsAndCharts!$A107+$A$11,IF($C$5,8,0),1,1)) -> 282.94 | F107: =IF(A107>$A$8,"",OFFSET(InputPriceData!E$15,CalculationsAndCharts!$A107+$A$11,IF($C$5,8,0),1,1)) -> 279.72 | G107: =IF(A107>$A$8,"",OFFSET(InputPriceData!F$15,CalculationsAndCharts!$A107+$A$11,IF($C$5,8,0),1,1)) -> 281.96 | H107: -0.2389526138 | I107: -0.8048615862 | J107: -0.3199057441 | T107: -0.2389526138 | U107: -0.8048615862 | V107: -0.3199057441 | AQ107: 99556600
A108: 76 | B108: =IF(A108>$A$8,"",OFFSET(InputPriceData!B$15,$A108+$A$11,0,1,1)) -> 2019-08-14 | C108: =IF(A108>$A$8,"",OFFSET(InputPriceData!G$15,CalculationsAndCharts!$A108+$A$11,IF($C$5,8,0),1,1)) -> 135622100 | D108: =IF(A108>$A$8,"",OFFSET(InputPriceData!C$15,CalculationsAndCharts!$A108+$A$11,IF($C$5,8,0),1,1)) -> 285.34 | E108: =IF(A108>$A$8,"",OFFSET(InputPriceData!D$15,CalculationsAndCharts!$A108+$A$11,IF($C$5,8,0),1,1)) -> 286.01 | F108: =IF(A108>$A$8,"",OFFSET(InputPriceData!E$15,CalculationsAndCharts!$A108+$A$11,IF($C$5,8,0),1,1)) -> 281.07 | G108: =IF(A108>$A$8,"",OFFSET(InputPriceData!F$15,CalculationsAndCharts!$A108+$A$11,IF($C$5,8,0),1,1)) -> 281.21 | H108: -0.2824252219 | I108: -0.7701641634 | J108: -0.2074128114 | T108: -0.2824252219 | U108: -0.7701641634 | V108: -0.2074128114 | AQ108: 135622100
A109: 77 | B109: =IF(A109>$A$8,"",OFFSET(InputPriceData!B$15,$A109+$A$11,0,1,1)) -> 2019-08-13 | C109: =IF(A109>$A$8,"",OFFSET(InputPriceData!G$15,CalculationsAndCharts!$A109+$A$11,IF($C$5,8,0),1,1)) -> 94299800 | D109: =IF(A109>$A$8,"",OFFSET(InputPriceData!C$15,CalculationsAndCharts!$A109+$A$11,IF($C$5,8,0),1,1)) -> 285.02 | E109: =IF(A109>$A$8,"",OFFSET(InputPriceData!D$15,CalculationsAndCharts!$A109+$A$11,IF($C$5,8,0),1,1)) -> 291.37 | F109: =IF(A109>$A$8,"",OFFSET(InputPriceData!E$15,CalculationsAndCharts!$A109+$A$11,IF($C$5,8,0),1,1)) -> 284.64 | G109: =IF(A109>$A$8,"",OFFSET(InputPriceData!F$15,CalculationsAndCharts!$A109+$A$11,IF($C$5,8,0),1,1)) -> 289.78 | H109: -0.3020364579 | I109: -0.7084739921 | J109: -0.06591776344 | T109: -0.3020364579 | U109: -0.7084739921 | V109: -0.06591776344 | AP109: 94299800
A110: 78 | B110: =IF(A110>$A$8,"",OFFSET(InputPriceData!B$15,$A110+$A$11,0,1,1)) -> 2019-08-12 | C110: =IF(A110>$A$8,"",OFFSET(InputPriceData!G$15,CalculationsAndCharts!$A110+$A$11,IF($C$5,8,0),1,1)) -> 62629500 | D110: =IF(A110>$A$8,"",OFFSET(InputPriceData!C$15,CalculationsAndCharts!$A110+$A$11,IF($C$5,8,0),1,1)) -> 287.22 | E110: =IF(A110>$A$8,"",OFFSET(InputPriceData!D$15,CalculationsAndCharts!$A110+$A$11,IF($C$5,8,0),1,1)) -> 288.85 | F110: =IF(A110>$A$8,"",OFFSET(InputPriceData!E$15,CalculationsAndCharts!$A110+$A$11,IF($C$5,8,0),1,1)) -> 284.3 | G110: =IF(A110>$A$8,"",OFFSET(InputPriceData!F$15,CalculationsAndCharts!$A110+$A$11,IF($C$5,8,0),1,1)) -> 285.34 | H110: -0.6154747184 | I110: -0.7226443049 | J110: 0.03455907375 | T110: -0.6154747184 | U110: -0.7226443049 | V110: 0.03455907375 | AQ110: 62629500
A111: 79 | B111: =IF(A111>$A$8,"",OFFSET(InputPriceData!B$15,$A111+$A$11,0,1,1)) -> 2019-08-09 | C111: =IF(A111>$A$8,"",OFFSET(InputPriceData!G$15,CalculationsAndCharts!$A111+$A$11,IF($C$5,8,0),1,1)) -> 93730000 | D111: =IF(A111>$A$8,"",OFFSET(InputPriceData!C$15,CalculationsAndCharts!$A111+$A$11,IF($C$5,8,0),1,1)) -> 289.81 | E111: =IF(A111>$A$8,"",OFFSET(InputPriceData!D$15,CalculationsAndCharts!$A111+$A$11,IF($C$5,8,0),1,1)) -> 290.46 | F111: =IF(A111>$A$8,"",OFFSET(InputPriceData!E$15,CalculationsAndCharts!$A111+$A$11,IF($C$5,8,0),1,1)) -> 286.91 | G111: =IF(A111>$A$8,"",OFFSET(InputPriceData!F$15,CalculationsAndCharts!$A111+$A$11,IF($C$5,8,0),1,1)) -> 288.86 | H111: -0.6930936213 | I111: -0.6949855368 | J111: 0.1752145305 | T111: -0.6930936213 | U111: -0.6949855368 | V111: 0.1752145305 | AQ111: 93730000
A112: 80 | B112: =IF(A112>$A$8,"",OFFSET(InputPriceData!B$15,$A112+$A$11,0,1,1)) -> 2019-08-08 | C112: =IF(A112>$A$8,"",OFFSET(InputPriceData!G$15,CalculationsAndCharts!$A112+$A$11,IF($C$5,8,0),1,1)) -> 87713900 | D112: =IF(A112>$A$8,"",OFFSET(InputPriceData!C$15,CalculationsAndCharts!$A112+$A$11,IF($C$5,8,0),1,1)) -> 286.88 | E112: =IF(A112>$A$8,"",OFFSET(InputPriceData!D$15,CalculationsAndCharts!$A112+$A$11,IF($C$5,8,0),1,1)) -> 290.84 | F112: =IF(A112>$A$8,"",OFFSET(InputPriceData!E$15,CalculationsAndCharts!$A112+$A$11,IF($C$5,8,0),1,1)) -> 286.27 | G112: =IF(A112>$A$8,"",OFFSET(InputPriceData!F$15,CalculationsAndCharts!$A112+$A$11,IF($C$5,8,0),1,1)) -> 290.84 | H112: -0.8082859627 | I112: -0.6846198051 | J112: 0.2723489793 | T112: -0.8082859627 | U112: -0.6846198051 | V112: 0.2723489793 | AP112: 87713900
A113: 81 | B113: =IF(A113>$A$8,"",OFFSET(InputPriceData!B$15,$A113+$A$11,0,1,1)) -> 2019-08-07 | C113: =IF(A113>$A$8,"",OFFSET(InputPriceData!G$15,CalculationsAndCharts!$A113+$A$11,IF($C$5,8,0),1,1)) -> 140572300 | D113: =IF(A113>$A$8,"",OFFSET(InputPriceData!C$15,CalculationsAndCharts!$A113+$A$11,IF($C$5,8,0),1,1)) -> 281.71 | E113: =IF(A113>$A$8,"",OFFSET(InputPriceData!D$15,CalculationsAndCharts!$A113+$A$11,IF($C$5,8,0),1,1)) -> 286.09 | F113: =IF(A113>$A$8,"",OFFSET(InputPriceData!E$15,CalculationsAndCharts!$A113+$A$11,IF($C$5,8,0),1,1)) -> 279.37 | G113: =IF(A113>$A$8,"",OFFSET(InputPriceData!F$15,CalculationsAndCharts!$A113+$A$11,IF($C$5,8,0),1,1)) -> 285.24 | H113: -0.9042270697 | I113: -0.6711037226 | J113: 0.3505750907 | T113: -0.9042270697 | U113: -0.6711037226 | V113: 0.3505750907 | AP113: 140572300
A114: 82 | B114: =IF(A114>$A$8,"",OFFSET(InputPriceData!B$15,$A114+$A$11,0,1,1)) -> 2019-08-06 | C114: =IF(A114>$A$8,"",OFFSET(InputPriceData!G$15,CalculationsAndCharts!$A114+$A$11,IF($C$5,8,0),1,1)) -> 120711700 | D114: =IF(A114>$A$8,"",OFFSET(InputPriceData!C$15,CalculationsAndCharts!$A114+$A$11,IF($C$5,8,0),1,1)) -> 283.2 | E114: =IF(A114>$A$8,"",OFFSET(InputPriceData!D$15,CalculationsAndCharts!$A114+$A$11,IF($C$5,8,0),1,1)) -> 285.31 | F114: =IF(A114>$A$8,"",OFFSET(InputPriceData!E$15,CalculationsAndCharts!$A114+$A$11,IF($C$5,8,0),1,1)) -> 281.59 | G114: =IF(A114>$A$8,"",OFFSET(InputPriceData!F$15,CalculationsAndCharts!$A114+$A$11,IF($C$5,8,0),1,1)) -> 285.08 | H114: -0.8835706419 | I114: -0.5824800715 | J114: 0.4810521314 | T114: -0.8835706419 | U114: -0.5824800715 | V114: 0.4810521314 | AP114: 120711700
A115: 83 | B115: =IF(A115>$A$8,"",OFFSET(InputPriceData!B$15,$A115+$A$11,0,1,1)) -> 2019-08-05 | C115: =IF(A115>$A$8,"",OFFSET(InputPriceData!G$15,CalculationsAndCharts!$A115+$A$11,IF($C$5,8,0),1,1)) -> 178745400 | D115: =IF(A115>$A$8,"",OFFSET(InputPriceData!C$15,CalculationsAndCharts!$A115+$A$11,IF($C$5,8,0),1,1)) -> 285.36 | E115: =IF(A115>$A$8,"",OFFSET(InputPriceData!D$15,CalculationsAndCharts!$A115+$A$11,IF($C$5,8,0),1,1)) -> 285.48 | F115: =IF(A115>$A$8,"",OFFSET(InputPriceData!E$15,CalculationsAndCharts!$A115+$A$11,IF($C$5,8,0),1,1)) -> 279.05 | G115: =IF(A115>$A$8,"",OFFSET(InputPriceData!F$15,CalculationsAndCharts!$A115+$A$11,IF($C$5,8,0),1,1)) -> 281.13 | H115: -0.7979272655 | I115: -0.4345614034 | J115: 0.6123417759 | T115: -0.7979272655 | U115: -0.4345614034 | V115: 0.6123417759 | AQ115: 178745400
A116: 84 | B116: =IF(A116>$A$8,"",OFFSET(InputPriceData!B$15,$A116+$A$11,0,1,1)) -> 2019-08-02 | C116: =IF(A116>$A$8,"",OFFSET(InputPriceData!G$15,CalculationsAndCharts!$A116+$A$11,IF($C$5,8,0),1,1)) -> 116749700 | D116: =IF(A116>$A$8,"",OFFSET(InputPriceData!C$15,CalculationsAndCharts!$A116+$A$11,IF($C$5,8,0),1,1)) -> 291.07 | E116: =IF(A116>$A$8,"",OFFSET(InputPriceData!D$15,CalculationsAndCharts!$A116+$A$11,IF($C$5,8,0),1,1)) -> 291.34 | F116: =IF(A116>$A$8,"",OFFSET(InputPriceData!E$15,CalculationsAndCharts!$A116+$A$11,IF($C$5,8,0),1,1)) -> 288.15 | G116: =IF(A116>$A$8,"",OFFSET(InputPriceData!F$15,CalculationsAndCharts!$A116+$A$11,IF($C$5,8,0),1,1)) -> 289.85 | H116: -0.6020151042 | I116: -0.1401077999 | J116: 0.8135112782 | T116: -0.6020151042 | U116: -0.1401077999 | V116: 0.8135112782 | AQ116: 116749700
A117: 85 | B117: =IF(A117>$A$8,"",OFFSET(InputPriceData!B$15,$A117+$A$11,0,1,1)) -> 2019-08-01 | C117: =IF(A117>$A$8,"",OFFSET(InputPriceData!G$15,CalculationsAndCharts!$A117+$A$11,IF($C$5,8,0),1,1)) -> 142646600 | D117: =IF(A117>$A$8,"",OFFSET(InputPriceData!C$15,CalculationsAndCharts!$A117+$A$11,IF($C$5,8,0),1,1)) -> 294.78 | E117: =IF(A117>$A$8,"",OFFSET(InputPriceData!D$15,CalculationsAndCharts!$A117+$A$11,IF($C$5,8,0),1,1)) -> 298.02 | F117: =IF(A117>$A$8,"",OFFSET(InputPriceData!E$15,CalculationsAndCharts!$A117+$A$11,IF($C$5,8,0),1,1)) -> 291.18 | G117: =IF(A117>$A$8,"",OFFSET(InputPriceData!F$15,CalculationsAndCharts!$A117+$A$11,IF($C$5,8,0),1,1)) -> 292.05 | H117: -0.1471221022 | I117: 0.1432152018 | J117: 0.8809127783 | T117: -0.1471221022 | U117: 0.1432152018 | V117: 0.8809127783 | AQ117: 142646600
A118: 86 | B118: =IF(A118>$A$8,"",OFFSET(InputPriceData!B$15,$A118+$A$11,0,1,1)) -> 2019-07-31 | C118: =IF(A118>$A$8,"",OFFSET(InputPriceData!G$15,CalculationsAndCharts!$A118+$A$11,IF($C$5,8,0),1,1)) -> 104245200 | D118: =IF(A118>$A$8,"",OFFSET(InputPriceData!C$15,CalculationsAndCharts!$A118+$A$11,IF($C$5,8,0),1,1)) -> 298.14 | E118: =IF(A118>$A$8,"",OFFSET(InputPriceData!D$15,CalculationsAndCharts!$A118+$A$11,IF($C$5,8,0),1,1)) -> 298.35 | F118: =IF(A118>$A$8,"",OFFSET(InputPriceData!E$15,CalculationsAndCharts!$A118+$A$11,IF($C$5,8,0),1,1)) -> 292.41 | G118: =IF(A118>$A$8,"",OFFSET(InputPriceData!F$15,CalculationsAndCharts!$A118+$A$11,IF($C$5,8,0),1,1)) -> 294.61 | H118: 0.3570391212 | I118: 0.4286373178 | J118: 0.9184975355 | T118: 0.3570391212 | U118: 0.4286373178 | V118: 0.9184975355 | AQ118: 104245200
A119: 87 | B119: =IF(A119>$A$8,"",OFFSET(InputPriceData!B$15,$A119+$A$11,0,1,1)) -> 2019-07-30 | C119: =IF(A119>$A$8,"",OFFSET(InputPriceData!G$15,CalculationsAndCharts!$A119+$A$11,IF($C$5,8,0),1,1)) -> 45849000 | D119: =IF(A119>$A$8,"",OFFSET(InputPriceData!C$15,CalculationsAndCharts!$A119+$A$11,IF($C$5,8,0),1,1)) -> 297.07 | E119: =IF(A119>$A$8,"",OFFSET(InputPriceData!D$15,CalculationsAndCharts!$A119+$A$11,IF($C$5,8,0),1,1)) -> 298.32 | F119: =IF(A119>$A$8,"",OFFSET(InputPriceData!E$15,CalculationsAndCharts!$A119+$A$11,IF($C$5,8,0),1,1)) -> 296.65 | G119: =IF(A119>$A$8,"",OFFSET(InputPriceData!F$15,CalculationsAndCharts!$A119+$A$11,IF($C$5,8,0),1,1)) -> 297.87 | H119: 0.8181842948 | I119: 0.6549303875 | J119: 0.9322831421 | T119: 0.8181842948 | U119: 0.6549303875 | V119: 0.9322831421 | AP119: 45849000
A120: 88 | B120: =IF(A120>$A$8,"",OFFSET(InputPriceData!B$15,$A120+$A$11,0,1,1)) -> 2019-07-29 | C120: =IF(A120>$A$8,"",OFFSET(InputPriceData!G$15,CalculationsAndCharts!$A120+$A$11,IF($C$5,8,0),1,1)) -> 38126500 | D120: =IF(A120>$A$8,"",OFFSET(InputPriceData!C$15,CalculationsAndCharts!$A120+$A$11,IF($C$5,8,0),1,1)) -> 299.02 | E120: =IF(A120>$A$8,"",OFFSET(InputPriceData!D$15,CalculationsAndCharts!$A120+$A$11,IF($C$5,8,0),1,1)) -> 299.15 | F120: =IF(A120>$A$8,"",OFFSET(InputPriceData!E$15,CalculationsAndCharts!$A120+$A$11,IF($C$5,8,0),1,1)) -> 298 | G120: =IF(A120>$A$8,"",OFFSET(InputPriceData!F$15,CalculationsAndCharts!$A120+$A$11,IF($C$5,8,0),1,1)) -> 298.61 | H120: 0.7127253584 | I120: 0.6931892961 | J120: 0.9176988686 | T120: 0.7127253584 | U120: 0.6931892961 | V120: 0.9176988686 | AQ120: 38126500
A121: 89 | B121: =IF(A121>$A$8,"",OFFSET(InputPriceData!B$15,$A121+$A$11,0,1,1)) -> 2019-07-26 | C121: =IF(A121>$A$8,"",OFFSET(InputPriceData!G$15,CalculationsAndCharts!$A121+$A$11,IF($C$5,8,0),1,1)) -> 45084100 | D121: =IF(A121>$A$8,"",OFFSET(InputPriceData!C$15,CalculationsAndCharts!$A121+$A$11,IF($C$5,8,0),1,1)) -> 297.91 | E121: =IF(A121>$A$8,"",OFFSET(InputPriceData!D$15,CalculationsAndCharts!$A121+$A$11,IF($C$5,8,0),1,1)) -> 299.37 | F121: =IF(A121>$A$8,"",OFFSET(InputPriceData!E$15,CalculationsAndCharts!$A121+$A$11,IF($C$5,8,0),1,1)) -> 297.77 | G121: =IF(A121>$A$8,"",OFFSET(InputPriceData!F$15,CalculationsAndCharts!$A121+$A$11,IF($C$5,8,0),1,1)) -> 299.15 | H121: 0.4042776138 | I121: 0.7084718767 | J121: 0.914843868 | T121: 0.4042776138 | U121: 0.7084718767 | V121: 0.914843868 | AP121: 45084100
A122: 90 | B122: =IF(A122>$A$8,"",OFFSET(InputPriceData!B$15,$A122+$A$11,0,1,1)) -> 2019-07-25 | C122: =IF(A122>$A$8,"",OFFSET(InputPriceData!G$15,CalculationsAndCharts!$A122+$A$11,IF($C$5,8,0),1,1)) -> 55394100 | D122: =IF(A122>$A$8,"",OFFSET(InputPriceData!C$15,CalculationsAndCharts!$A122+$A$11,IF($C$5,8,0),1,1)) -> 298.09 | E122: =IF(A122>$A$8,"",OFFSET(InputPriceData!D$15,CalculationsAndCharts!$A122+$A$11,IF($C$5,8,0),1,1)) -> 298.15 | F122: =IF(A122>$A$8,"",OFFSET(InputPriceData!E$15,CalculationsAndCharts!$A122+$A$11,IF($C$5,8,0),1,1)) -> 296.28 | G122: =IF(A122>$A$8,"",OFFSET(InputPriceData!F$15,CalculationsAndCharts!$A122+$A$11,IF($C$5,8,0),1,1)) -> 297.16 | H122: -0.01078648166 | I122: 0.7141736162 | J122: 0.9187499283 | T122: -0.01078648166 | U122: 0.7141736162 | V122: 0.9187499283 | AQ122: 55394100
A123: 91 | B123: =IF(A123>$A$8,"",OFFSET(InputPriceData!B$15,$A123+$A$11,0,1,1)) -> 2019-07-24 | C123: =IF(A123>$A$8,"",OFFSET(InputPriceData!G$15,CalculationsAndCharts!$A123+$A$11,IF($C$5,8,0),1,1)) -> 47213200 | D123: =IF(A123>$A$8,"",OFFSET(InputPriceData!C$15,CalculationsAndCharts!$A123+$A$11,IF($C$5,8,0),1,1)) -> 296.36 | E123: =IF(A123>$A$8,"",OFFSET(InputPriceData!D$15,CalculationsAndCharts!$A123+$A$11,IF($C$5,8,0),1,1)) -> 298.59 | F123: =IF(A123>$A$8,"",OFFSET(InputPriceData!E$15,CalculationsAndCharts!$A123+$A$11,IF($C$5,8,0),1,1)) -> 296.26 | G123: =IF(A123>$A$8,"",OFFSET(InputPriceData!F$15,CalculationsAndCharts!$A123+$A$11,IF($C$5,8,0),1,1)) -> 298.59 | H123: -0.07831704758 | I123: 0.7542796828 | J123: 0.9262529065 | T123: -0.07831704758 | U123: 0.7542796828 | V123: 0.9262529065 | AP123: 47213200
A124: 92 | B124: =IF(A124>$A$8,"",OFFSET(InputPriceData!B$15,$A124+$A$11,0,1,1)) -> 2019-07-23 | C124: =IF(A124>$A$8,"",OFFSET(InputPriceData!G$15,CalculationsAndCharts!$A124+$A$11,IF($C$5,8,0),1,1)) -> 44564500 | D124: =IF(A124>$A$8,"",OFFSET(InputPriceData!C$15,CalculationsAndCharts!$A124+$A$11,IF($C$5,8,0),1,1)) -> 296.31 | E124: =IF(A124>$A$8,"",OFFSET(InputPriceData!D$15,CalculationsAndCharts!$A124+$A$11,IF($C$5,8,0),1,1)) -> 297.19 | F124: =IF(A124>$A$8,"",OFFSET(InputPriceData!E$15,CalculationsAndCharts!$A124+$A$11,IF($C$5,8,0),1,1)) -> 295.4 | G124: =IF(A124>$A$8,"",OFFSET(InputPriceData!F$15,CalculationsAndCharts!$A124+$A$11,IF($C$5,8,0),1,1)) -> 297.19 | H124: -0.3296842477 | I124: 0.7688346478 | J124: 0.9292108333 | T124: -0.3296842477 | U124: 0.7688346478 | V124: 0.9292108333 | AP124: 44564500
A125: 93 | B125: =IF(A125>$A$8,"",OFFSET(InputPriceData!B$15,$A125+$A$11,0,1,1)) -> 2019-07-22 | C125: =IF(A125>$A$8,"",OFFSET(InputPriceData!G$15,CalculationsAndCharts!$A125+$A$11,IF($C$5,8,0),1,1)) -> 43638100 | D125: =IF(A125>$A$8,"",OFFSET(InputPriceData!C$15,CalculationsAndCharts!$A125+$A$11,IF($C$5,8,0),1,1)) -> 294.79 | E125: =IF(A125>$A$8,"",OFFSET(InputPriceData!D$15,CalculationsAndCharts!$A125+$A$11,IF($C$5,8,0),1,1)) -> 295.67 | F125: =IF(A125>$A$8,"",OFFSET(InputPriceData!E$15,CalculationsAndCharts!$A125+$A$11,IF($C$5,8,0),1,1)) -> 294.23 | G125: =IF(A125>$A$8,"",OFFSET(InputPriceData!F$15,CalculationsAndCharts!$A125+$A$11,IF($C$5,8,0),1,1)) -> 295.08 | H125: -0.2199186028 | I125: 0.7687656385 | J125: 0.9295535406 | T125: -0.2199186028 | U125: 0.7687656385 | V125: 0.9295535406 | AP125: 43638100
A126: 94 | B126: =IF(A126>$A$8,"",OFFSET(InputPriceData!B$15,$A126+$A$11,0,1,1)) -> 2019-07-19 | C126: =IF(A126>$A$8,"",OFFSET(InputPriceData!G$15,CalculationsAndCharts!$A126+$A$11,IF($C$5,8,0),1,1)) -> 58678600 | D126: =IF(A126>$A$8,"",OFFSET(InputPriceData!C$15,CalculationsAndCharts!$A126+$A$11,IF($C$5,8,0),1,1)) -> 297.2 | E126: =IF(A126>$A$8,"",OFFSET(InputPriceData!D$15,CalculationsAndCharts!$A126+$A$11,IF($C$5,8,0),1,1)) -> 297.23 | F126: =IF(A126>$A$8,"",OFFSET(InputPriceData!E$15,CalculationsAndCharts!$A126+$A$11,IF($C$5,8,0),1,1)) -> 294.17 | G126: =IF(A126>$A$8,"",OFFSET(InputPriceData!F$15,CalculationsAndCharts!$A126+$A$11,IF($C$5,8,0),1,1)) -> 294.36 | H126: 0.1503839096 | I126: 0.7936914567 | J126: 0.9342164902 | T126: 0.1503839096 | U126: 0.7936914567 | V126: 0.9342164902 | AQ126: 58678600
A127: 95 | B127: =IF(A127>$A$8,"",OFFSET(InputPriceData!B$15,$A127+$A$11,0,1,1)) -> 2019-07-18 | C127: =IF(A127>$A$8,"",OFFSET(InputPriceData!G$15,CalculationsAndCharts!$A127+$A$11,IF($C$5,8,0),1,1)) -> 51392600 | D127: =IF(A127>$A$8,"",OFFSET(InputPriceData!C$15,CalculationsAndCharts!$A127+$A$11,IF($C$5,8,0),1,1)) -> 294.38 | E127: =IF(A127>$A$8,"",OFFSET(InputPriceData!D$15,CalculationsAndCharts!$A127+$A$11,IF($C$5,8,0),1,1)) -> 296.42 | F127: =IF(A127>$A$8,"",OFFSET(InputPriceData!E$15,CalculationsAndCharts!$A127+$A$11,IF($C$5,8,0),1,1)) -> 293.89 | G127: =IF(A127>$A$8,"",OFFSET(InputPriceData!F$15,CalculationsAndCharts!$A127+$A$11,IF($C$5,8,0),1,1)) -> 296 | H127: 0.4166735535 | I127: 0.8204166594 | J127: 0.9297497321 | T127: 0.4166735535 | U127: 0.8204166594 | V127: 0.9297497321 | AP127: 51392600
A128: 96 | B128: =IF(A128>$A$8,"",OFFSET(InputPriceData!B$15,$A128+$A$11,0,1,1)) -> 2019-07-17 | C128: =IF(A128>$A$8,"",OFFSET(InputPriceData!G$15,CalculationsAndCharts!$A128+$A$11,IF($C$5,8,0),1,1)) -> 36036300 | D128: =IF(A128>$A$8,"",OFFSET(InputPriceData!C$15,CalculationsAndCharts!$A128+$A$11,IF($C$5,8,0),1,1)) -> 296.91 | E128: =IF(A128>$A$8,"",OFFSET(InputPriceData!D$15,CalculationsAndCharts!$A128+$A$11,IF($C$5,8,0),1,1)) -> 297.09 | F128: =IF(A128>$A$8,"",OFFSET(InputPriceData!E$15,CalculationsAndCharts!$A128+$A$11,IF($C$5,8,0),1,1)) -> 294.92 | G128: =IF(A128>$A$8,"",OFFSET(InputPriceData!F$15,CalculationsAndCharts!$A128+$A$11,IF($C$5,8,0),1,1)) -> 294.92 | H128: 0.4159852019 | I128: 0.8435868402 | J128: 0.9160360949 | T128: 0.4159852019 | U128: 0.8435868402 | V128: 0.9160360949 | AQ128: 36036300
A129: 97 | B129: =IF(A129>$A$8,"",OFFSET(InputPriceData!B$15,$A129+$A$11,0,1,1)) -> 2019-07-16 | C129: =IF(A129>$A$8,"",OFFSET(InputPriceData!G$15,CalculationsAndCharts!$A129+$A$11,IF($C$5,8,0),1,1)) -> 36650100 | D129: =IF(A129>$A$8,"",OFFSET(InputPriceData!C$15,CalculationsAndCharts!$A129+$A$11,IF($C$5,8,0),1,1)) -> 297.8 | E129: =IF(A129>$A$8,"",OFFSET(InputPriceData!D$15,CalculationsAndCharts!$A129+$A$11,IF($C$5,8,0),1,1)) -> 298.03 | F129: =IF(A129>$A$8,"",OFFSET(InputPriceData!E$15,CalculationsAndCharts!$A129+$A$11,IF($C$5,8,0),1,1)) -> 296.61 | G129: =IF(A129>$A$8,"",OFFSET(InputPriceData!F$15,CalculationsAndCharts!$A129+$A$11,IF($C$5,8,0),1,1)) -> 296.94 | H129: 0.7726785486 | I129: 0.8810502067 | J129: 0.9113553786 | T129: 0.7726785486 | U129: 0.8810502067 | V129: 0.9113553786 | AQ129: 36650100
A130: 98 | B130: =IF(A130>$A$8,"",OFFSET(InputPriceData!B$15,$A130+$A$11,0,1,1)) -> 2019-07-15 | C130: =IF(A130>$A$8,"",OFFSET(InputPriceData!G$15,CalculationsAndCharts!$A130+$A$11,IF($C$5,8,0),1,1)) -> 33900000 | D130: =IF(A130>$A$8,"",OFFSET(InputPriceData!C$15,CalculationsAndCharts!$A130+$A$11,IF($C$5,8,0),1,1)) -> 298.28 | E130: =IF(A130>$A$8,"",OFFSET(InputPriceData!D$15,CalculationsAndCharts!$A130+$A$11,IF($C$5,8,0),1,1)) -> 298.28 | F130: =IF(A130>$A$8,"",OFFSET(InputPriceData!E$15,CalculationsAndCharts!$A130+$A$11,IF($C$5,8,0),1,1)) -> 297.35 | G130: =IF(A130>$A$8,"",OFFSET(InputPriceData!F$15,CalculationsAndCharts!$A130+$A$11,IF($C$5,8,0),1,1)) -> 297.9 | H130: 0.837587796 | I130: 0.8916869714 | J130: 0.8940078958 | T130: 0.837587796 | U130: 0.8916869714 | V130: 0.8940078958 | AQ130: 33900000
A131: 99 | B131: =IF(A131>$A$8,"",OFFSET(InputPriceData!B$15,$A131+$A$11,0,1,1)) -> 2019-07-12 | C131: =IF(A131>$A$8,"",OFFSET(InputPriceData!G$15,CalculationsAndCharts!$A131+$A$11,IF($C$5,8,0),1,1)) -> 40326000 | D131: =IF(A131>$A$8,"",OFFSET(InputPriceData!C$15,CalculationsAndCharts!$A131+$A$11,IF($C$5,8,0),1,1)) -> 297.01 | E131: =IF(A131>$A$8,"",OFFSET(InputPriceData!D$15,CalculationsAndCharts!$A131+$A$11,IF($C$5,8,0),1,1)) -> 297.88 | F131: =IF(A131>$A$8,"",OFFSET(InputPriceData!E$15,CalculationsAndCharts!$A131+$A$11,IF($C$5,8,0),1,1)) -> 296.67 | G131: =IF(A131>$A$8,"",OFFSET(InputPriceData!F$15,CalculationsAndCharts!$A131+$A$11,IF($C$5,8,0),1,1)) -> 297.8 | H131: 0.836113485 | I131: 0.8937631203 | J131: 0.8645096215 | T131: 0.836113485 | U131: 0.8937631203 | V131: 0.8645096215 | AP131: 40326000
A132: 100 | B132: =IF(A132>$A$8,"",OFFSET(InputPriceData!B$15,$A132+$A$11,0,1,1)) -> 2019-07-11 | C132: =IF(A132>$A$8,"",OFFSET(InputPriceData!G$15,CalculationsAndCharts!$A132+$A$11,IF($C$5,8,0),1,1)) -> 50826100 | D132: =IF(A132>$A$8,"",OFFSET(InputPriceData!C$15,CalculationsAndCharts!$A132+$A$11,IF($C$5,8,0),1,1)) -> 296.49 | E132: =IF(A132>$A$8,"",OFFSET(InputPriceData!D$15,CalculationsAndCharts!$A132+$A$11,IF($C$5,8,0),1,1)) -> 296.74 | F132: =IF(A132>$A$8,"",OFFSET(InputPriceData!E$15,CalculationsAndCharts!$A132+$A$11,IF($C$5,8,0),1,1)) -> 295.38 | G132: =IF(A132>$A$8,"",OFFSET(InputPriceData!F$15,CalculationsAndCharts!$A132+$A$11,IF($C$5,8,0),1,1)) -> 296.48 | H132: 0.8395180015 | I132: 0.89177313 | J132: 0.8442955814 | T132: 0.8395180015 | U132: 0.89177313 | V132: 0.8442955814 | AQ132: 50826100
A133: 101 | B133: =IF(A133>$A$8,"",OFFSET(InputPriceData!B$15,$A133+$A$11,0,1,1)) -> 2019-07-10 | C133: =IF(A133>$A$8,"",OFFSET(InputPriceData!G$15,CalculationsAndCharts!$A133+$A$11,IF($C$5,8,0),1,1)) -> 58448500 | D133: =IF(A133>$A$8,"",OFFSET(InputPriceData!C$15,CalculationsAndCharts!$A133+$A$11,IF($C$5,8,0),1,1)) -> 295.55 | E133: =IF(A133>$A$8,"",OFFSET(InputPriceData!D$15,CalculationsAndCharts!$A133+$A$11,IF($C$5,8,0),1,1)) -> 296.82 | F133: =IF(A133>$A$8,"",OFFSET(InputPriceData!E$15,CalculationsAndCharts!$A133+$A$11,IF($C$5,8,0),1,1)) -> 294.96 | G133: =IF(A133>$A$8,"",OFFSET(InputPriceData!F$15,CalculationsAndCharts!$A133+$A$11,IF($C$5,8,0),1,1)) -> 295.78 | H133: 0.8692958119 | I133: 0.8939635229 | J133: 0.829566464 | T133: 0.8692958119 | U133: 0.8939635229 | V133: 0.829566464 | AP133: 58448500
A134: 102 | B134: =IF(A134>$A$8,"",OFFSET(InputPriceData!B$15,$A134+$A$11,0,1,1)) -> 2019-07-09 | C134: =IF(A134>$A$8,"",OFFSET(InputPriceData!G$15,CalculationsAndCharts!$A134+$A$11,IF($C$5,8,0),1,1)) -> 41101300 | D134: =IF(A134>$A$8,"",OFFSET(InputPriceData!C$15,CalculationsAndCharts!$A134+$A$11,IF($C$5,8,0),1,1)) -> 292.74 | E134: =IF(A134>$A$8,"",OFFSET(InputPriceData!D$15,CalculationsAndCharts!$A134+$A$11,IF($C$5,8,0),1,1)) -> 294.7 | F134: =IF(A134>$A$8,"",OFFSET(InputPriceData!E$15,CalculationsAndCharts!$A134+$A$11,IF($C$5,8,0),1,1)) -> 292.68 | G134: =IF(A134>$A$8,"",OFFSET(InputPriceData!F$15,CalculationsAndCharts!$A134+$A$11,IF($C$5,8,0),1,1)) -> 294.38 | H134: 0.893033186 | I134: 0.8922049433 | J134: 0.8220201106 | T134: 0.893033186 | U134: 0.8922049433 | V134: 0.8220201106 | AP134: 41101300
A135: 103 | B135: =IF(A135>$A$8,"",OFFSET(InputPriceData!B$15,$A135+$A$11,0,1,1)) -> 2019-07-08 | C135: =IF(A135>$A$8,"",OFFSET(InputPriceData!G$15,CalculationsAndCharts!$A135+$A$11,IF($C$5,8,0),1,1)) -> 45841800 | D135: =IF(A135>$A$8,"",OFFSET(InputPriceData!C$15,CalculationsAndCharts!$A135+$A$11,IF($C$5,8,0),1,1)) -> 294.2 | E135: =IF(A135>$A$8,"",OFFSET(InputPriceData!D$15,CalculationsAndCharts!$A135+$A$11,IF($C$5,8,0),1,1)) -> 295.44 | F135: =IF(A135>$A$8,"",OFFSET(InputPriceData!E$15,CalculationsAndCharts!$A135+$A$11,IF($C$5,8,0),1,1)) -> 293.42 | G135: =IF(A135>$A$8,"",OFFSET(InputPriceData!F$15,CalculationsAndCharts!$A135+$A$11,IF($C$5,8,0),1,1)) -> 294.01 | H135: 0.8367336281 | I135: 0.8920594972 | J135: 0.7801923193 | T135: 0.8367336281 | U135: 0.8920594972 | V135: 0.7801923193 | AQ135: 45841800
A136: 104 | B136: =IF(A136>$A$8,"",OFFSET(InputPriceData!B$15,$A136+$A$11,0,1,1)) -> 2019-07-05 | C136: =IF(A136>$A$8,"",OFFSET(InputPriceData!G$15,CalculationsAndCharts!$A136+$A$11,IF($C$5,8,0),1,1)) -> 51677300 | D136: =IF(A136>$A$8,"",OFFSET(InputPriceData!C$15,CalculationsAndCharts!$A136+$A$11,IF($C$5,8,0),1,1)) -> 294.62 | E136: =IF(A136>$A$8,"",OFFSET(InputPriceData!D$15,CalculationsAndCharts!$A136+$A$11,IF($C$5,8,0),1,1)) -> 295.81 | F136: =IF(A136>$A$8,"",OFFSET(InputPriceData!E$15,CalculationsAndCharts!$A136+$A$11,IF($C$5,8,0),1,1)) -> 293.21 | G136: =IF(A136>$A$8,"",OFFSET(InputPriceData!F$15,CalculationsAndCharts!$A136+$A$11,IF($C$5,8,0),1,1)) -> 295.63 | H136: 0.7431484867 | I136: 0.8962033105 | J136: 0.7441599592 | T136: 0.7431484867 | U136: 0.8962033105 | V136: 0.7441599592 | AP136: 51677300
A137: 105 | B137: =IF(A137>$A$8,"",OFFSET(InputPriceData!B$15,$A137+$A$11,0,1,1)) -> 2019-07-03 | C137: =IF(A137>$A$8,"",OFFSET(InputPriceData!G$15,CalculationsAndCharts!$A137+$A$11,IF($C$5,8,0),1,1)) -> 40898900 | D137: =IF(A137>$A$8,"",OFFSET(InputPriceData!C$15,CalculationsAndCharts!$A137+$A$11,IF($C$5,8,0),1,1)) -> 294.37 | E137: =IF(A137>$A$8,"",OFFSET(InputPriceData!D$15,CalculationsAndCharts!$A137+$A$11,IF($C$5,8,0),1,1)) -> 295.99 | F137: =IF(A137>$A$8,"",OFFSET(InputPriceData!E$15,CalculationsAndCharts!$A137+$A$11,IF($C$5,8,0),1,1)) -> 294.21 | G137: =IF(A137>$A$8,"",OFFSET(InputPriceData!F$15,CalculationsAndCharts!$A137+$A$11,IF($C$5,8,0),1,1)) -> 295.97 | H137: 0.518430901 | I137: 0.8958658589 | J137: 0.6951180707 | T137: 0.518430901 | U137: 0.8958658589 | V137: 0.6951180707 | AP137: 40898900
A138: 106 | B138: =IF(A138>$A$8,"",OFFSET(InputPriceData!B$15,$A138+$A$11,0,1,1)) -> 2019-07-02 | C138: =IF(A138>$A$8,"",OFFSET(InputPriceData!G$15,CalculationsAndCharts!$A138+$A$11,IF($C$5,8,0),1,1)) -> 61504500 | D138: =IF(A138>$A$8,"",OFFSET(InputPriceData!C$15,CalculationsAndCharts!$A138+$A$11,IF($C$5,8,0),1,1)) -> 292.81 | E138: =IF(A138>$A$8,"",OFFSET(InputPriceData!D$15,CalculationsAndCharts!$A138+$A$11,IF($C$5,8,0),1,1)) -> 293.68 | F138: =IF(A138>$A$8,"",OFFSET(InputPriceData!E$15,CalculationsAndCharts!$A138+$A$11,IF($C$5,8,0),1,1)) -> 291.89 | G138: =IF(A138>$A$8,"",OFFSET(InputPriceData!F$15,CalculationsAndCharts!$A138+$A$11,IF($C$5,8,0),1,1)) -> 293.62 | H138: 0.3592195778 | I138: 0.8942376314 | J138: 0.6364099619 | T138: 0.3592195778 | U138: 0.8942376314 | V138: 0.6364099619 | AP138: 61504500
A139: 107 | B139: =IF(A139>$A$8,"",OFFSET(InputPriceData!B$15,$A139+$A$11,0,1,1)) -> 2019-07-01 | C139: =IF(A139>$A$8,"",OFFSET(InputPriceData!G$15,CalculationsAndCharts!$A139+$A$11,IF($C$5,8,0),1,1)) -> 79107500 | D139: =IF(A139>$A$8,"",OFFSET(InputPriceData!C$15,CalculationsAndCharts!$A139+$A$11,IF($C$5,8,0),1,1)) -> 293.87 | E139: =IF(A139>$A$8,"",OFFSET(InputPriceData!D$15,CalculationsAndCharts!$A139+$A$11,IF($C$5,8,0),1,1)) -> 294.11 | F139: =IF(A139>$A$8,"",OFFSET(InputPriceData!E$15,CalculationsAndCharts!$A139+$A$11,IF($C$5,8,0),1,1)) -> 291.54 | G139: =IF(A139>$A$8,"",OFFSET(InputPriceData!F$15,CalculationsAndCharts!$A139+$A$11,IF($C$5,8,0),1,1)) -> 292.86 | H139: 0.2419758946 | I139: 0.8872548455 | J139: 0.5302258591 | T139: 0.2419758946 | U139: 0.8872548455 | V139: 0.5302258591 | AQ139: 79107500
A140: 108 | B140: =IF(A140>$A$8,"",OFFSET(InputPriceData!B$15,$A140+$A$11,0,1,1)) -> 2019-06-28 | C140: =IF(A140>$A$8,"",OFFSET(InputPriceData!G$15,CalculationsAndCharts!$A140+$A$11,IF($C$5,8,0),1,1)) -> 59350900 | D140: =IF(A140>$A$8,"",OFFSET(InputPriceData!C$15,CalculationsAndCharts!$A140+$A$11,IF($C$5,8,0),1,1)) -> 289.81 | E140: =IF(A140>$A$8,"",OFFSET(InputPriceData!D$15,CalculationsAndCharts!$A140+$A$11,IF($C$5,8,0),1,1)) -> 290.77 | F140: =IF(A140>$A$8,"",OFFSET(InputPriceData!E$15,CalculationsAndCharts!$A140+$A$11,IF($C$5,8,0),1,1)) -> 289.25 | G140: =IF(A140>$A$8,"",OFFSET(InputPriceData!F$15,CalculationsAndCharts!$A140+$A$11,IF($C$5,8,0),1,1)) -> 290.23 | H140: 0.2956694939 | I140: 0.8581646447 | J140: 0.4067683008 | T140: 0.2956694939 | U140: 0.8581646447 | V140: 0.4067683008 | AP140: 59350900
A141: 109 | B141: =IF(A141>$A$8,"",OFFSET(InputPriceData!B$15,$A141+$A$11,0,1,1)) -> 2019-06-27 | C141: =IF(A141>$A$8,"",OFFSET(InputPriceData!G$15,CalculationsAndCharts!$A141+$A$11,IF($C$5,8,0),1,1)) -> 40355200 | D141: =IF(A141>$A$8,"",OFFSET(InputPriceData!C$15,CalculationsAndCharts!$A141+$A$11,IF($C$5,8,0),1,1)) -> 288.55 | E141: =IF(A141>$A$8,"",OFFSET(InputPriceData!D$15,CalculationsAndCharts!$A141+$A$11,IF($C$5,8,0),1,1)) -> 289.3 | F141: =IF(A141>$A$8,"",OFFSET(InputPriceData!E$15,CalculationsAndCharts!$A141+$A$11,IF($C$5,8,0),1,1)) -> 288.14 | G141: =IF(A141>$A$8,"",OFFSET(InputPriceData!F$15,CalculationsAndCharts!$A141+$A$11,IF($C$5,8,0),1,1)) -> 288.74 | H141: 0.4410023831 | I141: 0.8763296694 | J141: 0.319584824 | T141: 0.4410023831 | U141: 0.8763296694 | V141: 0.319584824 | AP141: 40355200
A142: 110 | B142: =IF(A142>$A$8,"",OFFSET(InputPriceData!B$15,$A142+$A$11,0,1,1)) -> 2019-06-26 | C142: =IF(A142>$A$8,"",OFFSET(InputPriceData!G$15,CalculationsAndCharts!$A142+$A$11,IF($C$5,8,0),1,1)) -> 51584900 | D142: =IF(A142>$A$8,"",OFFSET(InputPriceData!C$15,CalculationsAndCharts!$A142+$A$11,IF($C$5,8,0),1,1)) -> 288.99 | E142: =IF(A142>$A$8,"",OFFSET(InputPriceData!D$15,CalculationsAndCharts!$A142+$A$11,IF($C$5,8,0),1,1)) -> 289.54 | F142: =IF(A142>$A$8,"",OFFSET(InputPriceData!E$15,CalculationsAndCharts!$A142+$A$11,IF($C$5,8,0),1,1)) -> 287.6 | G142: =IF(A142>$A$8,"",OFFSET(InputPriceData!F$15,CalculationsAndCharts!$A142+$A$11,IF($C$5,8,0),1,1)) -> 287.72 | H142: 0.5996984337 | I142: 0.9015069648 | J142: 0.2332586944 | T142: 0.5996984337 | U142: 0.9015069648 | V142: 0.2332586944 | AQ142: 51584900
A143: 111 | B143: =IF(A143>$A$8,"",OFFSET(InputPriceData!B$15,$A143+$A$11,0,1,1)) -> 2019-06-25 | C143: =IF(A143>$A$8,"",OFFSET(InputPriceData!G$15,CalculationsAndCharts!$A143+$A$11,IF($C$5,8,0),1,1)) -> 82028700 | D143: =IF(A143>$A$8,"",OFFSET(InputPriceData!C$15,CalculationsAndCharts!$A143+$A$11,IF($C$5,8,0),1,1)) -> 290.92 | E143: =IF(A143>$A$8,"",OFFSET(InputPriceData!D$15,CalculationsAndCharts!$A143+$A$11,IF($C$5,8,0),1,1)) -> 290.95 | F143: =IF(A143>$A$8,"",OFFSET(InputPriceData!E$15,CalculationsAndCharts!$A143+$A$11,IF($C$5,8,0),1,1)) -> 287.89 | G143: =IF(A143>$A$8,"",OFFSET(InputPriceData!F$15,CalculationsAndCharts!$A143+$A$11,IF($C$5,8,0),1,1)) -> 288.01 | H143: 0.8084860812 | I143: 0.9292217555 | J143: 0.1343895887 | T143: 0.8084860812 | U143: 0.9292217555 | V143: 0.1343895887 | AQ143: 82028700
A144: 112 | B144: =IF(A144>$A$8,"",OFFSET(InputPriceData!B$15,$A144+$A$11,0,1,1)) -> 2019-06-24 | C144: =IF(A144>$A$8,"",OFFSET(InputPriceData!G$15,CalculationsAndCharts!$A144+$A$11,IF($C$5,8,0),1,1)) -> 47582700 | D144: =IF(A144>$A$8,"",OFFSET(InputPriceData!C$15,CalculationsAndCharts!$A144+$A$11,IF($C$5,8,0),1,1)) -> 291.44 | E144: =IF(A144>$A$8,"",OFFSET(InputPriceData!D$15,CalculationsAndCharts!$A144+$A$11,IF($C$5,8,0),1,1)) -> 291.79 | F144: =IF(A144>$A$8,"",OFFSET(InputPriceData!E$15,CalculationsAndCharts!$A144+$A$11,IF($C$5,8,0),1,1)) -> 290.69 | G144: =IF(A144>$A$8,"",OFFSET(InputPriceData!F$15,CalculationsAndCharts!$A144+$A$11,IF($C$5,8,0),1,1)) -> 290.86 | H144: 0.9294261316 | I144: 0.9374541649 | J144: 0.03741163467 | T144: 0.9294261316 | U144: 0.9374541649 | V144: 0.03741163467 | AQ144: 47582700
A145: 113 | B145: =IF(A145>$A$8,"",OFFSET(InputPriceData!B$15,$A145+$A$11,0,1,1)) -> 2019-06-21 | C145: =IF(A145>$A$8,"",OFFSET(InputPriceData!G$15,CalculationsAndCharts!$A145+$A$11,IF($C$5,8,0),1,1)) -> 83309500 | D145: =IF(A145>$A$8,"",OFFSET(InputPriceData!C$15,CalculationsAndCharts!$A145+$A$11,IF($C$5,8,0),1,1)) -> 291.35 | E145: =IF(A145>$A$8,"",OFFSET(InputPriceData!D$15,CalculationsAndCharts!$A145+$A$11,IF($C$5,8,0),1,1)) -> 292.72 | F145: =IF(A145>$A$8,"",OFFSET(InputPriceData!E$15,CalculationsAndCharts!$A145+$A$11,IF($C$5,8,0),1,1)) -> 290.98 | G145: =IF(A145>$A$8,"",OFFSET(InputPriceData!F$15,CalculationsAndCharts!$A145+$A$11,IF($C$5,8,0),1,1)) -> 291.22 | H145: 0.8980110234 | I145: 0.9007487265 | J145: -0.07859503677 | T145: 0.8980110234 | U145: 0.9007487265 | V145: -0.07859503677 | AQ145: 83309500
A146: 114 | B146: =IF(A146>$A$8,"",OFFSET(InputPriceData!B$15,$A146+$A$11,0,1,1)) -> 2019-06-20 | C146: =IF(A146>$A$8,"",OFFSET(InputPriceData!G$15,CalculationsAndCharts!$A146+$A$11,IF($C$5,8,0),1,1)) -> 116570000 | D146: =IF(A146>$A$8,"",OFFSET(InputPriceData!C$15,CalculationsAndCharts!$A146+$A$11,IF($C$5,8,0),1,1)) -> 291.82 | E146: =IF(A146>$A$8,"",OFFSET(InputPriceData!D$15,CalculationsAndCharts!$A146+$A$11,IF($C$5,8,0),1,1)) -> 292.08 | F146: =IF(A146>$A$8,"",OFFSET(InputPriceData!E$15,CalculationsAndCharts!$A146+$A$11,IF($C$5,8,0),1,1)) -> 288.95 | G146: =IF(A146>$A$8,"",OFFSET(InputPriceData!F$15,CalculationsAndCharts!$A146+$A$11,IF($C$5,8,0),1,1)) -> 291.64 | H146: 0.8728274451 | I146: 0.859380745 | J146: -0.191836217 | T146: 0.8728274451 | U146: 0.859380745 | V146: -0.191836217 | AP146: =IF(G146>=D146,C146,NA()) ->  | AQ146: =IF(G146<D146,C146,NA()) -> 116570000
A147: 115 | B147: =IF(A147>$A$8,"",OFFSET(InputPriceData!B$15,$A147+$A$11,0,1,1)) -> 2019-06-19 | C147: =IF(A147>$A$8,"",OFFSET(InputPriceData!G$15,CalculationsAndCharts!$A147+$A$11,IF($C$5,8,0),1,1)) -> 78674400 | D147: =IF(A147>$A$8,"",OFFSET(InputPriceData!C$15,CalculationsAndCharts!$A147+$A$11,IF($C$5,8,0),1,1)) -> 288.38 | E147: =IF(A147>$A$8,"",OFFSET(InputPriceData!D$15,CalculationsAndCharts!$A147+$A$11,IF($C$5,8,0),1,1)) -> 289.46 | F147: =IF(A147>$A$8,"",OFFSET(InputPriceData!E$15,CalculationsAndCharts!$A147+$A$11,IF($C$5,8,0),1,1)) -> 287.31 | G147: =IF(A147>$A$8,"",OFFSET(InputPriceData!F$15,CalculationsAndCharts!$A147+$A$11,IF($C$5,8,0),1,1)) -> 288.88 | H147: 0.8897557328 | I147: 0.7560866419 | J147: -0.3173606525 | T147: 0.8897557328 | U147: 0.7560866419 | V147: -0.3173606525 | AP147: 78674400
A148: 116 | B148: =IF(A148>$A$8,"",OFFSET(InputPriceData!B$15,$A148+$A$11,0,1,1)) -> 2019-06-18 | C148: =IF(A148>$A$8,"",OFFSET(InputPriceData!G$15,CalculationsAndCharts!$A148+$A$11,IF($C$5,8,0),1,1)) -> 85434800 | D148: =IF(A148>$A$8,"",OFFSET(InputPriceData!C$15,CalculationsAndCharts!$A148+$A$11,IF($C$5,8,0),1,1)) -> 287.23 | E148: =IF(A148>$A$8,"",OFFSET(InputPriceData!D$15,CalculationsAndCharts!$A148+$A$11,IF($C$5,8,0),1,1)) -> 289.38 | F148: =IF(A148>$A$8,"",OFFSET(InputPriceData!E$15,CalculationsAndCharts!$A148+$A$11,IF($C$5,8,0),1,1)) -> 286.84 | G148: =IF(A148>$A$8,"",OFFSET(InputPriceData!F$15,CalculationsAndCharts!$A148+$A$11,IF($C$5,8,0),1,1)) -> 288.23 | H148: 0.8794595541 | I148: 0.6242438715 | J148: -0.4213736732 | T148: 0.8794595541 | U148: 0.6242438715 | V148: -0.4213736732 | AP148: 85434800
A149: 117 | B149: =IF(A149>$A$8,"",OFFSET(InputPriceData!B$15,$A149+$A$11,0,1,1)) -> 2019-06-17 | C149: =IF(A149>$A$8,"",OFFSET(InputPriceData!G$15,CalculationsAndCharts!$A149+$A$11,IF($C$5,8,0),1,1)) -> 39205700 | D149: =IF(A149>$A$8,"",OFFSET(InputPriceData!C$15,CalculationsAndCharts!$A149+$A$11,IF($C$5,8,0),1,1)) -> 285.39 | E149: =IF(A149>$A$8,"",OFFSET(InputPriceData!D$15,CalculationsAndCharts!$A149+$A$11,IF($C$5,8,0),1,1)) -> 286.08 | F149: =IF(A149>$A$8,"",OFFSET(InputPriceData!E$15,CalculationsAndCharts!$A149+$A$11,IF($C$5,8,0),1,1)) -> 285.06 | G149: =IF(A149>$A$8,"",OFFSET(InputPriceData!F$15,CalculationsAndCharts!$A149+$A$11,IF($C$5,8,0),1,1)) -> 285.24 | H149: 0.8673292131 | I149: 0.5214591931 | J149: -0.5026483861 | T149: 0.8673292131 | U149: 0.5214591931 | V149: -0.5026483861 | AQ149: 39205700
A150: 118 | B150: =IF(A150>$A$8,"",OFFSET(InputPriceData!B$15,$A150+$A$11,0,1,1)) -> 2019-06-14 | C150: =IF(A150>$A$8,"",OFFSET(InputPriceData!G$15,CalculationsAndCharts!$A150+$A$11,IF($C$5,8,0),1,1)) -> 52324700 | D150: =IF(A150>$A$8,"",OFFSET(InputPriceData!C$15,CalculationsAndCharts!$A150+$A$11,IF($C$5,8,0),1,1)) -> 285.13 | E150: =IF(A150>$A$8,"",OFFSET(InputPriceData!D$15,CalculationsAndCharts!$A150+$A$11,IF($C$5,8,0),1,1)) -> 285.8 | F150: =IF(A150>$A$8,"",OFFSET(InputPriceData!E$15,CalculationsAndCharts!$A150+$A$11,IF($C$5,8,0),1,1)) -> 284.3 | G150: =IF(A150>$A$8,"",OFFSET(InputPriceData!F$15,CalculationsAndCharts!$A150+$A$11,IF($C$5,8,0),1,1)) -> 285.13 | H150: 0.8801130133 | I150: 0.3939111555 | J150: -0.5513710303 | T150: 0.8801130133 | U150: 0.3939111555 | V150: -0.5513710303 | AP150: 52324700
A151: 119 | B151: =IF(A151>$A$8,"",OFFSET(InputPriceData!B$15,$A151+$A$11,0,1,1)) -> 2019-06-13 | C151: =IF(A151>$A$8,"",OFFSET(InputPriceData!G$15,CalculationsAndCharts!$A151+$A$11,IF($C$5,8,0),1,1)) -> 48945200 | D151: =IF(A151>$A$8,"",OFFSET(InputPriceData!C$15,CalculationsAndCharts!$A151+$A$11,IF($C$5,8,0),1,1)) -> 285.27 | E151: =IF(A151>$A$8,"",OFFSET(InputPriceData!D$15,CalculationsAndCharts!$A151+$A$11,IF($C$5,8,0),1,1)) -> 285.84 | F151: =IF(A151>$A$8,"",OFFSET(InputPriceData!E$15,CalculationsAndCharts!$A151+$A$11,IF($C$5,8,0),1,1)) -> 284.5 | G151: =IF(A151>$A$8,"",OFFSET(InputPriceData!F$15,CalculationsAndCharts!$A151+$A$11,IF($C$5,8,0),1,1)) -> 285.45 | H151: 0.9300645306 | I151: 0.2150184869 | J151: -0.5947806368 | T151: 0.9300645306 | U151: 0.2150184869 | V151: -0.5947806368 | AP151: 48945200
A152: 120 | B152: =IF(A152>$A$8,"",OFFSET(InputPriceData!B$15,$A152+$A$11,0,1,1)) -> 2019-06-12 | C152: =IF(A152>$A$8,"",OFFSET(InputPriceData!G$15,CalculationsAndCharts!$A152+$A$11,IF($C$5,8,0),1,1)) -> 46984700 | D152: =IF(A152>$A$8,"",OFFSET(InputPriceData!C$15,CalculationsAndCharts!$A152+$A$11,IF($C$5,8,0),1,1)) -> 284.52 | E152: =IF(A152>$A$8,"",OFFSET(InputPriceData!D$15,CalculationsAndCharts!$A152+$A$11,IF($C$5,8,0),1,1)) -> 285.13 | F152: =IF(A152>$A$8,"",OFFSET(InputPriceData!E$15,CalculationsAndCharts!$A152+$A$11,IF($C$5,8,0),1,1)) -> 283.72 | G152: =IF(A152>$A$8,"",OFFSET(InputPriceData!F$15,CalculationsAndCharts!$A152+$A$11,IF($C$5,8,0),1,1)) -> 284.28 | H152: 0.9091644976 | I152: 0.07144731468 | J152: -0.6459633434 | T152: 0.9091644976 | U152: 0.07144731468 | V152: -0.6459633434 | AQ152: 46984700
A153: 121 | B153: =IF(A153>$A$8,"",OFFSET(InputPriceData!B$15,$A153+$A$11,0,1,1)) -> 2019-06-11 | C153: =IF(A153>$A$8,"",OFFSET(InputPriceData!G$15,CalculationsAndCharts!$A153+$A$11,IF($C$5,8,0),1,1)) -> 58641300 | D153: =IF(A153>$A$8,"",OFFSET(InputPriceData!C$15,CalculationsAndCharts!$A153+$A$11,IF($C$5,8,0),1,1)) -> 286.84 | E153: =IF(A153>$A$8,"",OFFSET(InputPriceData!D$15,CalculationsAndCharts!$A153+$A$11,IF($C$5,8,0),1,1)) -> 287.24 | F153: =IF(A153>$A$8,"",OFFSET(InputPriceData!E$15,CalculationsAndCharts!$A153+$A$11,IF($C$5,8,0),1,1)) -> 284.07 | G153: =IF(A153>$A$8,"",OFFSET(InputPriceData!F$15,CalculationsAndCharts!$A153+$A$11,IF($C$5,8,0),1,1)) -> 284.78 | H153: 0.884792163 | I153: -0.03492773464 | J153: -0.6835967863 | T153: 0.884792163 | U153: -0.03492773464 | V153: -0.6835967863 | AQ153: 58641300
A154: 122 | B154: =IF(A154>$A$8,"",OFFSET(InputPriceData!B$15,$A154+$A$11,0,1,1)) -> 2019-06-10 | C154: =IF(A154>$A$8,"",OFFSET(InputPriceData!G$15,CalculationsAndCharts!$A154+$A$11,IF($C$5,8,0),1,1)) -> 60799100 | D154: =IF(A154>$A$8,"",OFFSET(InputPriceData!C$15,CalculationsAndCharts!$A154+$A$11,IF($C$5,8,0),1,1)) -> 285.24 | E154: =IF(A154>$A$8,"",OFFSET(InputPriceData!D$15,CalculationsAndCharts!$A154+$A$11,IF($C$5,8,0),1,1)) -> 286.67 | F154: =IF(A154>$A$8,"",OFFSET(InputPriceData!E$15,CalculationsAndCharts!$A154+$A$11,IF($C$5,8,0),1,1)) -> 284.75 | G154: =IF(A154>$A$8,"",OFFSET(InputPriceData!F$15,CalculationsAndCharts!$A154+$A$11,IF($C$5,8,0),1,1)) -> 284.85 | H154: 0.76723948 | I154: -0.1200933805 | J154: -0.726502961 | T154: 0.76723948 | U154: -0.1200933805 | V154: -0.726502961 | AQ154: 60799100
A155: 123 | B155: =IF(A155>$A$8,"",OFFSET(InputPriceData!B$15,$A155+$A$11,0,1,1)) -> 2019-06-07 | C155: =IF(A155>$A$8,"",OFFSET(InputPriceData!G$15,CalculationsAndCharts!$A155+$A$11,IF($C$5,8,0),1,1)) -> 74272200 | D155: =IF(A155>$A$8,"",OFFSET(InputPriceData!C$15,CalculationsAndCharts!$A155+$A$11,IF($C$5,8,0),1,1)) -> 281.85 | E155: =IF(A155>$A$8,"",OFFSET(InputPriceData!D$15,CalculationsAndCharts!$A155+$A$11,IF($C$5,8,0),1,1)) -> 284.73 | F155: =IF(A155>$A$8,"",OFFSET(InputPriceData!E$15,CalculationsAndCharts!$A155+$A$11,IF($C$5,8,0),1,1)) -> 281.67 | G155: =IF(A155>$A$8,"",OFFSET(InputPriceData!F$15,CalculationsAndCharts!$A155+$A$11,IF($C$5,8,0),1,1)) -> 283.55 | H155: 0.4648504285 | I155: -0.3827804026 | J155: -0.7566375003 | T155: 0.4648504285 | U155: -0.3827804026 | V155: -0.7566375003 | AP155: 74272200
A156: 124 | B156: =IF(A156>$A$8,"",OFFSET(InputPriceData!B$15,$A156+$A$11,0,1,1)) -> 2019-06-06 | C156: =IF(A156>$A$8,"",OFFSET(InputPriceData!G$15,CalculationsAndCharts!$A156+$A$11,IF($C$5,8,0),1,1)) -> 69430400 | D156: =IF(A156>$A$8,"",OFFSET(InputPriceData!C$15,CalculationsAndCharts!$A156+$A$11,IF($C$5,8,0),1,1)) -> 279.25 | E156: =IF(A156>$A$8,"",OFFSET(InputPriceData!D$15,CalculationsAndCharts!$A156+$A$11,IF($C$5,8,0),1,1)) -> 281.48 | F156: =IF(A156>$A$8,"",OFFSET(InputPriceData!E$15,CalculationsAndCharts!$A156+$A$11,IF($C$5,8,0),1,1)) -> 278.54 | G156: =IF(A156>$A$8,"",OFFSET(InputPriceData!F$15,CalculationsAndCharts!$A156+$A$11,IF($C$5,8,0),1,1)) -> 280.74 | H156: 0.06697068706 | I156: -0.5919890549 | J156: -0.774945836 | T156: 0.06697068706 | U156: -0.5919890549 | V156: -0.774945836 | AP156: 69430400
A157: 125 | B157: =IF(A157>$A$8,"",OFFSET(InputPriceData!B$15,$A157+$A$11,0,1,1)) -> 2019-06-05 | C157: =IF(A157>$A$8,"",OFFSET(InputPriceData!G$15,CalculationsAndCharts!$A157+$A$11,IF($C$5,8,0),1,1)) -> 71169700 | D157: =IF(A157>$A$8,"",OFFSET(InputPriceData!C$15,CalculationsAndCharts!$A157+$A$11,IF($C$5,8,0),1,1)) -> 278.3 | E157: =IF(A157>$A$8,"",OFFSET(InputPriceData!D$15,CalculationsAndCharts!$A157+$A$11,IF($C$5,8,0),1,1)) -> 278.95 | F157: =IF(A157>$A$8,"",OFFSET(InputPriceData!E$15,CalculationsAndCharts!$A157+$A$11,IF($C$5,8,0),1,1)) -> 276.32 | G157: =IF(A157>$A$8,"",OFFSET(InputPriceData!F$15,CalculationsAndCharts!$A157+$A$11,IF($C$5,8,0),1,1)) -> 278.92 | H157: -0.4768131644 | I157: -0.7246452063 | J157: -0.7623444979 | T157: -0.4768131644 | U157: -0.7246452063 | V157: -0.7623444979 | AP157: 71169700
A158: 126 | B158: =IF(A158>$A$8,"",OFFSET(InputPriceData!B$15,$A158+$A$11,0,1,1)) -> 2019-06-04 | C158: =IF(A158>$A$8,"",OFFSET(InputPriceData!G$15,CalculationsAndCharts!$A158+$A$11,IF($C$5,8,0),1,1)) -> 77231900 | D158: =IF(A158>$A$8,"",OFFSET(InputPriceData!C$15,CalculationsAndCharts!$A158+$A$11,IF($C$5,8,0),1,1)) -> 273.17 | E158: =IF(A158>$A$8,"",OFFSET(InputPriceData!D$15,CalculationsAndCharts!$A158+$A$11,IF($C$5,8,0),1,1)) -> 276.68 | F158: =IF(A158>$A$8,"",OFFSET(InputPriceData!E$15,CalculationsAndCharts!$A158+$A$11,IF($C$5,8,0),1,1)) -> 272.68 | G158: =IF(A158>$A$8,"",OFFSET(InputPriceData!F$15,CalculationsAndCharts!$A158+$A$11,IF($C$5,8,0),1,1)) -> 276.53 | H158: -0.8311049613 | I158: -0.802833372 | J158: -0.7480316845 | T158: -0.8311049613 | U158: -0.802833372 | V158: -0.7480316845 | AP158: 77231900
A159: 127 | B159: =IF(A159>$A$8,"",OFFSET(InputPriceData!B$15,$A159+$A$11,0,1,1)) -> 2019-06-03 | C159: =IF(A159>$A$8,"",OFFSET(InputPriceData!G$15,CalculationsAndCharts!$A159+$A$11,IF($C$5,8,0),1,1)) -> 96428000 | D159: =IF(A159>$A$8,"",OFFSET(InputPriceData!C$15,CalculationsAndCharts!$A159+$A$11,IF($C$5,8,0),1,1)) -> 271.38 | E159: =IF(A159>$A$8,"",OFFSET(InputPriceData!D$15,CalculationsAndCharts!$A159+$A$11,IF($C$5,8,0),1,1)) -> 272.61 | F159: =IF(A159>$A$8,"",OFFSET(InputPriceData!E$15,CalculationsAndCharts!$A159+$A$11,IF($C$5,8,0),1,1)) -> 269.2 | G159: =IF(A159>$A$8,"",OFFSET(InputPriceData!F$15,CalculationsAndCharts!$A159+$A$11,IF($C$5,8,0),1,1)) -> 270.65 | H159: -0.9425175667 | I159: -0.8450202162 | J159: -0.7181926342 | T159: -0.9425175667 | U159: -0.8450202162 | V159: -0.7181926342 | AQ159: 96428000
A160: 128 | B160: =IF(A160>$A$8,"",OFFSET(InputPriceData!B$15,$A160+$A$11,0,1,1)) -> 2019-05-31 | C160: =IF(A160>$A$8,"",OFFSET(InputPriceData!G$15,CalculationsAndCharts!$A160+$A$11,IF($C$5,8,0),1,1)) -> 86862800 | D160: =IF(A160>$A$8,"",OFFSET(InputPriceData!C$15,CalculationsAndCharts!$A160+$A$11,IF($C$5,8,0),1,1)) -> 272.26 | E160: =IF(A160>$A$8,"",OFFSET(InputPriceData!D$15,CalculationsAndCharts!$A160+$A$11,IF($C$5,8,0),1,1)) -> 273.17 | F160: =IF(A160>$A$8,"",OFFSET(InputPriceData!E$15,CalculationsAndCharts!$A160+$A$11,IF($C$5,8,0),1,1)) -> 271.31 | G160: =IF(A160>$A$8,"",OFFSET(InputPriceData!F$15,CalculationsAndCharts!$A160+$A$11,IF($C$5,8,0),1,1)) -> 271.34 | H160: -0.9217407998 | I160: -0.8448299841 | J160: -0.6617640691 | T160: -0.9217407998 | U160: -0.8448299841 | V160: -0.6617640691 | AQ160: 86862800
A161: 129 | B161: =IF(A161>$A$8,"",OFFSET(InputPriceData!B$15,$A161+$A$11,0,1,1)) -> 2019-05-30 | C161: =IF(A161>$A$8,"",OFFSET(InputPriceData!G$15,CalculationsAndCharts!$A161+$A$11,IF($C$5,8,0),1,1)) -> 62523800 | D161: =IF(A161>$A$8,"",OFFSET(InputPriceData!C$15,CalculationsAndCharts!$A161+$A$11,IF($C$5,8,0),1,1)) -> 275.13 | E161: =IF(A161>$A$8,"",OFFSET(InputPriceData!D$15,CalculationsAndCharts!$A161+$A$11,IF($C$5,8,0),1,1)) -> 276.05 | F161: =IF(A161>$A$8,"",OFFSET(InputPriceData!E$15,CalculationsAndCharts!$A161+$A$11,IF($C$5,8,0),1,1)) -> 273.85 | G161: =IF(A161>$A$8,"",OFFSET(InputPriceData!F$15,CalculationsAndCharts!$A161+$A$11,IF($C$5,8,0),1,1)) -> 275.05 | H161: =IF(A161<$A$8,-CORREL(OFFSET($G161,0,0,$A$17,1),OFFSET($A$33,0,0,$A$17,1)),NA()) -> -0.9207750799 | I161: =IF(A161<$A$8,-CORREL(OFFSET($G161,0,0,$A$18,1),OFFSET($A$33,0,0,$A$18,1)),NA()) -> -0.8362021163 | J161: =IF(A161<$A$8,-CORREL(OFFSET($G161,0,0,$A$19,1),OFFSET($A$33,0,0,$A$19,1)),NA()) -> -0.5881275496 | T161: =IF($R$4,H161,NA()) -> -0.9207750799 | U161: =IF($R$5,I161,NA()) -> -0.8362021163 | V161: =IF($R$6,J161,NA()) -> -0.5881275496 | AQ161: 62523800
A162: 130 | B162: =IF(A162>$A$8,"",OFFSET(InputPriceData!B$15,$A162+$A$11,0,1,1)) -> 2019-05-29 | C162: =IF(A162>$A$8,"",OFFSET(InputPriceData!G$15,CalculationsAndCharts!$A162+$A$11,IF($C$5,8,0),1,1)) -> 104972900 | D162: =IF(A162>$A$8,"",OFFSET(InputPriceData!C$15,CalculationsAndCharts!$A162+$A$11,IF($C$5,8,0),1,1)) -> 274.93 | E162: =IF(A162>$A$8,"",OFFSET(InputPriceData!D$15,CalculationsAndCharts!$A162+$A$11,IF($C$5,8,0),1,1)) -> 275.38 | F162: =IF(A162>$A$8,"",OFFSET(InputPriceData!E$15,CalculationsAndCharts!$A162+$A$11,IF($C$5,8,0),1,1)) -> 272.76 | G162: =IF(A162>$A$8,"",OFFSET(InputPriceData!F$15,CalculationsAndCharts!$A162+$A$11,IF($C$5,8,0),1,1)) -> 274.3 | H162: -0.8373805998 | I162: -0.8320810843 | J162: -0.5023784335 | T162: -0.8373805998 | U162: -0.8320810843 | V162: -0.5023784335 | AQ162: 104972900
A163: 131 | B163: =IF(A163>$A$8,"",OFFSET(InputPriceData!B$15,$A163+$A$11,0,1,1)) -> 2019-05-28 | C163: =IF(A163>$A$8,"",OFFSET(InputPriceData!G$15,CalculationsAndCharts!$A163+$A$11,IF($C$5,8,0),1,1)) -> 70029400 | D163: =IF(A163>$A$8,"",OFFSET(InputPriceData!C$15,CalculationsAndCharts!$A163+$A$11,IF($C$5,8,0),1,1)) -> 279.05 | E163: =IF(A163>$A$8,"",OFFSET(InputPriceData!D$15,CalculationsAndCharts!$A163+$A$11,IF($C$5,8,0),1,1)) -> 280.1 | F163: =IF(A163>$A$8,"",OFFSET(InputPriceData!E$15,CalculationsAndCharts!$A163+$A$11,IF($C$5,8,0),1,1)) -> 276.14 | G163: =IF(A163>$A$8,"",OFFSET(InputPriceData!F$15,CalculationsAndCharts!$A163+$A$11,IF($C$5,8,0),1,1)) -> 276.15 | H163: -0.5749299618 | I163: -0.8308413363 | J163: -0.3983787867 | T163: -0.5749299618 | U163: -0.8308413363 | V163: -0.3983787867 | AQ163: 70029400
A164: 132 | B164: =IF(A164>$A$8,"",OFFSET(InputPriceData!B$15,$A164+$A$11,0,1,1)) -> 2019-05-24 | C164: =IF(A164>$A$8,"",OFFSET(InputPriceData!G$15,CalculationsAndCharts!$A164+$A$11,IF($C$5,8,0),1,1)) -> 55268100 | D164: =IF(A164>$A$8,"",OFFSET(InputPriceData!C$15,CalculationsAndCharts!$A164+$A$11,IF($C$5,8,0),1,1)) -> 279.69 | E164: =IF(A164>$A$8,"",OFFSET(InputPriceData!D$15,CalculationsAndCharts!$A164+$A$11,IF($C$5,8,0),1,1)) -> 280.15 | F164: =IF(A164>$A$8,"",OFFSET(InputPriceData!E$15,CalculationsAndCharts!$A164+$A$11,IF($C$5,8,0),1,1)) -> 278.07 | G164: =IF(A164>$A$8,"",OFFSET(InputPriceData!F$15,CalculationsAndCharts!$A164+$A$11,IF($C$5,8,0),1,1)) -> 278.75 | H164: 0.05130315392 | I164: -0.8288975134 | J164: -0.2380969175 | T164: 0.05130315392 | U164: -0.8288975134 | V164: -0.2380969175 | AQ164: 55268100
A165: 133 | B165: =IF(A165>$A$8,"",OFFSET(InputPriceData!B$15,$A165+$A$11,0,1,1)) -> 2019-05-23 | C165: =IF(A165>$A$8,"",OFFSET(InputPriceData!G$15,CalculationsAndCharts!$A165+$A$11,IF($C$5,8,0),1,1)) -> 98733800 | D165: =IF(A165>$A$8,"",OFFSET(InputPriceData!C$15,CalculationsAndCharts!$A165+$A$11,IF($C$5,8,0),1,1)) -> 279.12 | E165: =IF(A165>$A$8,"",OFFSET(InputPriceData!D$15,CalculationsAndCharts!$A165+$A$11,IF($C$5,8,0),1,1)) -> 279.17 | F165: =IF(A165>$A$8,"",OFFSET(InputPriceData!E$15,CalculationsAndCharts!$A165+$A$11,IF($C$5,8,0),1,1)) -> 276.57 | G165: =IF(A165>$A$8,"",OFFSET(InputPriceData!F$15,CalculationsAndCharts!$A165+$A$11,IF($C$5,8,0),1,1)) -> 278.12 | H165: -0.07698245175 | I165: -0.8327415473 | J165: -0.0734012559 | T165: -0.07698245175 | U165: -0.8327415473 | V165: -0.0734012559 | AQ165: 98733800
A166: 134 | B166: =IF(A166>$A$8,"",OFFSET(InputPriceData!B$15,$A166+$A$11,0,1,1)) -> 2019-05-22 | C166: =IF(A166>$A$8,"",OFFSET(InputPriceData!G$15,CalculationsAndCharts!$A166+$A$11,IF($C$5,8,0),1,1)) -> 49482500 | D166: =IF(A166>$A$8,"",OFFSET(InputPriceData!C$15,CalculationsAndCharts!$A166+$A$11,IF($C$5,8,0),1,1)) -> 281.38 | E166: =IF(A166>$A$8,"",OFFSET(InputPriceData!D$15,CalculationsAndCharts!$A166+$A$11,IF($C$5,8,0),1,1)) -> 282.6 | F166: =IF(A166>$A$8,"",OFFSET(InputPriceData!E$15,CalculationsAndCharts!$A166+$A$11,IF($C$5,8,0),1,1)) -> 281.03 | G166: =IF(A166>$A$8,"",OFFSET(InputPriceData!F$15,CalculationsAndCharts!$A166+$A$11,IF($C$5,8,0),1,1)) -> 281.56 | H166: 0.04266037702 | I166: -0.8100119398 | J166: 0.100668407 | T166: 0.04266037702 | U166: -0.8100119398 | V166: 0.100668407 | AP166: 49482500
A167: 135 | B167: =IF(A167>$A$8,"",OFFSET(InputPriceData!B$15,$A167+$A$11,0,1,1)) -> 2019-05-21 | C167: =IF(A167>$A$8,"",OFFSET(InputPriceData!G$15,CalculationsAndCharts!$A167+$A$11,IF($C$5,8,0),1,1)) -> 46847100 | D167: =IF(A167>$A$8,"",OFFSET(InputPriceData!C$15,CalculationsAndCharts!$A167+$A$11,IF($C$5,8,0),1,1)) -> 281.75 | E167: =IF(A167>$A$8,"",OFFSET(InputPriceData!D$15,CalculationsAndCharts!$A167+$A$11,IF($C$5,8,0),1,1)) -> 282.84 | F167: =IF(A167>$A$8,"",OFFSET(InputPriceData!E$15,CalculationsAndCharts!$A167+$A$11,IF($C$5,8,0),1,1)) -> 281.48 | G167: =IF(A167>$A$8,"",OFFSET(InputPriceData!F$15,CalculationsAndCharts!$A167+$A$11,IF($C$5,8,0),1,1)) -> 282.42 | H167: -0.1392741688 | I167: -0.8139734356 | J167: 0.2040756834 | T167: -0.1392741688 | U167: -0.8139734356 | V167: 0.2040756834 | AP167: 46847100
A168: 136 | B168: =IF(A168>$A$8,"",OFFSET(InputPriceData!B$15,$A168+$A$11,0,1,1)) -> 2019-05-20 | C168: =IF(A168>$A$8,"",OFFSET(InputPriceData!G$15,CalculationsAndCharts!$A168+$A$11,IF($C$5,8,0),1,1)) -> 62877600 | D168: =IF(A168>$A$8,"",OFFSET(InputPriceData!C$15,CalculationsAndCharts!$A168+$A$11,IF($C$5,8,0),1,1)) -> 280.01 | E168: =IF(A168>$A$8,"",OFFSET(InputPriceData!D$15,CalculationsAndCharts!$A168+$A$11,IF($C$5,8,0),1,1)) -> 281.88 | F168: =IF(A168>$A$8,"",OFFSET(InputPriceData!E$15,CalculationsAndCharts!$A168+$A$11,IF($C$5,8,0),1,1)) -> 279.08 | G168: =IF(A168>$A$8,"",OFFSET(InputPriceData!F$15,CalculationsAndCharts!$A168+$A$11,IF($C$5,8,0),1,1)) -> 279.9 | H168: -0.3768820659 | I168: -0.8298362312 | J168: 0.3021506204 | T168: -0.3768820659 | U168: -0.8298362312 | V168: 0.3021506204 | AQ168: 62877600
A169: 137 | B169: =IF(A169>$A$8,"",OFFSET(InputPriceData!B$15,$A169+$A$11,0,1,1)) -> 2019-05-17 | C169: =IF(A169>$A$8,"",OFFSET(InputPriceData!G$15,CalculationsAndCharts!$A169+$A$11,IF($C$5,8,0),1,1)) -> 100353000 | D169: =IF(A169>$A$8,"",OFFSET(InputPriceData!C$15,CalculationsAndCharts!$A169+$A$11,IF($C$5,8,0),1,1)) -> 281.07 | E169: =IF(A169>$A$8,"",OFFSET(InputPriceData!D$15,CalculationsAndCharts!$A169+$A$11,IF($C$5,8,0),1,1)) -> 284.48 | F169: =IF(A169>$A$8,"",OFFSET(InputPriceData!E$15,CalculationsAndCharts!$A169+$A$11,IF($C$5,8,0),1,1)) -> 281.05 | G169: =IF(A169>$A$8,"",OFFSET(InputPriceData!F$15,CalculationsAndCharts!$A169+$A$11,IF($C$5,8,0),1,1)) -> 281.76 | H169: -0.5413131189 | I169: -0.7650582228 | J169: 0.4162760885 | T169: -0.5413131189 | U169: -0.7650582228 | V169: 0.4162760885 | AP169: 100353000
A170: 138 | B170: =IF(A170>$A$8,"",OFFSET(InputPriceData!B$15,$A170+$A$11,0,1,1)) -> 2019-05-16 | C170: =IF(A170>$A$8,"",OFFSET(InputPriceData!G$15,CalculationsAndCharts!$A170+$A$11,IF($C$5,8,0),1,1)) -> 76749600 | D170: =IF(A170>$A$8,"",OFFSET(InputPriceData!C$15,CalculationsAndCharts!$A170+$A$11,IF($C$5,8,0),1,1)) -> 281.76 | E170: =IF(A170>$A$8,"",OFFSET(InputPriceData!D$15,CalculationsAndCharts!$A170+$A$11,IF($C$5,8,0),1,1)) -> 285.09 | F170: =IF(A170>$A$8,"",OFFSET(InputPriceData!E$15,CalculationsAndCharts!$A170+$A$11,IF($C$5,8,0),1,1)) -> 281.68 | G170: =IF(A170>$A$8,"",OFFSET(InputPriceData!F$15,CalculationsAndCharts!$A170+$A$11,IF($C$5,8,0),1,1)) -> 283.6 | H170: -0.7118769668 | I170: -0.7025674795 | J170: 0.4646042711 | T170: -0.7118769668 | U170: -0.7025674795 | V170: 0.4646042711 | AP170: 76749600
A171: 139 | B171: =IF(A171>$A$8,"",OFFSET(InputPriceData!B$15,$A171+$A$11,0,1,1)) -> 2019-05-15 | C171: =IF(A171>$A$8,"",OFFSET(InputPriceData!G$15,CalculationsAndCharts!$A171+$A$11,IF($C$5,8,0),1,1)) -> 73956400 | D171: =IF(A171>$A$8,"",OFFSET(InputPriceData!C$15,CalculationsAndCharts!$A171+$A$11,IF($C$5,8,0),1,1)) -> 277.57 | E171: =IF(A171>$A$8,"",OFFSET(InputPriceData!D$15,CalculationsAndCharts!$A171+$A$11,IF($C$5,8,0),1,1)) -> 281.69 | F171: =IF(A171>$A$8,"",OFFSET(InputPriceData!E$15,CalculationsAndCharts!$A171+$A$11,IF($C$5,8,0),1,1)) -> 277.35 | G171: =IF(A171>$A$8,"",OFFSET(InputPriceData!F$15,CalculationsAndCharts!$A171+$A$11,IF($C$5,8,0),1,1)) -> 280.99 | H171: -0.8470559161 | I171: -0.6484609893 | J171: 0.5130709933 | T171: -0.8470559161 | U171: -0.6484609893 | V171: 0.5130709933 | AP171: 73956400
A172: 140 | B172: =IF(A172>$A$8,"",OFFSET(InputPriceData!B$15,$A172+$A$11,0,1,1)) -> 2019-05-14 | C172: =IF(A172>$A$8,"",OFFSET(InputPriceData!G$15,CalculationsAndCharts!$A172+$A$11,IF($C$5,8,0),1,1)) -> 77003200 | D172: =IF(A172>$A$8,"",OFFSET(InputPriceData!C$15,CalculationsAndCharts!$A172+$A$11,IF($C$5,8,0),1,1)) -> 277.97 | E172: =IF(A172>$A$8,"",OFFSET(InputPriceData!D$15,CalculationsAndCharts!$A172+$A$11,IF($C$5,8,0),1,1)) -> 281.03 | F172: =IF(A172>$A$8,"",OFFSET(InputPriceData!E$15,CalculationsAndCharts!$A172+$A$11,IF($C$5,8,0),1,1)) -> 277.83 | G172: =IF(A172>$A$8,"",OFFSET(InputPriceData!F$15,CalculationsAndCharts!$A172+$A$11,IF($C$5,8,0),1,1)) -> 279.36 | H172: -0.8644426563 | I172: -0.5608007129 | J172: 0.5809365863 | T172: -0.8644426563 | U172: -0.5608007129 | V172: 0.5809365863 | AP172: 77003200
A173: 141 | B173: =IF(A173>$A$8,"",OFFSET(InputPriceData!B$15,$A173+$A$11,0,1,1)) -> 2019-05-13 | C173: =IF(A173>$A$8,"",OFFSET(InputPriceData!G$15,CalculationsAndCharts!$A173+$A$11,IF($C$5,8,0),1,1)) -> 127290500 | D173: =IF(A173>$A$8,"",OFFSET(InputPriceData!C$15,CalculationsAndCharts!$A173+$A$11,IF($C$5,8,0),1,1)) -> 278.39 | E173: =IF(A173>$A$8,"",OFFSET(InputPriceData!D$15,CalculationsAndCharts!$A173+$A$11,IF($C$5,8,0),1,1)) -> 279.45 | F173: =IF(A173>$A$8,"",OFFSET(InputPriceData!E$15,CalculationsAndCharts!$A173+$A$11,IF($C$5,8,0),1,1)) -> 275.94 | G173: =IF(A173>$A$8,"",OFFSET(InputPriceData!F$15,CalculationsAndCharts!$A173+$A$11,IF($C$5,8,0),1,1)) -> 276.85 | H173: -0.8571044175 | I173: -0.4243994794 | J173: 0.6671869029 | T173: -0.8571044175 | U173: -0.4243994794 | V173: 0.6671869029 | AQ173: 127290500
A174: 142 | B174: =IF(A174>$A$8,"",OFFSET(InputPriceData!B$15,$A174+$A$11,0,1,1)) -> 2019-05-10 | C174: =IF(A174>$A$8,"",OFFSET(InputPriceData!G$15,CalculationsAndCharts!$A174+$A$11,IF($C$5,8,0),1,1)) -> 112429300 | D174: =IF(A174>$A$8,"",OFFSET(InputPriceData!C$15,CalculationsAndCharts!$A174+$A$11,IF($C$5,8,0),1,1)) -> 281.55 | E174: =IF(A174>$A$8,"",OFFSET(InputPriceData!D$15,CalculationsAndCharts!$A174+$A$11,IF($C$5,8,0),1,1)) -> 284.82 | F174: =IF(A174>$A$8,"",OFFSET(InputPriceData!E$15,CalculationsAndCharts!$A174+$A$11,IF($C$5,8,0),1,1)) -> 278.27 | G174: =IF(A174>$A$8,"",OFFSET(InputPriceData!F$15,CalculationsAndCharts!$A174+$A$11,IF($C$5,8,0),1,1)) -> 283.99 | H174: -0.8421636411 | I174: -0.1912635788 | J174: 0.7944235448 | T174: -0.8421636411 | U174: -0.1912635788 | V174: 0.7944235448 | AP174: 112429300
A175: 143 | B175: =IF(A175>$A$8,"",OFFSET(InputPriceData!B$15,$A175+$A$11,0,1,1)) -> 2019-05-09 | C175: =IF(A175>$A$8,"",OFFSET(InputPriceData!G$15,CalculationsAndCharts!$A175+$A$11,IF($C$5,8,0),1,1)) -> 103471100 | D175: =IF(A175>$A$8,"",OFFSET(InputPriceData!C$15,CalculationsAndCharts!$A175+$A$11,IF($C$5,8,0),1,1)) -> 281.16 | E175: =IF(A175>$A$8,"",OFFSET(InputPriceData!D$15,CalculationsAndCharts!$A175+$A$11,IF($C$5,8,0),1,1)) -> 283.23 | F175: =IF(A175>$A$8,"",OFFSET(InputPriceData!E$15,CalculationsAndCharts!$A175+$A$11,IF($C$5,8,0),1,1)) -> 279.26 | G175: =IF(A175>$A$8,"",OFFSET(InputPriceData!F$15,CalculationsAndCharts!$A175+$A$11,IF($C$5,8,0),1,1)) -> 282.57 | H175: -0.821461964 | I175: 0.02670568376 | J175: 0.8316930855 | T175: -0.821461964 | U175: 0.02670568376 | V175: 0.8316930855 | AP175: 103471100
A176: 144 | B176: =IF(A176>$A$8,"",OFFSET(InputPriceData!B$15,$A176+$A$11,0,1,1)) -> 2019-05-08 | C176: =IF(A176>$A$8,"",OFFSET(InputPriceData!G$15,CalculationsAndCharts!$A176+$A$11,IF($C$5,8,0),1,1)) -> 91568300 | D176: =IF(A176>$A$8,"",OFFSET(InputPriceData!C$15,CalculationsAndCharts!$A176+$A$11,IF($C$5,8,0),1,1)) -> 283.43 | E176: =IF(A176>$A$8,"",OFFSET(InputPriceData!D$15,CalculationsAndCharts!$A176+$A$11,IF($C$5,8,0),1,1)) -> 285.3 | F176: =IF(A176>$A$8,"",OFFSET(InputPriceData!E$15,CalculationsAndCharts!$A176+$A$11,IF($C$5,8,0),1,1)) -> 282.78 | G176: =IF(A176>$A$8,"",OFFSET(InputPriceData!F$15,CalculationsAndCharts!$A176+$A$11,IF($C$5,8,0),1,1)) -> 283.43 | H176: -0.6521471237 | I176: 0.3218091277 | J176: 0.8780916297 | T176: -0.6521471237 | U176: 0.3218091277 | V176: 0.8780916297 | AP176: 91568300
A177: 145 | B177: =IF(A177>$A$8,"",OFFSET(InputPriceData!B$15,$A177+$A$11,0,1,1)) -> 2019-05-07 | C177: =IF(A177>$A$8,"",OFFSET(InputPriceData!G$15,CalculationsAndCharts!$A177+$A$11,IF($C$5,8,0),1,1)) -> 144729900 | D177: =IF(A177>$A$8,"",OFFSET(InputPriceData!C$15,CalculationsAndCharts!$A177+$A$11,IF($C$5,8,0),1,1)) -> 286.01 | E177: =IF(A177>$A$8,"",OFFSET(InputPriceData!D$15,CalculationsAndCharts!$A177+$A$11,IF($C$5,8,0),1,1)) -> 286.66 | F177: =IF(A177>$A$8,"",OFFSET(InputPriceData!E$15,CalculationsAndCharts!$A177+$A$11,IF($C$5,8,0),1,1)) -> 281.73 | G177: =IF(A177>$A$8,"",OFFSET(InputPriceData!F$15,CalculationsAndCharts!$A177+$A$11,IF($C$5,8,0),1,1)) -> 283.82 | H177: -0.4035861728 | I177: 0.617067046 | J177: 0.9152110059 | T177: -0.4035861728 | U177: 0.617067046 | V177: 0.9152110059 | AQ177: 144729900
A178: 146 | B178: =IF(A178>$A$8,"",OFFSET(InputPriceData!B$15,$A178+$A$11,0,1,1)) -> 2019-05-06 | C178: =IF(A178>$A$8,"",OFFSET(InputPriceData!G$15,CalculationsAndCharts!$A178+$A$11,IF($C$5,8,0),1,1)) -> 107198100 | D178: =IF(A178>$A$8,"",OFFSET(InputPriceData!C$15,CalculationsAndCharts!$A178+$A$11,IF($C$5,8,0),1,1)) -> 285.12 | E178: =IF(A178>$A$8,"",OFFSET(InputPriceData!D$15,CalculationsAndCharts!$A178+$A$11,IF($C$5,8,0),1,1)) -> 289.13 | F178: =IF(A178>$A$8,"",OFFSET(InputPriceData!E$15,CalculationsAndCharts!$A178+$A$11,IF($C$5,8,0),1,1)) -> 284.78 | G178: =IF(A178>$A$8,"",OFFSET(InputPriceData!F$15,CalculationsAndCharts!$A178+$A$11,IF($C$5,8,0),1,1)) -> 288.64 | H178: 0.05636077933 | I178: 0.8617151365 | J178: 0.9461043725 | T178: 0.05636077933 | U178: 0.8617151365 | V178: 0.9461043725 | AP178: 107198100
A179: 147 | B179: =IF(A179>$A$8,"",OFFSET(InputPriceData!B$15,$A179+$A$11,0,1,1)) -> 2019-05-03 | C179: =IF(A179>$A$8,"",OFFSET(InputPriceData!G$15,CalculationsAndCharts!$A179+$A$11,IF($C$5,8,0),1,1)) -> 56543700 | D179: =IF(A179>$A$8,"",OFFSET(InputPriceData!C$15,CalculationsAndCharts!$A179+$A$11,IF($C$5,8,0),1,1)) -> 288.64 | E179: =IF(A179>$A$8,"",OFFSET(InputPriceData!D$15,CalculationsAndCharts!$A179+$A$11,IF($C$5,8,0),1,1)) -> 290.14 | F179: =IF(A179>$A$8,"",OFFSET(InputPriceData!E$15,CalculationsAndCharts!$A179+$A$11,IF($C$5,8,0),1,1)) -> 287.15 | G179: =IF(A179>$A$8,"",OFFSET(InputPriceData!F$15,CalculationsAndCharts!$A179+$A$11,IF($C$5,8,0),1,1)) -> 289.84 | H179: 0.3746618917 | I179: 0.8718747247 | J179: 0.9457533823 | T179: 0.3746618917 | U179: 0.8718747247 | V179: 0.9457533823 | AP179: 56543700
A180: 148 | B180: =IF(A180>$A$8,"",OFFSET(InputPriceData!B$15,$A180+$A$11,0,1,1)) -> 2019-05-02 | C180: =IF(A180>$A$8,"",OFFSET(InputPriceData!G$15,CalculationsAndCharts!$A180+$A$11,IF($C$5,8,0),1,1)) -> 65030200 | D180: =IF(A180>$A$8,"",OFFSET(InputPriceData!C$15,CalculationsAndCharts!$A180+$A$11,IF($C$5,8,0),1,1)) -> 287.52 | E180: =IF(A180>$A$8,"",OFFSET(InputPriceData!D$15,CalculationsAndCharts!$A180+$A$11,IF($C$5,8,0),1,1)) -> 288.53 | F180: =IF(A180>$A$8,"",OFFSET(InputPriceData!E$15,CalculationsAndCharts!$A180+$A$11,IF($C$5,8,0),1,1)) -> 285.39 | G180: =IF(A180>$A$8,"",OFFSET(InputPriceData!F$15,CalculationsAndCharts!$A180+$A$11,IF($C$5,8,0),1,1)) -> 287.03 | H180: 0.4353391 | I180: 0.8726708366 | J180: 0.9459038663 | T180: 0.4353391 | U180: 0.8726708366 | V180: 0.9459038663 | AQ180: 65030200
A181: 149 | B181: =IF(A181>$A$8,"",OFFSET(InputPriceData!B$15,$A181+$A$11,0,1,1)) -> 2019-05-01 | C181: =IF(A181>$A$8,"",OFFSET(InputPriceData!G$15,CalculationsAndCharts!$A181+$A$11,IF($C$5,8,0),1,1)) -> 71671900 | D181: =IF(A181>$A$8,"",OFFSET(InputPriceData!C$15,CalculationsAndCharts!$A181+$A$11,IF($C$5,8,0),1,1)) -> 290.52 | E181: =IF(A181>$A$8,"",OFFSET(InputPriceData!D$15,CalculationsAndCharts!$A181+$A$11,IF($C$5,8,0),1,1)) -> 290.74 | F181: =IF(A181>$A$8,"",OFFSET(InputPriceData!E$15,CalculationsAndCharts!$A181+$A$11,IF($C$5,8,0),1,1)) -> 287.64 | G181: =IF(A181>$A$8,"",OFFSET(InputPriceData!F$15,CalculationsAndCharts!$A181+$A$11,IF($C$5,8,0),1,1)) -> 287.65 | H181: 0.7744149388 | I181: 0.9265876991 | J181: 0.9534018242 | T181: 0.7744149388 | U181: 0.9265876991 | V181: 0.9534018242 | AQ181: 71671900
A182: 150 | B182: =IF(A182>$A$8,"",OFFSET(InputPriceData!B$15,$A182+$A$11,0,1,1)) -> 2019-04-30 | C182: =IF(A182>$A$8,"",OFFSET(InputPriceData!G$15,CalculationsAndCharts!$A182+$A$11,IF($C$5,8,0),1,1)) -> 81111700 | D182: =IF(A182>$A$8,"",OFFSET(InputPriceData!C$15,CalculationsAndCharts!$A182+$A$11,IF($C$5,8,0),1,1)) -> 289.3 | E182: =IF(A182>$A$8,"",OFFSET(InputPriceData!D$15,CalculationsAndCharts!$A182+$A$11,IF($C$5,8,0),1,1)) -> 290.14 | F182: =IF(A182>$A$8,"",OFFSET(InputPriceData!E$15,CalculationsAndCharts!$A182+$A$11,IF($C$5,8,0),1,1)) -> 287.76 | G182: =IF(A182>$A$8,"",OFFSET(InputPriceData!F$15,CalculationsAndCharts!$A182+$A$11,IF($C$5,8,0),1,1)) -> 289.83 | H182: 0.9266669694 | I182: 0.9553519135 | J182: 0.9547718214 | T182: 0.9266669694 | U182: 0.9553519135 | V182: 0.9547718214 | AP182: 81111700
A183: 151 | B183: =IF(A183>$A$8,"",OFFSET(InputPriceData!B$15,$A183+$A$11,0,1,1)) -> 2019-04-29 | C183: =IF(A183>$A$8,"",OFFSET(InputPriceData!G$15,CalculationsAndCharts!$A183+$A$11,IF($C$5,8,0),1,1)) -> 57197700 | D183: =IF(A183>$A$8,"",OFFSET(InputPriceData!C$15,CalculationsAndCharts!$A183+$A$11,IF($C$5,8,0),1,1)) -> 289.32 | E183: =IF(A183>$A$8,"",OFFSET(InputPriceData!D$15,CalculationsAndCharts!$A183+$A$11,IF($C$5,8,0),1,1)) -> 290.25 | F183: =IF(A183>$A$8,"",OFFSET(InputPriceData!E$15,CalculationsAndCharts!$A183+$A$11,IF($C$5,8,0),1,1)) -> 289.23 | G183: =IF(A183>$A$8,"",OFFSET(InputPriceData!F$15,CalculationsAndCharts!$A183+$A$11,IF($C$5,8,0),1,1)) -> 289.68 | H183: 0.9004305708 | I183: 0.9547195899 | J183: 0.9497154454 | T183: 0.9004305708 | U183: 0.9547195899 | V183: 0.9497154454 | AP183: 57197700
A184: 152 | B184: =IF(A184>$A$8,"",OFFSET(InputPriceData!B$15,$A184+$A$11,0,1,1)) -> 2019-04-26 | C184: =IF(A184>$A$8,"",OFFSET(InputPriceData!G$15,CalculationsAndCharts!$A184+$A$11,IF($C$5,8,0),1,1)) -> 50916400 | D184: =IF(A184>$A$8,"",OFFSET(InputPriceData!C$15,CalculationsAndCharts!$A184+$A$11,IF($C$5,8,0),1,1)) -> 287.93 | E184: =IF(A184>$A$8,"",OFFSET(InputPriceData!D$15,CalculationsAndCharts!$A184+$A$11,IF($C$5,8,0),1,1)) -> 289.3 | F184: =IF(A184>$A$8,"",OFFSET(InputPriceData!E$15,CalculationsAndCharts!$A184+$A$11,IF($C$5,8,0),1,1)) -> 287.09 | G184: =IF(A184>$A$8,"",OFFSET(InputPriceData!F$15,CalculationsAndCharts!$A184+$A$11,IF($C$5,8,0),1,1)) -> 289.23 | H184: 0.8333399663 | I184: 0.9359241918 | J184: 0.9399577443 | T184: 0.8333399663 | U184: 0.9359241918 | V184: 0.9399577443 | AP184: 50916400
A185: 153 | B185: =IF(A185>$A$8,"",OFFSET(InputPriceData!B$15,$A185+$A$11,0,1,1)) -> 2019-04-25 | C185: =IF(A185>$A$8,"",OFFSET(InputPriceData!G$15,CalculationsAndCharts!$A185+$A$11,IF($C$5,8,0),1,1)) -> 57770900 | D185: =IF(A185>$A$8,"",OFFSET(InputPriceData!C$15,CalculationsAndCharts!$A185+$A$11,IF($C$5,8,0),1,1)) -> 287.95 | E185: =IF(A185>$A$8,"",OFFSET(InputPriceData!D$15,CalculationsAndCharts!$A185+$A$11,IF($C$5,8,0),1,1)) -> 288.6 | F185: =IF(A185>$A$8,"",OFFSET(InputPriceData!E$15,CalculationsAndCharts!$A185+$A$11,IF($C$5,8,0),1,1)) -> 286.58 | G185: =IF(A185>$A$8,"",OFFSET(InputPriceData!F$15,CalculationsAndCharts!$A185+$A$11,IF($C$5,8,0),1,1)) -> 287.89 | H185: 0.8330631954 | I185: 0.9148897031 | J185: 0.9349452105 | T185: 0.8330631954 | U185: 0.9148897031 | V185: 0.9349452105 | AQ185: 57770900
A186: 154 | B186: =IF(A186>$A$8,"",OFFSET(InputPriceData!B$15,$A186+$A$11,0,1,1)) -> 2019-04-24 | C186: =IF(A186>$A$8,"",OFFSET(InputPriceData!G$15,CalculationsAndCharts!$A186+$A$11,IF($C$5,8,0),1,1)) -> 50392900 | D186: =IF(A186>$A$8,"",OFFSET(InputPriceData!C$15,CalculationsAndCharts!$A186+$A$11,IF($C$5,8,0),1,1)) -> 288.61 | E186: =IF(A186>$A$8,"",OFFSET(InputPriceData!D$15,CalculationsAndCharts!$A186+$A$11,IF($C$5,8,0),1,1)) -> 288.98 | F186: =IF(A186>$A$8,"",OFFSET(InputPriceData!E$15,CalculationsAndCharts!$A186+$A$11,IF($C$5,8,0),1,1)) -> 287.9 | G186: =IF(A186>$A$8,"",OFFSET(InputPriceData!F$15,CalculationsAndCharts!$A186+$A$11,IF($C$5,8,0),1,1)) -> 288.06 | H186: 0.8482417606 | I186: 0.9120092857 | J186: 0.9280293821 | T186: 0.8482417606 | U186: 0.9120092857 | V186: 0.9280293821 | AQ186: 50392900
A187: 155 | B187: =IF(A187>$A$8,"",OFFSET(InputPriceData!B$15,$A187+$A$11,0,1,1)) -> 2019-04-23 | C187: =IF(A187>$A$8,"",OFFSET(InputPriceData!G$15,CalculationsAndCharts!$A187+$A$11,IF($C$5,8,0),1,1)) -> 52246600 | D187: =IF(A187>$A$8,"",OFFSET(InputPriceData!C$15,CalculationsAndCharts!$A187+$A$11,IF($C$5,8,0),1,1)) -> 286.53 | E187: =IF(A187>$A$8,"",OFFSET(InputPriceData!D$15,CalculationsAndCharts!$A187+$A$11,IF($C$5,8,0),1,1)) -> 288.96 | F187: =IF(A187>$A$8,"",OFFSET(InputPriceData!E$15,CalculationsAndCharts!$A187+$A$11,IF($C$5,8,0),1,1)) -> 286.28 | G187: =IF(A187>$A$8,"",OFFSET(InputPriceData!F$15,CalculationsAndCharts!$A187+$A$11,IF($C$5,8,0),1,1)) -> 288.7 | H187: 0.8538716913 | I187: 0.9179883289 | J187: 0.9188998446 | T187: 0.8538716913 | U187: 0.9179883289 | V187: 0.9188998446 | AP187: 52246600
A188: 156 | B188: =IF(A188>$A$8,"",OFFSET(InputPriceData!B$15,$A188+$A$11,0,1,1)) -> 2019-04-22 | C188: =IF(A188>$A$8,"",OFFSET(InputPriceData!G$15,CalculationsAndCharts!$A188+$A$11,IF($C$5,8,0),1,1)) -> 40160100 | D188: =IF(A188>$A$8,"",OFFSET(InputPriceData!C$15,CalculationsAndCharts!$A188+$A$11,IF($C$5,8,0),1,1)) -> 285.05 | E188: =IF(A188>$A$8,"",OFFSET(InputPriceData!D$15,CalculationsAndCharts!$A188+$A$11,IF($C$5,8,0),1,1)) -> 286.3 | F188: =IF(A188>$A$8,"",OFFSET(InputPriceData!E$15,CalculationsAndCharts!$A188+$A$11,IF($C$5,8,0),1,1)) -> 284.95 | G188: =IF(A188>$A$8,"",OFFSET(InputPriceData!F$15,CalculationsAndCharts!$A188+$A$11,IF($C$5,8,0),1,1)) -> 286.13 | H188: 0.7683982562 | I188: 0.9173957522 | J188: 0.9074392716 | T188: 0.7683982562 | U188: 0.9173957522 | V188: 0.9074392716 | AP188: 40160100
A189: 157 | B189: =IF(A189>$A$8,"",OFFSET(InputPriceData!B$15,$A189+$A$11,0,1,1)) -> 2019-04-18 | C189: =IF(A189>$A$8,"",OFFSET(InputPriceData!G$15,CalculationsAndCharts!$A189+$A$11,IF($C$5,8,0),1,1)) -> 68708500 | D189: =IF(A189>$A$8,"",OFFSET(InputPriceData!C$15,CalculationsAndCharts!$A189+$A$11,IF($C$5,8,0),1,1)) -> 285.96 | E189: =IF(A189>$A$8,"",OFFSET(InputPriceData!D$15,CalculationsAndCharts!$A189+$A$11,IF($C$5,8,0),1,1)) -> 286.18 | F189: =IF(A189>$A$8,"",OFFSET(InputPriceData!E$15,CalculationsAndCharts!$A189+$A$11,IF($C$5,8,0),1,1)) -> 284.54 | G189: =IF(A189>$A$8,"",OFFSET(InputPriceData!F$15,CalculationsAndCharts!$A189+$A$11,IF($C$5,8,0),1,1)) -> 285.88 | H189: 0.7141419859 | I189: 0.9323051355 | J189: 0.8977905739 | T189: 0.7141419859 | U189: 0.9323051355 | V189: 0.8977905739 | AQ189: 68708500
A190: 158 | B190: =IF(A190>$A$8,"",OFFSET(InputPriceData!B$15,$A190+$A$11,0,1,1)) -> 2019-04-17 | C190: =IF(A190>$A$8,"",OFFSET(InputPriceData!G$15,CalculationsAndCharts!$A190+$A$11,IF($C$5,8,0),1,1)) -> 58268300 | D190: =IF(A190>$A$8,"",OFFSET(InputPriceData!C$15,CalculationsAndCharts!$A190+$A$11,IF($C$5,8,0),1,1)) -> 287.24 | E190: =IF(A190>$A$8,"",OFFSET(InputPriceData!D$15,CalculationsAndCharts!$A190+$A$11,IF($C$5,8,0),1,1)) -> 287.27 | F190: =IF(A190>$A$8,"",OFFSET(InputPriceData!E$15,CalculationsAndCharts!$A190+$A$11,IF($C$5,8,0),1,1)) -> 284.87 | G190: =IF(A190>$A$8,"",OFFSET(InputPriceData!F$15,CalculationsAndCharts!$A190+$A$11,IF($C$5,8,0),1,1)) -> 285.32 | H190: 0.7629488644 | I190: 0.8868098152 | J190: 0.8934311073 | T190: 0.7629488644 | U190: 0.8868098152 | V190: 0.8934311073 | AQ190: 58268300
A191: 159 | B191: =IF(A191>$A$8,"",OFFSET(InputPriceData!B$15,$A191+$A$11,0,1,1)) -> 2019-04-16 | C191: =IF(A191>$A$8,"",OFFSET(InputPriceData!G$15,CalculationsAndCharts!$A191+$A$11,IF($C$5,8,0),1,1)) -> 52153200 | D191: =IF(A191>$A$8,"",OFFSET(InputPriceData!C$15,CalculationsAndCharts!$A191+$A$11,IF($C$5,8,0),1,1)) -> 286.8 | E191: =IF(A191>$A$8,"",OFFSET(InputPriceData!D$15,CalculationsAndCharts!$A191+$A$11,IF($C$5,8,0),1,1)) -> 286.86 | F191: =IF(A191>$A$8,"",OFFSET(InputPriceData!E$15,CalculationsAndCharts!$A191+$A$11,IF($C$5,8,0),1,1)) -> 285.37 | G191: =IF(A191>$A$8,"",OFFSET(InputPriceData!F$15,CalculationsAndCharts!$A191+$A$11,IF($C$5,8,0),1,1)) -> 286.02 | H191: 0.8479994265 | I191: 0.886153911 | J191: 0.8843678434 | T191: 0.8479994265 | U191: 0.886153911 | V191: 0.8843678434 | AQ191: 52153200
A192: 160 | B192: =IF(A192>$A$8,"",OFFSET(InputPriceData!B$15,$A192+$A$11,0,1,1)) -> 2019-04-15 | C192: =IF(A192>$A$8,"",OFFSET(InputPriceData!G$15,CalculationsAndCharts!$A192+$A$11,IF($C$5,8,0),1,1)) -> 49596700 | D192: =IF(A192>$A$8,"",OFFSET(InputPriceData!C$15,CalculationsAndCharts!$A192+$A$11,IF($C$5,8,0),1,1)) -> 286.1 | E192: =IF(A192>$A$8,"",OFFSET(InputPriceData!D$15,CalculationsAndCharts!$A192+$A$11,IF($C$5,8,0),1,1)) -> 286.21 | F192: =IF(A192>$A$8,"",OFFSET(InputPriceData!E$15,CalculationsAndCharts!$A192+$A$11,IF($C$5,8,0),1,1)) -> 284.96 | G192: =IF(A192>$A$8,"",OFFSET(InputPriceData!F$15,CalculationsAndCharts!$A192+$A$11,IF($C$5,8,0),1,1)) -> 285.83 | H192: 0.8603181829 | I192: 0.8594993175 | J192: 0.8752239668 | T192: 0.8603181829 | U192: 0.8594993175 | V192: 0.8752239668 | AQ192: 49596700
A193: 161 | B193: =IF(A193>$A$8,"",OFFSET(InputPriceData!B$15,$A193+$A$11,0,1,1)) -> 2019-04-12 | C193: =IF(A193>$A$8,"",OFFSET(InputPriceData!G$15,CalculationsAndCharts!$A193+$A$11,IF($C$5,8,0),1,1)) -> 69727800 | D193: =IF(A193>$A$8,"",OFFSET(InputPriceData!C$15,CalculationsAndCharts!$A193+$A$11,IF($C$5,8,0),1,1)) -> 285.86 | E193: =IF(A193>$A$8,"",OFFSET(InputPriceData!D$15,CalculationsAndCharts!$A193+$A$11,IF($C$5,8,0),1,1)) -> 286.33 | F193: =IF(A193>$A$8,"",OFFSET(InputPriceData!E$15,CalculationsAndCharts!$A193+$A$11,IF($C$5,8,0),1,1)) -> 284.15 | G193: =IF(A193>$A$8,"",OFFSET(InputPriceData!F$15,CalculationsAndCharts!$A193+$A$11,IF($C$5,8,0),1,1)) -> 286.02 | H193: 0.8593072219 | I193: 0.8255073951 | J193: 0.8668511172 | T193: 0.8593072219 | U193: 0.8255073951 | V193: 0.8668511172 | AP193: 69727800
A194: 162 | B194: =IF(A194>$A$8,"",OFFSET(InputPriceData!B$15,$A194+$A$11,0,1,1)) -> 2019-04-11 | C194: =IF(A194>$A$8,"",OFFSET(InputPriceData!G$15,CalculationsAndCharts!$A194+$A$11,IF($C$5,8,0),1,1)) -> 55093100 | D194: =IF(A194>$A$8,"",OFFSET(InputPriceData!C$15,CalculationsAndCharts!$A194+$A$11,IF($C$5,8,0),1,1)) -> 284.71 | E194: =IF(A194>$A$8,"",OFFSET(InputPriceData!D$15,CalculationsAndCharts!$A194+$A$11,IF($C$5,8,0),1,1)) -> 284.72 | F194: =IF(A194>$A$8,"",OFFSET(InputPriceData!E$15,CalculationsAndCharts!$A194+$A$11,IF($C$5,8,0),1,1)) -> 283.48 | G194: =IF(A194>$A$8,"",OFFSET(InputPriceData!F$15,CalculationsAndCharts!$A194+$A$11,IF($C$5,8,0),1,1)) -> 284.1 | H194: 0.8172099066 | I194: 0.7963084185 | J194: 0.8661658429 | T194: 0.8172099066 | U194: 0.7963084185 | V194: 0.8661658429 | AQ194: 55093100
A195: 163 | B195: =IF(A195>$A$8,"",OFFSET(InputPriceData!B$15,$A195+$A$11,0,1,1)) -> 2019-04-10 | C195: =IF(A195>$A$8,"",OFFSET(InputPriceData!G$15,CalculationsAndCharts!$A195+$A$11,IF($C$5,8,0),1,1)) -> 52601500 | D195: =IF(A195>$A$8,"",OFFSET(InputPriceData!C$15,CalculationsAndCharts!$A195+$A$11,IF($C$5,8,0),1,1)) -> 283.67 | E195: =IF(A195>$A$8,"",OFFSET(InputPriceData!D$15,CalculationsAndCharts!$A195+$A$11,IF($C$5,8,0),1,1)) -> 284.28 | F195: =IF(A195>$A$8,"",OFFSET(InputPriceData!E$15,CalculationsAndCharts!$A195+$A$11,IF($C$5,8,0),1,1)) -> 283.21 | G195: =IF(A195>$A$8,"",OFFSET(InputPriceData!F$15,CalculationsAndCharts!$A195+$A$11,IF($C$5,8,0),1,1)) -> 284.18 | H195: 0.8692531062 | I195: 0.7914485191 | J195: 0.8641698469 | T195: 0.8692531062 | U195: 0.7914485191 | V195: 0.8641698469 | AP195: 52601500
A196: 164 | B196: =IF(A196>$A$8,"",OFFSET(InputPriceData!B$15,$A196+$A$11,0,1,1)) -> 2019-04-09 | C196: =IF(A196>$A$8,"",OFFSET(InputPriceData!G$15,CalculationsAndCharts!$A196+$A$11,IF($C$5,8,0),1,1)) -> 66142300 | D196: =IF(A196>$A$8,"",OFFSET(InputPriceData!C$15,CalculationsAndCharts!$A196+$A$11,IF($C$5,8,0),1,1)) -> 283.62 | E196: =IF(A196>$A$8,"",OFFSET(InputPriceData!D$15,CalculationsAndCharts!$A196+$A$11,IF($C$5,8,0),1,1)) -> 283.97 | F196: =IF(A196>$A$8,"",OFFSET(InputPriceData!E$15,CalculationsAndCharts!$A196+$A$11,IF($C$5,8,0),1,1)) -> 282.61 | G196: =IF(A196>$A$8,"",OFFSET(InputPriceData!F$15,CalculationsAndCharts!$A196+$A$11,IF($C$5,8,0),1,1)) -> 283.21 | H196: 0.9140719967 | I196: 0.7739282579 | J196: 0.8629459029 | T196: 0.9140719967 | U196: 0.7739282579 | V196: 0.8629459029 | AQ196: 66142300
A197: 165 | B197: =IF(A197>$A$8,"",OFFSET(InputPriceData!B$15,$A197+$A$11,0,1,1)) -> 2019-04-08 | C197: =IF(A197>$A$8,"",OFFSET(InputPriceData!G$15,CalculationsAndCharts!$A197+$A$11,IF($C$5,8,0),1,1)) -> 53566300 | D197: =IF(A197>$A$8,"",OFFSET(InputPriceData!C$15,CalculationsAndCharts!$A197+$A$11,IF($C$5,8,0),1,1)) -> 283.99 | E197: =IF(A197>$A$8,"",OFFSET(InputPriceData!D$15,CalculationsAndCharts!$A197+$A$11,IF($C$5,8,0),1,1)) -> 284.79 | F197: =IF(A197>$A$8,"",OFFSET(InputPriceData!E$15,CalculationsAndCharts!$A197+$A$11,IF($C$5,8,0),1,1)) -> 283.27 | G197: =IF(A197>$A$8,"",OFFSET(InputPriceData!F$15,CalculationsAndCharts!$A197+$A$11,IF($C$5,8,0),1,1)) -> 284.67 | H197: 0.9541290242 | I197: 0.7782954766 | J197: 0.8624038058 | T197: 0.9541290242 | U197: 0.7782954766 | V197: 0.8624038058 | AP197: 53566300
A198: 166 | B198: =IF(A198>$A$8,"",OFFSET(InputPriceData!B$15,$A198+$A$11,0,1,1)) -> 2019-04-05 | C198: =IF(A198>$A$8,"",OFFSET(InputPriceData!G$15,CalculationsAndCharts!$A198+$A$11,IF($C$5,8,0),1,1)) -> 58621700 | D198: =IF(A198>$A$8,"",OFFSET(InputPriceData!C$15,CalculationsAndCharts!$A198+$A$11,IF($C$5,8,0),1,1)) -> 283.81 | E198: =IF(A198>$A$8,"",OFFSET(InputPriceData!D$15,CalculationsAndCharts!$A198+$A$11,IF($C$5,8,0),1,1)) -> 284.51 | F198: =IF(A198>$A$8,"",OFFSET(InputPriceData!E$15,CalculationsAndCharts!$A198+$A$11,IF($C$5,8,0),1,1)) -> 283.5 | G198: =IF(A198>$A$8,"",OFFSET(InputPriceData!F$15,CalculationsAndCharts!$A198+$A$11,IF($C$5,8,0),1,1)) -> 284.45 | H198: 0.9591807542 | I198: 0.7730427673 | J198: 0.8621561064 | T198: 0.9591807542 | U198: 0.7730427673 | V198: 0.8621561064 | AP198: 58621700
A199: 167 | B199: =IF(A199>$A$8,"",OFFSET(InputPriceData!B$15,$A199+$A$11,0,1,1)) -> 2019-04-04 | C199: =IF(A199>$A$8,"",OFFSET(InputPriceData!G$15,CalculationsAndCharts!$A199+$A$11,IF($C$5,8,0),1,1)) -> 48997500 | D199: =IF(A199>$A$8,"",OFFSET(InputPriceData!C$15,CalculationsAndCharts!$A199+$A$11,IF($C$5,8,0),1,1)) -> 282.69 | E199: =IF(A199>$A$8,"",OFFSET(InputPriceData!D$15,CalculationsAndCharts!$A199+$A$11,IF($C$5,8,0),1,1)) -> 283.36 | F199: =IF(A199>$A$8,"",OFFSET(InputPriceData!E$15,CalculationsAndCharts!$A199+$A$11,IF($C$5,8,0),1,1)) -> 281.93 | G199: =IF(A199>$A$8,"",OFFSET(InputPriceData!F$15,CalculationsAndCharts!$A199+$A$11,IF($C$5,8,0),1,1)) -> 283.08 | H199: 0.9442491036 | I199: 0.7705850958 | J199: 0.862321588 | T199: 0.9442491036 | U199: 0.7705850958 | V199: 0.862321588 | AP199: 48997500
A200: 168 | B200: =IF(A200>$A$8,"",OFFSET(InputPriceData!B$15,$A200+$A$11,0,1,1)) -> 2019-04-03 | C200: =IF(A200>$A$8,"",OFFSET(InputPriceData!G$15,CalculationsAndCharts!$A200+$A$11,IF($C$5,8,0),1,1)) -> 68243200 | D200: =IF(A200>$A$8,"",OFFSET(InputPriceData!C$15,CalculationsAndCharts!$A200+$A$11,IF($C$5,8,0),1,1)) -> 283.22 | E200: =IF(A200>$A$8,"",OFFSET(InputPriceData!D$15,CalculationsAndCharts!$A200+$A$11,IF($C$5,8,0),1,1)) -> 283.66 | F200: =IF(A200>$A$8,"",OFFSET(InputPriceData!E$15,CalculationsAndCharts!$A200+$A$11,IF($C$5,8,0),1,1)) -> 281.67 | G200: =IF(A200>$A$8,"",OFFSET(InputPriceData!F$15,CalculationsAndCharts!$A200+$A$11,IF($C$5,8,0),1,1)) -> 282.34 | H200: 0.6267273634 | I200: 0.7745256819 | J200: 0.8598264889 | T200: 0.6267273634 | U200: 0.7745256819 | V200: 0.8598264889 | AQ200: 68243200
A201: 169 | B201: =IF(A201>$A$8,"",OFFSET(InputPriceData!B$15,$A201+$A$11,0,1,1)) -> 2019-04-02 | C201: =IF(A201>$A$8,"",OFFSET(InputPriceData!G$15,CalculationsAndCharts!$A201+$A$11,IF($C$5,8,0),1,1)) -> 40070400 | D201: =IF(A201>$A$8,"",OFFSET(InputPriceData!C$15,CalculationsAndCharts!$A201+$A$11,IF($C$5,8,0),1,1)) -> 281.96 | E201: =IF(A201>$A$8,"",OFFSET(InputPriceData!D$15,CalculationsAndCharts!$A201+$A$11,IF($C$5,8,0),1,1)) -> 282.15 | F201: =IF(A201>$A$8,"",OFFSET(InputPriceData!E$15,CalculationsAndCharts!$A201+$A$11,IF($C$5,8,0),1,1)) -> 281.02 | G201: =IF(A201>$A$8,"",OFFSET(InputPriceData!F$15,CalculationsAndCharts!$A201+$A$11,IF($C$5,8,0),1,1)) -> 281.89 | H201: 0.4674567057 | I201: 0.7617241717 | J201: 0.8556551705 | T201: 0.4674567057 | U201: 0.7617241717 | V201: 0.8556551705 | AQ201: 40070400
A202: 170 | B202: =IF(A202>$A$8,"",OFFSET(InputPriceData!B$15,$A202+$A$11,0,1,1)) -> 2019-04-01 | C202: =IF(A202>$A$8,"",OFFSET(InputPriceData!G$15,CalculationsAndCharts!$A202+$A$11,IF($C$5,8,0),1,1)) -> 77617900 | D202: =IF(A202>$A$8,"",OFFSET(InputPriceData!C$15,CalculationsAndCharts!$A202+$A$11,IF($C$5,8,0),1,1)) -> 280.64 | E202: =IF(A202>$A$8,"",OFFSET(InputPriceData!D$15,CalculationsAndCharts!$A202+$A$11,IF($C$5,8,0),1,1)) -> 282.08 | F202: =IF(A202>$A$8,"",OFFSET(InputPriceData!E$15,CalculationsAndCharts!$A202+$A$11,IF($C$5,8,0),1,1)) -> 280.34 | G202: =IF(A202>$A$8,"",OFFSET(InputPriceData!F$15,CalculationsAndCharts!$A202+$A$11,IF($C$5,8,0),1,1)) -> 281.75 | H202: 0.167144895 | I202: 0.7164075828 | J202: 0.853785133 | T202: 0.167144895 | U202: 0.7164075828 | V202: 0.853785133 | AP202: 77617900
A203: 171 | B203: =IF(A203>$A$8,"",OFFSET(InputPriceData!B$15,$A203+$A$11,0,1,1)) -> 2019-03-29 | C203: =IF(A203>$A$8,"",OFFSET(InputPriceData!G$15,CalculationsAndCharts!$A203+$A$11,IF($C$5,8,0),1,1)) -> 82186800 | D203: =IF(A203>$A$8,"",OFFSET(InputPriceData!C$15,CalculationsAndCharts!$A203+$A$11,IF($C$5,8,0),1,1)) -> 278.36 | E203: =IF(A203>$A$8,"",OFFSET(InputPriceData!D$15,CalculationsAndCharts!$A203+$A$11,IF($C$5,8,0),1,1)) -> 278.81 | F203: =IF(A203>$A$8,"",OFFSET(InputPriceData!E$15,CalculationsAndCharts!$A203+$A$11,IF($C$5,8,0),1,1)) -> 277.13 | G203: =IF(A203>$A$8,"",OFFSET(InputPriceData!F$15,CalculationsAndCharts!$A203+$A$11,IF($C$5,8,0),1,1)) -> 278.45 | H203: -0.3226994985 | I203: 0.6487646255 | J203: 0.8538602027 | T203: -0.3226994985 | U203: 0.6487646255 | V203: 0.8538602027 | AP203: 82186800
A204: 172 | B204: =IF(A204>$A$8,"",OFFSET(InputPriceData!B$15,$A204+$A$11,0,1,1)) -> 2019-03-28 | C204: =IF(A204>$A$8,"",OFFSET(InputPriceData!G$15,CalculationsAndCharts!$A204+$A$11,IF($C$5,8,0),1,1)) -> 56238500 | D204: =IF(A204>$A$8,"",OFFSET(InputPriceData!C$15,CalculationsAndCharts!$A204+$A$11,IF($C$5,8,0),1,1)) -> 276.35 | E204: =IF(A204>$A$8,"",OFFSET(InputPriceData!D$15,CalculationsAndCharts!$A204+$A$11,IF($C$5,8,0),1,1)) -> 277.2 | F204: =IF(A204>$A$8,"",OFFSET(InputPriceData!E$15,CalculationsAndCharts!$A204+$A$11,IF($C$5,8,0),1,1)) -> 275.09 | G204: =IF(A204>$A$8,"",OFFSET(InputPriceData!F$15,CalculationsAndCharts!$A204+$A$11,IF($C$5,8,0),1,1)) -> 276.71 | H204: -0.4661728202 | I204: 0.5768897494 | J204: 0.8580276517 | T204: -0.4661728202 | U204: 0.5768897494 | V204: 0.8580276517 | AP204: 56238500
A205: 173 | B205: =IF(A205>$A$8,"",OFFSET(InputPriceData!B$15,$A205+$A$11,0,1,1)) -> 2019-03-27 | C205: =IF(A205>$A$8,"",OFFSET(InputPriceData!G$15,CalculationsAndCharts!$A205+$A$11,IF($C$5,8,0),1,1)) -> 72224700 | D205: =IF(A205>$A$8,"",OFFSET(InputPriceData!C$15,CalculationsAndCharts!$A205+$A$11,IF($C$5,8,0),1,1)) -> 277.1 | E205: =IF(A205>$A$8,"",OFFSET(InputPriceData!D$15,CalculationsAndCharts!$A205+$A$11,IF($C$5,8,0),1,1)) -> 277.74 | F205: =IF(A205>$A$8,"",OFFSET(InputPriceData!E$15,CalculationsAndCharts!$A205+$A$11,IF($C$5,8,0),1,1)) -> 273.97 | G205: =IF(A205>$A$8,"",OFFSET(InputPriceData!F$15,CalculationsAndCharts!$A205+$A$11,IF($C$5,8,0),1,1)) -> 275.66 | H205: -0.276860652 | I205: 0.5835146703 | J205: 0.8677922437 | T205: -0.276860652 | U205: 0.5835146703 | V205: 0.8677922437 | AQ205: 72224700
A206: 174 | B206: =IF(A206>$A$8,"",OFFSET(InputPriceData!B$15,$A206+$A$11,0,1,1)) -> 2019-03-26 | C206: =IF(A206>$A$8,"",OFFSET(InputPriceData!G$15,CalculationsAndCharts!$A206+$A$11,IF($C$5,8,0),1,1)) -> 68125900 | D206: =IF(A206>$A$8,"",OFFSET(InputPriceData!C$15,CalculationsAndCharts!$A206+$A$11,IF($C$5,8,0),1,1)) -> 276.98 | E206: =IF(A206>$A$8,"",OFFSET(InputPriceData!D$15,CalculationsAndCharts!$A206+$A$11,IF($C$5,8,0),1,1)) -> 278.16 | F206: =IF(A206>$A$8,"",OFFSET(InputPriceData!E$15,CalculationsAndCharts!$A206+$A$11,IF($C$5,8,0),1,1)) -> 275.57 | G206: =IF(A206>$A$8,"",OFFSET(InputPriceData!F$15,CalculationsAndCharts!$A206+$A$11,IF($C$5,8,0),1,1)) -> 277.11 | H206: -0.01050432353 | I206: 0.5994245809 | J206: 0.8736005312 | T206: -0.01050432353 | U206: 0.5994245809 | V206: 0.8736005312 | AP206: 68125900
A207: 175 | B207: =IF(A207>$A$8,"",OFFSET(InputPriceData!B$15,$A207+$A$11,0,1,1)) -> 2019-03-25 | C207: =IF(A207>$A$8,"",OFFSET(InputPriceData!G$15,CalculationsAndCharts!$A207+$A$11,IF($C$5,8,0),1,1)) -> 85575200 | D207: =IF(A207>$A$8,"",OFFSET(InputPriceData!C$15,CalculationsAndCharts!$A207+$A$11,IF($C$5,8,0),1,1)) -> 274.89 | E207: =IF(A207>$A$8,"",OFFSET(InputPriceData!D$15,CalculationsAndCharts!$A207+$A$11,IF($C$5,8,0),1,1)) -> 276.19 | F207: =IF(A207>$A$8,"",OFFSET(InputPriceData!E$15,CalculationsAndCharts!$A207+$A$11,IF($C$5,8,0),1,1)) -> 273.68 | G207: =IF(A207>$A$8,"",OFFSET(InputPriceData!F$15,CalculationsAndCharts!$A207+$A$11,IF($C$5,8,0),1,1)) -> 275.06 | H207: 0.2426531431 | I207: 0.5667617935 | J207: 0.8783151472 | T207: 0.2426531431 | U207: 0.5667617935 | V207: 0.8783151472 | AP207: 85575200
A208: 176 | B208: =IF(A208>$A$8,"",OFFSET(InputPriceData!B$15,$A208+$A$11,0,1,1)) -> 2019-03-22 | C208: =IF(A208>$A$8,"",OFFSET(InputPriceData!G$15,CalculationsAndCharts!$A208+$A$11,IF($C$5,8,0),1,1)) -> 122659300 | D208: =IF(A208>$A$8,"",OFFSET(InputPriceData!C$15,CalculationsAndCharts!$A208+$A$11,IF($C$5,8,0),1,1)) -> 279.18 | E208: =IF(A208>$A$8,"",OFFSET(InputPriceData!D$15,CalculationsAndCharts!$A208+$A$11,IF($C$5,8,0),1,1)) -> 279.75 | F208: =IF(A208>$A$8,"",OFFSET(InputPriceData!E$15,CalculationsAndCharts!$A208+$A$11,IF($C$5,8,0),1,1)) -> 275.2 | G208: =IF(A208>$A$8,"",OFFSET(InputPriceData!F$15,CalculationsAndCharts!$A208+$A$11,IF($C$5,8,0),1,1)) -> 275.27 | H208: 0.6574092391 | I208: 0.5796651999 | J208: 0.8946922281 | T208: 0.6574092391 | U208: 0.5796651999 | V208: 0.8946922281 | AQ208: 122659300
... 1074 more rows

Sheet Follow
A1: Stocks and Indexes I wish to follow
A3: To ease following a stock, enter a Yahoo Finance acceptable symbol in column "A" anywhere below cell "A9".
A4: Thereafter you may doubleclick the cell containing a symbol of interest to initiate data retrieval and charting for that symbol.
A7: Symbol
A8: To | B8: Description | C8: Last Trade as of most recent check
A9: Follow | C9: Date | D9: Time | E9: Open | F9: High | G9: Low | H9: Close | I9: Volume | J9: Change | K9: Retrieved @
A10: A | B10: Agilent Technologies, Inc. (A) -NYSE (Daily) | C10: 2020-03-09 | D10: 16:04:00 | E10: 72.589996 | F10: 74.190002 | G10: 70.169998 | H10: 70.75 | I10: 4591093 | J10: -7.809998 | K10: 2020-03-09T16:59:21
A11: AA | B11: Alcoa Corporation (AA) -NYSE (Daily) | C11: 2020-01-31 | D11: 16:04:00 | E11: 14.01 | F11: 14.24 | G11: 13.62 | H11: 13.95 | I11: 9931500 | J11: -0.34 | K11: 2020-02-02T15:07:13
A12: AAL | B12: American Airlines Group Inc. (AAL) -NasdaqGS (Daily) | C12: 2020-03-09 | D12: 16:00:00 | E12: 14.87 | F12: 15.79 | G12: 14.46 | H12: 14.75 | I12: 41078614 | J12: -1.22 | K12: 2020-03-09T17:00:15
A13: AAPL | B13: Apple Inc. (AAPL) -NasdaqGS (Daily) | C13: 2020-03-13 | D13: 11:43:00 | E13: 264.890015 | F13: 265.540009 | G13: 253.460007 | H13: 255.244995 | I13: 37261902 | J13: 7.014999 | K13: 2020-03-13T11:43:16
A14: ADM | B14: Archer-Daniels-Midland Company (ADM) -NYSE (Weekly) | C14: 2018-07-13 | D14: 16:00:00 | E14: 47.5 | F14: 47.84 | G14: 47.169998 | H14: 47.57 | I14: 2402809 | J14: 0
A15: ADBE | B15: Adobe Inc. (ADBE) -NasdaqGS (Daily) | C15: 2020-03-13 | D15: 11:55:00 | E15: 312.880005 | F15: 322.540009 | G15: 298.01001 | H15: 302.244995 | I15: 3498916 | J15: 17.244995 | K15: 2020-03-13T11:55:37
A16: ALGN | B16: Align Technology, Inc. (ALGN) -NasdaqGS (Daily) | C16: 2020-01-30 | D16: 16:00:00 | E16: 248.740005 | F16: 264.450012 | G16: 248.350006 | H16: 262.890015 | I16: 1833160 | J16: 1.290009
A17: AMC | B17: AMC Entertainment Holdings, Inc. (AMC) -NYSE (Weekly) | C17: 2018-07-13 | D17: 16:02:00 | E17: 17.049999 | F17: 17.15 | G17: 16.525 | H17: 17.049999 | I17: 1442776 | J17: 0
A18: BSX | B18: Boston Scientific Corporation C (BSX) -NYQ (Daily) | C18: 2015-03-13 | D18: 16:01:00 | E18: 16.84 | F18: 16.91 | G18: 16.44 | H18: 16.61 | I18: 7262460 | J18: -0.28
A19: CASY | B19: Casey's General Stores, Inc. (CASY) -NasdaqGS (Daily) | C19: 2019-04-10 | D19: 16:00:00 | E19: 128.979996 | F19: 130.330002 | G19: 128.779999 | H19: 130.179993 | I19: 351300 | J19: 1.489991
A20: CAT | B20: Caterpillar Inc. (CAT) -NYSE (Daily) | C20: 2020-03-13 | D20: 11:48:00 | E20: 98.389999 | F20: 99.910004 | G20: 90.150101 | H20: 90.269997 | I20: 3568294 | J20: -1.990005 | K20: 2020-03-13T11:48:53
A21: CSCO | B21: Cisco Systems, In (CSCO) -NasdaqNM (Daily) | C21: 2015-02-19 | D21: 16:00:00 | E21: 29.32 | F21: 29.39 | G21: 29.13 | H21: 29.31 | I21: 21469012 | J21: -0.18
A22: CVS | B22: CVS Health Corporation (CVS) -NYSE (Daily) | C22: 2020-03-09 | D22: 16:07:00 | E22: 59.75 | F22: 63 | G22: 59.599998 | H22: 61.299999 | I22: 13065424 | J22: -2.850003 | K22: 2020-03-09T17:51:54
A23: DIS | B23: The Walt Disney Company (DIS) -NYSE (Daily) | C23: 2020-03-09 | D23: 16:07:00 | E23: 108.690002 | F23: 110.43 | G23: 104.279999 | H23: 104.349998 | I23: 26101127 | J23: -10.919999 | K23: 2020-03-09T16:59:51
A24: F | B24: Ford Motor Company (F) -NYSE (Daily) | C24: 2020-01-31 | D24: 16:03:00 | E24: 8.78 | F24: 8.84 | G24: 8.74 | H24: 8.82 | I24: 59781000 | J24: -0.02 | K24: 2020-02-02T15:09:03
A25: FAS | B25: Direxion Daily Financial Bull 3X ETF (FAS) -NYSEArca (Daily) | C25: 2017-10-13 | D25: 16:00:00 | E25: 58.099998 | F25: 58.939999 | G25: 57.43 | H25: 58.450001 | I25: 1709300 | J25: 0.07
A26: FB | B26: Facebook, Inc. (FB) -NasdaqGS (Daily) | C26: 2020-02-14 | D26: 16:00:00 | E26: 214 | F26: 214.929993 | G26: 212.649994 | H26: 214.179993 | I26: 10727400 | J26: 1.039994 | K26: 2020-02-15T17:19:34
A27: GSK | B27: GlaxoSmithKline plc (GSK) -NYSE (Daily) | C27: 2019-08-14 | D27: 11:15:00 | E27: 40.060001 | F27: 40.209999 | G27: 39.895 | H27: 39.93 | I27: 941699 | J27: -0.310002
A28: GDX | B28: VanEck Vectors Gold Miners ETF (GDX) -NYSEArca (Daily) | C28: 2020-01-31 | D28: 16:00:00 | E28: 28.799999 | F28: 29.24 | G28: 28.76 | H28: 28.99 | I28: 41946000 | J28: 0.26 | K28: 2020-02-02T15:11:17
A29: GOOG | B29: Alphabet Inc. (GOOG) -NasdaqGS (Daily) | C29: 2020-02-14 | D29: 16:00:00 | E29: 1515.599976 | F29: 1520.73999 | G29: 1507.339966 | H29: 1520.73999 | I29: 1196700 | J29: 6.079956 | K29: 2020-02-15T17:20:39
A30: HD | B30: The Home Depot, Inc. (HD) -NYSE (Daily) | C30: 2020-03-13 | D30: 11:54:00 | E30: 200.449997 | F30: 201.179993 | G30: 192.270096 | H30: 193.449997 | I30: 3274582 | J30: 2.860001 | K30: 2020-03-13T11:54:29
A31: HSY | B31: The Hershey Company (HSY) -NYSE (Daily) | C31: 2019-04-10 | D31: 16:02:00 | E31: 116.099998 | F31: 116.43 | G31: 115.75 | H31: 116.309998 | I31: 574600 | J31: 0.290001
A32: HTLD | B32: Heartland Express, Inc. (HTLD) -NasdaqGS (Daily) | C32: 2020-03-09 | D32: 16:00:00 | E32: 17.33 | F32: 17.690001 | G32: 16.82 | H32: 16.879999 | I32: 284762 | J32: -1.280001 | K32: 2020-03-09T17:00:56
A33: IBM | B33: International Business Machines Corporation (IBM) -NYSE (Daily) | C33: 2019-08-14 | D33: 11:24:00 | E33: 133.910004 | F33: 134.160004 | G33: 132.130005 | H33: 132.460098 | I33: 1281528 | J33: -1.659897
A34: INTC | B34: Intel Corporation (INTC) -NasdaqGS (Daily) | C34: 2020-02-14 | D34: 16:00:00 | E34: 67.519997 | F34: 67.860001 | G34: 66.82 | H34: 67.269997 | I34: 13402800 | J34: -0.170005 | K34: 2020-02-15T17:21:41
A35: JAH | B35: Jarden Corporation Common Stock (JAH) -NYQ (Daily) | C35: 2016-01-08 | D35: 16:02:00 | E35: 53.82 | F35: 53.88 | G35: 52.65 | H35: 52.73 | I35: 4519480 | J35: -0.81
A36: JNJ | B36: Johnson & Johnson (JNJ) -NYSE (Daily) | C36: 2019-08-14 | D36: 10:33:00 | E36: 132.529999 | F36: 132.539993 | G36: 131.419998 | H36: 131.759995 | I36: 870520 | J36: -0.169998
A37: KO | B37: The Coca-Cola Company (KO) -NYSE (Daily) | C37: 2020-03-09 | D37: 16:07:00 | E37: 52.049999 | F37: 53.580002 | G37: 51.474998 | H37: 51.860001 | I37: 27771279 | J37: -3.399997 | K37: 2020-03-09T17:05:43
A38: LOW | B38: Lowe's Companies, Inc. (LOW) -NYSE (Daily) | C38: 2020-03-09 | D38: 16:03:00 | E38: 97.82 | F38: 99.82 | G38: 93.150101 | H38: 94.220001 | I38: 8167579 | J38: -11.089997 | K38: 2020-03-09T16:57:19
A39: LMT | B39: Lockheed Martin Corporation (LMT) -NYSE (Daily) | C39: 2020-03-09 | D39: 16:06:00 | E39: 359.980011 | F39: 369.470001 | G39: 351.269989 | H39: 352.029999 | I39: 3067426 | J39: -30.440002 | K39: 2020-03-09T17:06:13
A40: MCD | B40: McDonald's Corporation (MCD) -NYSE (Daily) | C40: 2020-03-09 | D40: 16:01:00 | E40: 187.669998 | F40: 194.470001 | G40: 184.100006 | H40: 186.860001 | I40: 7601343 | J40: -12 | K40: 2020-03-09T16:58:16
A41: MDT | B41: Medtronic plc (MDT) -NYSE (Daily) | C41: 2020-03-09 | D41: 16:07:00 | E41: 94.019997 | F41: 95.470001 | G41: 91.709999 | H41: 92.400002 | I41: 9000931 | J41: -6.659996 | K41: 2020-03-09T17:48:45
A42: MGM | B42: MGM Resorts International (MGM) -NYSE (Daily) | C42: 2020-03-09 | D42: 16:02:00 | E42: 18.6 | F42: 19.58 | G42: 17.530001 | H42: 17.879999 | I42: 26050818 | J42: -2.51 | K42: 2020-03-09T17:13:53
A43: MO | B43: Altria Group, Inc. (MO) -NYSE (Daily) | C43: 2020-01-31 | D43: 16:05:00 | E43: 48.25 | F43: 48.799999 | G43: 47.240002 | H43: 47.529999 | I43: 11790800 | J43: -0.470001 | K43: 2020-02-02T15:20:55
A44: MSFT | B44: Microsoft Corporation (MSFT) -NasdaqGS (Daily) | C44: 2020-03-09 | D44: 16:00:00 | E44: 151 | F44: 157.75 | G44: 150 | H44: 150.619995 | I44: 69167627 | J44: -10.950012 | K44: 2020-03-09T17:06:41
A45: NFLX | B45: Netflix, Inc. (NFLX) -NasdaqGS (Daily) | C45: 2020-03-09 | D45: 16:00:00 | E45: 343.859985 | F45: 357.470001 | G45: 341.720886 | H45: 346.48999 | I45: 6746188 | J45: -22.480011 | K45: 2020-03-09T17:23:37
A46: NUGT | B46: Direxion Daily Gold Miners Index Bull 3X Shares (NUGT) -NYSEArca (Daily) | C46: 2020-01-31 | D46: 16:00:00 | E46: 32.439999 | F46: 33.830002 | G46: 32.240002 | H46: 33.02 | I46: 11325200 | J46: 0.84 | K46: 2020-02-02T15:21:51
A47: NVS | B47: Novartis AG (NVS) -NYSE (Daily) | C47: 2020-03-06 | D47: 16:02:00 | E47: 84.330002 | F47: 85.830002 | G47: 83.970001 | H47: 85.720001 | I47: 5624700 | J47: -0.089997 | K47: 2020-03-08T16:56:35
A48: NVDA | B48: NVIDIA Corporation (NVDA) -NasdaqGS (Daily) | C48: 2020-03-13 | D48: 12:00:00 | E48: 230.5 | F48: 236.190002 | G48: 219.610001 | H48: 223.460007 | I48: 6772686 | J48: 7.150009 | K48: 2020-03-13T12:00:30
A49: PRU | B49: Prudential Financial, Inc. (PRU) -NYSE (Daily) | C49: 2020-03-09 | D49: 16:02:00 | E49: 63.75 | F49: 65.830002 | G49: 57.375 | H49: 58.240002 | I49: 7614493 | J49: -11.569996 | K49: 2020-03-09T17:11:43
A50: PSEC | B50: Prospect Capital Corporation (PSEC) -NasdaqGS (Daily) | C50: 2020-02-14 | D50: 16:00:00 | E50: 6.53 | F50: 6.56 | G50: 6.51 | H50: 6.52 | I50: 1235500 | J50: -0.04 | K50: 2020-02-15T14:43:16
A51: RPM | B51: RPM International Inc. (RPM) -NYSE (Daily) | C51: 2020-03-09 | D51: 16:02:00 | E51: 64.470001 | F51: 66.730003 | G51: 63.5 | H51: 65.290001 | I51: 1115882 | J51: -2.919998 | K51: 2020-03-09T17:10:08
A52: RSP | B52: Invesco S&P 500 Equal Weight ETF (RSP) -NYSEArca (Daily) | C52: 2020-01-31 | D52: 16:00:00 | E52: 115.279999 | F52: 115.32 | G52: 113.230003 | H52: 113.540001 | I52: 747600 | J52: -2.309997 | K52: 2020-02-02T15:28:52
A53: SPR | B53: Spirit AeroSystems Holdings, Inc. (SPR) -NYSE (Daily) | C53: 2020-03-09 | D53: 16:06:00 | E53: 43.700001 | F53: 43.880001 | G53: 41.5 | H53: 42.139999 | I53: 2091368 | J53: -5.23 | K53: 2020-03-09T17:09:37
A54: SWKS | B54: Skyworks Solutions, Inc. (SWKS) -NasdaqGS (Daily) | C54: 2020-01-31 | D54: 16:00:00 | E54: 115.5 | F54: 115.739998 | G54: 112.720001 | H54: 113.150002 | I54: 2444600 | J54: -3.080001 | K54: 2020-02-02T15:26:46
A55: TOL | B55: Toll Brothers, Inc. (TOL) -NYSE (Daily) | C55: 2020-03-09 | D55: 16:07:00 | E55: 34.759998 | F55: 35.314999 | G55: 32.060001 | H55: 34.110001 | I55: 3127968 | J55: -2.86 | K55: 2020-03-09T17:12:09
A56: TSLA | B56: Tesla, Inc. (TSLA) -NasdaqGS (Daily) | C56: 2020-03-13 | D56: 12:08:00 | E56: 595 | F56: 607.570007 | G56: 502.01001 | H56: 510 | I56: 12224537 | J56: -50.549988 | K56: 2020-03-13T12:08:39
A57: UNP | B57: Union Pacific Corporation (UNP) -NYSE (Daily) | C57: 2020-03-09 | D57: 16:07:00 | E57: 145.199997 | F57: 145.580002 | G57: 133.179993 | H57: 135.839996 | I57: 9380024 | J57: -20.25 | K57: 2020-03-09T17:11:21
A58: VZ | B58: Verizon Communications Inc. (VZ) -NYSE (Daily) | C58: 2019-04-10 | D58: 16:00:00 | E58: 58.400002 | F58: 58.700001 | G58: 58.360001 | H58: 58.610001 | I58: 8022000 | J58: 0.209999
A59: WBA | B59: Walgreens Boots Alliance, Inc. (WBA) -NasdaqGS (Daily) | C59: 2020-01-31 | D59: 16:00:00 | E59: 51.709999 | F59: 51.919998 | G59: 50.66 | H59: 50.849998 | I59: 6532300 | J59: -1.100003 | K59: 2020-02-02T15:28:06
A60: WMT | B60: Walmart Inc. (WMT) -NYSE (Daily) | C60: 2020-03-09 | D60: 16:01:00 | E60: 113.82 | F60: 120.629997 | G60: 112.730003 | H60: 117.160004 | I60: 19567750 | J60: -0.069999 | K60: 2020-03-09T17:10:39
A62: ^AEX | B62: AEX-INDEX (^AEX) -Amsterdam (Daily) | C62: 2020-03-09 | D62: 18:05:00 | E62: 506.950012 | F62: 506.950012 | G62: 485.730011 | H62: 490.660004 | I62: 0 | J62: -40.629974 | K62: 2020-03-09T17:41:58
A63: ^AORD | B63: ALL ORDINARIES (^AORD) -ASX (Daily) | C63: 2020-03-09 | D63: 16:17:00 | E63: 6472.399902 | F63: 6287.299805 | G63: 5822.399902 | H63: 5822.399902 | I63: 0 | J63: -465.100098 | K63: 2020-03-09T17:45:59
A64: ^DJI | B64: Dow Jones Industrial Average (^DJI) -DJI (Daily) | C64: 2020-03-09 | D64: 16:59:00 | E64: 24992.35938 | F64: 24992.35938 | G64: 23706.07031 | H64: 23851.01953 | I64: 750431083 | J64: -2013.759766 | K64: 2020-03-09T17:37:29
A65: ^FTSE | B65: FTSE 100 (^FTSE) -FTSE Index (Daily) | C65: 2020-03-09 | D65: 16:45:00 | E65: 6462.549805 | F65: 6462.549805 | G65: 5891.560059 | H65: 5965.77002 | I65: 0 | J65: -496.830078 | K65: 2020-03-09T17:43:57
A66: ^GSPC | B66: S&P 500 (^GSPC) -SNP (Daily) | C66: 2019-09-13 | D66: 16:56:00 | E66: 3012.209961 | F66: 3017.330078 | G66: 3002.899902 | H66: 3007.389893 | I66: 3520060000 | J66: -2.180175
A67: ^HSI | B67: HANG SENG INDEX (^HSI) -HKSE (Daily) | C67: 2020-03-09 | D67: 16:08:00 | E67: 25134.01953 | F67: 25321.2793 | G67: 24948.38086 | H67: 25040.46094 | I67: 0 | J67: -1106.208984 | K67: 2020-03-09T17:39:06
A68: ^MID | B68: S&P MID CAP 400 INDEX (^MID) -NYSE (Daily) | C68: 2020-02-14 | D68: 16:06:00 | E68: 2099.459961 | F68: 2100.51001 | G68: 2089.610107 | H68: 2096.610107 | I68: 0 | J68: -0.679932 | K68: 2020-02-14T21:04:41
A69: ^NDX | B69: NASDAQ 100 (^NDX) -Nasdaq GIDS (Daily) | C69: 2020-02-14 | D69: 16:51:00 | E69: 9613.881836 | F69: 9634.750977 | G69: 9583.083008 | H69: 9623.580078 | I69: 469910279 | J69: 27.879883 | K69: 2020-02-14T16:52:02
A70: ^NYA | B70: NYSE COMPOSITE (DJ) (^NYA) -NYSE (Daily) | C70: 2020-03-13 | D70: 13:53:00 | E70: 10445.44043 | F70: 10642.39844 | G70: 10060.35352 | H70: 10464.54883 | I70: 0 | J70: 403.789062 | K70: 2020-03-13T14:08:31
A71: ^OEX | B71: S&P 100 INDEX (^OEX) -Chicago Options (Daily) | C71: 2019-09-13 | D71: 16:56:00 | E71: 1332.27002 | F71: 1334.420044 | G71: 1328.73999 | H71: 1330.969971 | I71: 3520060000 | J71: -1.010009
A72: ^RUT | B72: Russell 2000 (^RUT) -Chicago Options (Daily) | C72: 2019-09-13 | D72: 16:30:00 | E72: 1579.22998 | F72: 1589.449951 | G72: 1577.109985 | H72: 1578.140015 | I72: 35200600 | J72: 3.070069
A73: ^SSEC | B73: SSE Composite Index (^SSEC) -Shanghai (Daily) | C73: 2020-03-09 | D73: 15:00:00 | E73: 3039.939453 | F73: 2989.205078 | G73: 2940.713867 | H73: 2943.290771 | I73: 2801367936 | J73: -388.231202 | K73: 2020-03-09T17:38:09
A74: ^VIX | B74: CBOE Volatility Index (^VIX) -Chicago Options (Daily) | C74: 2020-03-09 | D74: 16:14:00 | E74: 41.939999 | F74: 62.119999 | G74: 41.939999 | H74: 54.459999 | I74: 0 | J74: 12.52 | K74: 2020-03-09T17:38:36
A75: IWM | B75: iShares Russell 2000 ETF (IWM) -NYSEArca (Daily) | C75: 2018-04-13 | D75: 16:00:00 | E75: 155.289993 | F75: 155.330002 | G75: 153.509995 | H75: 153.949997 | I75: 19710100 | J75: -0.809998
A76: QQQ | B76: Invesco QQQ Trust (QQQ) -NasdaqGM (Daily) | C76: 2019-08-12 | D76: 16:00:00 | E76: 185.339996 | F76: 185.889999 | G76: 183.5 | H76: 184.350006 | I76: 23162601 | J76: -2.139999
A77: SPY | B77: SPDR S&P 500 ETF Trust (SPY) -NYSEArca (Daily) | C77: 2020-03-13 | D77: 14:10:00 | E77: 263.089996 | F77: 264.109985 | G77: 249.580002 | H77: 256.679993 | I77: 194471262 | J77: 8.569992 | K77: 2020-03-13T14:13:06
A79: ACAD | B79: ACADIA Pharmaceut (ACAD) -NasdaqNM (Daily) | C79: 2014-07-21 | D79: 16:00:00 | E79: 20.13 | F79: 20.55 | G79: 19.8101 | H79: 20.31 | I79: 691016
A80: CLDX | B80: Celldex Therapeut (CLDX) -NasdaqNM (Daily) | C80: 2015-02-02 | D80: 16:00:00 | E80: 21.47 | F80: 21.69 | G80: 20.11 | H80: 21.02 | I80: 1570418 | J80: -0.4
A81: ICPT | B81: Intercept Pharmac (ICPT) -NasdaqNM (Daily) | C81: 2014-07-21 | D81: 16:00:00 | E81: 215.97 | F81: 218.43 | G81: 213.05 | H81: 218.14 | I81: 191276
A82: INO | B82: Inovio Pharmaceut (INO) -AMEX (Daily) | C82: 2014-07-21 | D82: 16:00:00 | E82: 10.3 | F82: 11.08 | G82: 10.1 | H82: 11.01 | I82: 1800796
A83: JCP | B83: J. C. Penney Company, Inc. (JCP) -NYSE (Daily) | C83: 2017-12-07 | D83: 16:01:00 | E83: 3.34 | F83: 3.4 | G83: 3.25 | H83: 3.27 | I83: 14485464 | J83: -0.07
A84: LCI | B84: Lannett Co Inc Co (LCI) -NYSE (Daily) | C84: 2014-07-21 | D84: 16:02:00 | E84: 38.09 | F84: 38.803 | G84: 36.5101 | H84: 37.76 | I84: 611367
A85: NPSP | B85: NPS Pharmaceutica (NPSP) -NasdaqNM (Daily) | C85: 2014-07-21 | D85: 15:59:00 | E85: 28.75 | F85: 29.43 | G85: 28.31 | H85: 29.29 | I85: 1126758
A86: PBYI | B86: Puma Biotechnolog (PBYI) -NYSE (Daily) | C86: 2014-07-21 | D86: 16:02:00 | E86: 58.27 | F86: 59.46 | G86: 57.39 | H86: 58.98 | I86: 348030
